Workbook

Sheet Index
B2: Revenue Reset Information Pro Formas
B4: INDEX | C4: Click on orange box for link to pages
B7: Historic Opex | D7: Historic Capex
B8: Table 1.1 | C8: Historic Opex by Category - Summary | D8: Table 3.1 | E8: Historic Capex by Category
B9: 1.2 | C9: Historic Opex by Category Year 1 | D9: 3.2 | E9: Historic Capex by Asset Class
B10: 1.3 | C10: Historic Opex by Category Year 2 | D10: 3.3 | E10: Historic Capex - Network
B11: 1.4 | C11: Historic Opex by Category Year 3 | D11: 3.4 | E11: Historic Capex - Non-Network
B12: 1.5 | C12: Historic Opex by Category Year 4
B13: 1.6 | C13: Historic Opex by Category Year 5
B16: Forecast Opex | D16: Forecast Capex
B17: Table 2.1 | C17: Forecast Opex by Category - Summary | D17: Table 4.1 | E17: Forecast Capex by Category
B18: 2.2 | C18: Forecast Opex by Category Year 6 | D18: 4.2 | E18: Forecast Capex by Asset Class
B19: 2.3 | C19: Forecast Opex by Category Year 7 | D19: 4.3 | E19: Forecast Capex - Network
B20: 2.4 | C20: Forecast Opex by Category Year 8 | D20: 4.4 | E20: Forecast Capex - Non-Network
B21: 2.5 | C21: Forecast Opex by Category Year 9
B22: 2.6 | C22: Forecast Opex by Category Year 10
B25: Commentary | D25: Instructions / Definitions
B26: Table 5.1 | C26: Commentary on Opex | D26: Table 6.1 | E26: Opex Instructions
B27: 5.2 | C27: Commentary on Historic Capex | D27: 6.2 | E27: Historic Capex Instructions
B28: 5.3 | C28: Commentary on Forecast Capex | D28: 6.3 | E28: Forecast Capex Instructions

Sheet Opex Commentary
A1: 5.1 Historic and Forecast Opex Commentary proforma: key cost drivers
A3: This pro forma is designed to allow the TNSP to provide context and background for the quantitative opex templates. | C3: Home
A5: The historic opex tables (1.1 - 1.7) provide a column where the key cost drivers for historic opex should be briefly listed. This commentary pro forma provides opportunity for more detailed explanations regarding material changes
A7: The forecast opex tables (2.1 - 2.7) provide a similar column where the key cost drivers for forecast opex should be briefly listed. This commentary pro forma provides the opportunity for more detailed explanations regarding material changes in particular | C7: Link to Historic Opex Summary - Table 1.1
A9: The commentary should address the following:
A11: >The main cost drivers for the particular opex item (eg changes in CPI, legislative and regulatory requirements, environmental factors). | C11: Link to Forecast Opex Summary - Table 2.1
A12: >Were these increases foreseeable? If not, why not?
A13: >Details of management induced opex efficiencies achieved.
A14: >Major opex risks and mitigation strategies.
A15: >Key Performance Indicators – are these benchmarked against other transmission companies?
A17: In addition, the TNSP is requested to provide:
A19: >Its capitalisation policy and details on how it is applied.
A20: >Definitions of ‘opex’ and ‘capex’ used by the business. Further, the TNSP should provide definitions for the categories and activities used in the opex templates. These definitions should be added to the definition section in table 6.1
A21: >A discussion on the relationship between opex and capex.
A22: >Details of changes in accounting policies over the past regulatory period and how they may have impacted on opex in general or specific opex items.
A25: Commentary on cost drivers and material changes over the current regulatory period
A26: Refer section 4.4 of the Revenue Proposal for discussion on cost drivers and material changes in the current regulatory period.
A30: Supporting information
A31: Please list documentation substantiating the reason for change
A32: As above
A36: Commentary on cost drivers and material changes affecting the upcoming regulatory period
A37: Refer section 6.6 of the Revenue Proposal for discussion on key inputs and assumptions. Also refer chapter 5 of the Revised Revenue Proposal for additional comments on the adjustments from the draft decision
A39: Supporting information
A40: Please list documentation substantiating the reason for change
A41: As above

Sheet Commentary on Historic Capex (hidden)
A1: 5.2 Historic Capex Commentary Proforma: reasons for variance
A3: This pro forma is designed to allow TNSP's to provide context and background for the quantitative historic capex templates. | C3: Home
A5: Tables 3.3 & 3.4 provide a column where reasons for capex cost variances may be briefly listed. This pro forma provides the opportunity for more detailed reasons to be given for material differences between actual project costs and amounts included in th
A7: The commentary should address the following:
C8: Link to Historic Capex by category - Table 3.1
A9: >The main reasons for the project being undertaken (eg. demand growth)
A10: >The main reasons for material cost variances for the particular project (eg changes in material costs, legislative and regulatory requirements, environmental factors, technology changes) and whether they were forseeable.
A11: >The main reason for any material variance in commissioning date (e.g delays in supply of materials, environmental approvals etc) and whether they were forseeable.
A12: >How does the project align with the TNSP's asset management strategy/plan?
A13: >Reference to the project's assessment in the TNSP's Annual Planning Reports. | C13: Link to Historic Capex by Asset Class - Table 3.2
A14: >Details of management induced capex efficiencies which have reduced costs.
A15: >Major project risks and strategies undertaken to mitigate them.
A17: In addition, the TNSP is requested to provide:
A19: >Details of its capital expenditure planning, development and approval processes.
A20: >Details of its overall asset management strategy. | C20: Link to Historic Capex - Network - Table 3.3
A21: >Relevant Annual Planning Reports.
A22: >For augmentations greater than $10M, the Regulatory Test documentation.
A23: >For non-augmentation projects, the business case assessment documentation.
A24: >Capitalisation policy.
A25: Commentary on reasons for variance
A26: Refer comments in Tables 3.3 and 3.4 and Section 4.3 of the Revenue Proposal
C27: Link to Historic Capex - Non-Network - Table 3.4
A33: Supporting information
A34: Please list documentation in support of reasons
A35: Refer to Section 4.3 of the Revenue Proposal

Sheet Commentary on Forecast Capex (hidden)
A1: 5.3 Forecast Capex Commentary Proforma: reasons for project
A3: This pro forma is designed to provide context and background for the quantitative forecast capex templates, by specifying matters that the AER will take into account in assessing the TNSP’s proposed expenditure. | C3: Home
A5: Table 4.3 provides a column where reasons for the project can be provided. This pro forma provides the opportunity for more detailed reasons to be given for factors influencing the proposed spend, including load growth, planned generation and the range o
A7: The commentary should address the following: | C7: Link to Forecast Capex by category - Table 4.1
A9: >The theme sets upon which the proposed capex spend is based
A10: > The scenarios derived from the above theme sets and their relevant probabilities.
A11: > Project specific information in addition to the cost information provided in the forward capex templates.
A14: In addition, the TNSP is requested to provide: | C14: Link to Forecast by Asset Class - Table 4.2
A16: >Details of its capital expenditure and approvals processes.
A17: >Details of its overall asset management strategy/plan.
A18: >Relevant Annual Planning Reports.
A19: >Consultants reports on the probabilistic methodology adopted, its assumptions, inputs and detailed information on the outcomes.
C21: Link to Forecast Capex - Network - Table 4.3
A22: Theme sets and Scenarios modelled
A23: Refer to Section 5.7.2 of the Revenue Proposal for discussion on load and generation scenarios modelled
A24: Refer to chapter 4 of the Revised Revenue Proposal for additional comments on variations from the Draft Decision.
A28: Supporting information | C28: Link to Forecast Capex - Non-Network - Table 4.4
A29: Please list documentation in support of reasons
A30: Refer to Section 3.5 of the Revenue Proposal for discussion on ElectraNet's approach to asset management including Regional Development Plans and Asset Management Plan
A31: Refer to Sections 5.6 and 5.7 of the Revenue Proposal for discussion on ElectraNet's forecasting methodology and key inputs and assumptions
A32: Appendix G of the Revenue Proposal includes project summaries including discussion of the investment need for network projects estimated to cost $1m or more

Sheet Opex Instructions
A1: 6.1 OPEX - Instructions and definitions
A3: PURPOSE OF INFORMATION AND USE BY THE AER: | B3: The historic worksheets (1.1 to 1.7) are a key input into the AER's assessment of a TNSP's historic opex performance to assist it in establishing a starting point from which to set efficient opex for the next regulatory period. | D3: Home
B4: The forecast worksheets (2.1 to 2.6) are a key input into the AER's assessment of a TNSPs proposed forecast opex.
B5: Key cost drivers for expenditure are important to the AER's understanding of what has happened in the current regulatory period and any step changes in opex claimed for the next regulatory period.
A7: METHODOLOGY | B7: Data has been input on the basis of the definitions provided.
B8: All expenditure relates to the provision of prescribed services.
B9: Key cost drivers for expenditure: reasons for material changes in costs have been expanded upon in the relevant opex commentary proforma.
B10: Templates have been completed in accordance with the instructions contained in the AER's Information Requirements Guidelines (eg. cost allocation methodology.)
B11: Values for 2006/07 and 2007/08 are estimated values only
A13: DEFINITIONS | B13: Asset Manager Support: those operational activities to support the strategic development and ongoing asset management of the network. Asset Management Support has 4 major sub-elements: Grid Planning, Project Support, IT Support, and Network Customer & Regulatory Support
B14: Asset monitoring: the asset monitoring team performing remote monitoring of ElectraNet’s network.
B15: Condition based maintenance: maintenance activities based on inspection/assessment of the condition of an asset.
B16: Corporate Support: the support activities required by ElectraNet in order to ensure adequate and effective corporate governance. The two aspects of corporate support are: Insurance and Corporate Support.
B17: Corrective maintenance: activities that restore a failed component to an operational state.
B18: Direct Charges: costs associated with owning and managing assets, which include council rates charges, water charges, electricity bills and permits etc.
B19: Field maintenance: includes all field activities, performed by maintenance service providers, to ensure the item of plant can perform its required functions.
B20: Field Support: field-based activities provided by ElectraNet and service providers which are not directly related to working on an item of plant.
B21: Key cost drivers: significant factors driving expenditure such as age and condition of assets, size of network, CPI, labour costs, legislative requirements.
B22: Network Monitoring and control: includes all activities in operating and monitoring assets in the field.
B23: Network switching: the control centre function and ongoing management of the energy management system (EMS).
B24: Non-network: all activities not directly related to the operation and maintenance of the network, including administrative, planning and engineering support costs.
B25: Operational refurbishment: TNSP to provide definition.
B26: Opex: expenditure related to operating and maintaining assets which is not capex.
B27: Routine maintenance: recurrent activities undertaken to maintain assets.
B28: Support/corporate: opex that is not directly related to maintenance activities.

Sheet Historic Capex Instructions (hidden)
A1: 6.2 HISTORIC CAPEX - Instructions and definitions
A3: PURPOSE OF INFORMATION AND USE BY THE AER: | B3: The templates are key inputs into the AER's assessment of historic capex and will assist in the analysis of the prudency of expenditure. | D3: Home
B4: Specifying expenditure by project enables the AER to select projects on which to undertake more detailed analysis.
B5: The capex categories are essentially divided between Network and Non-network. Network includes augmentation capex which is subject to the Regulatory Test.
A7: METHODOLOGY: | B7: Data to be input on the basis of the definitions provided.
B8: All expenditure must relate to the provision of prescribed services.
B9: Categorisation of capex should be performed according to the primary reason for expenditure.
B10: Capex amounts should be entered on an as-commissioned basis, excluding customer contributions.
B11: Reasons for variance: if actual expenditure materially varies from the amount determined under the Regulatory Test/Business case, or the date of commissioning was later than planned, then reasons should be given on the Historic Capex Commentary pro forma
B12: Templates must be completed according to the instructions contained in the AER's Information Requirements Guidelines.
B13: Values for 2005/06 and 2006/07 are estimated values only.
A15: DEFINITIONS: | B15: Augmentation: are as defined under the National Electricity Rules (NER) as works to enlarge a network or to increase the capability of a network to transmit (or distribute) active energy.
B16: Business case: a detailed cost/benefit analysis undertaken to support an investment.
B17: Capex: expenditure that satisfies one or more of the following requirements - relates to the purchase or construction of a new asset; increases the functionality of the asset; or extends the service life of the asset.
B18: Connections: changes to connections between the transmission and distribution networks.
B19: Easements: land acquisitions and rights of way for transmission lines.
B20: IDC: interest during construction - interest charges up to the point of completion of the project.
B21: IT: Business IT expenditure.
B22: Other (Load Driven): anything else driven by increasing load.
B23: Other (Non-Load Driven): all other projects associated with the network which provides prescribed transmission services such as communications systems enhancements.
B24: Project ID: A unique numerical identifier for a given project
B25: Project Description: A short description of the project
B26: Regulatory Test: the test as promulgated by the ACCC to assess augmentation expenditure. A prudency test must be applied to other capex undertaken in the current regulatory period.
B27: Replacements: replacement or life extension of network assets.
B28: Security/Compliance: projects undertaken to ensure the physical security of assets and compliance with amendments to various technical, safety or environmental legislation.
B29: Support the business: non-network capex relating to commercial buildings, motor vehicles and tools (but excluding IT).

Sheet Forecast Capex Instructions (hidden)
A1: 6.3 FORECAST CAPEX - Instructions and definitions
A3: PURPOSE OF INFORMATION AND USE BY THE AER: | B3: The templates are key inputs into the AER's assessment of forecast capex and will enable an analysis of the proposed expenditure. | D3: Home
B4: Specifying expenditure by project enables the AER to select projects on which to undertake more detailed analysis.
D6: Link to Forecast Capex commentary - Table 5.3
A7: METHODOLOGY: | B7: Data has been input on the basis of the definitions provided.
B8: All expenditure relates to the provision of prescribed services.
B9: Categorisation of capex has been performed according to the primary reason for expenditure.
B10: Capex amounts has been entered on an as-incurred basis, excluding customer contributions.
B11: Customer contributions are noted separately.
B12: Templates have been completed according to the instructions contained in the AER's Information Requirements Guidelines.
B13: The TNSP is also requested to provide consultants reports on the probabilistic methodology adopted, including information on theme sets and scenarios upon which the proposed capex spend is based. Further, details on the consultants assumptions, inputs and
A14: DEFINITIONS: | B14: Augmentation: are as defined under the National Electricity Rules (NER) as works to enlarge a network or to increase the capability of a network to transmit (or distribute) active energy.
B15: Business case: a detailed cost/benefit analysis undertaken to support an investment.
B16: Capex: expenditure that satisfies one or more of the following requirements - relates to the purchase or construction of a new asset; increases the functionality of the asset; or extends the service life of the asset.
B17: Connections: changes to connections between the transmission and distribution networks.
B18: Easements: land acquisitions and rights of way for transmission lines.
B19: IDC: interest during construction - interest charges up to the point of completion of the project.
B20: IT: Business IT expenditure.
B21: Other (Load Driven): anything else driven by increasing load.
B22: Other (Non-Load Driven): all other projects associated with the network which provides prescribed transmission services such as communications systems enhancements.
B23: Project ID: A unique numerical identifier for a given project
B24: Project Description: A short description of the project
B25: Regulatory Test: the test as promulgated by the ACCC to assess augmentation expenditure. A prudency test must be applied to other capex undertaken in the current regulatory period.
B26: Replacements: replacement or life extension of network assets.
B27: Security/Compliance: projects undertaken to ensure the physical security of assets and compliance with amendments to various technical, safety or environmental legislation.
B28: Support the business: non-network capex relating to commercial buildings, motor vehicles and tools (but excluding IT).

Sheet Hist Opex Cat. Yr0.5 (hidden)
D2: Home | F2: Link to Opex instructions - Table 6.1
B3: 1.2 HISTORIC OPEX by expenditure category
B4: for the year ended 30 June 2003
B5: ($m, nominal) | D5: Half Year Ended 30 June 2003
D6: Field Maintenance | G6: Operational Refurbishment | I6: Network Monitoring & Control | J6: Support / Corporate
D7: Routine | E7: Condition-Based | F7: Corrective | H7: Maintenance Support | J7: Network | K7: Non-Network | M7: TOTAL | O7: Revenue Cap Allowance
B8: Direct Operations & Maintenance
B9: Maintenance
B10: Communications
B11: Labour
B12: Non Labour
B13: Sub-Totals
B14: Lines
B15: Labour
B16: Non Labour
B17: Sub-Totals
B18: Secondary Systems
B19: Labour
B20: Non Labour
B21: Sub-Totals
B22: Substations
B23: Labour
B24: Non Labour
B25: Sub-Totals
B26: Easements
B27: Labour
B28: Non Labour
B29: Sub-Totals
B30: Summary
B31: Sub-Total Labour
B32: Sub-Total Non Labour
B33: Total Maintenance
B34: Field Support
B35: Field Support
B36: Direct Charges
B37: Total Field Support
B38: Operations
B39: Network Switching
B40: Asset Monitoring
B41: Total Operations
B42: Total Direct Operations & Maintenance
B43: Other Controllable
B44: Asset Manager Support
B45: Grid Planning
B46: Project Support
B47: IT Support
B48: Customer & Regulatory Support
B49: Sub-Totals
B50: Corporate Support
B51: Insurance
B52: Corporate Support
B53: Sub-Totals
B54: Total Other Controllable
B55: Summary
B56: Total Maintenance Labour1
B57: Total Maintenance Non labour2
B58: Total Other3
B59: TOTAL CONTROLLABLE OPEX
B61: Other Opex
B62: Network Support
B63: TOTAL OTHER OPEX
B66: Grand Total
B68: Revenue Cap Allowance
B72: 1 Total Maintenance Labour is the total combination of all Field Maintenance items
B73: 2Total Maintenance Non Labour is total combination of all Field Maintenance items
B74: 3The Total Other are all costs sourced from the opex line items including and below Field Support
B75: Labour includes the labour component of both in-house and external maintenance service providers

Sheet Hist Opex Summary New
C2: Home | D2: Link to Opex instructions - Table 6.1
B3: 2.1 Future by expenditure category
B4: for the period 1 July 2008 to 30 June 2013
B6: ($m, nominal)
C7: 2008/09 | D7: 2009/10 | E7: 2010/11 | F7: 2011/12 | G7: 2012/13 | H7: Total | J7: Revenue Cap Allowance | L7: Key cost drivers and explanation for material differences over time
B8: Direct Operations & Maintenance | L8: Detailed for explanation for variances is provided in Section 6.8.2 of the Revenue Proposal.
B9: Field Maintenance
B10: Communications
B11: Labour | C11: ='Hist Opex Cat Yr1 New'!$M11 -> 0.7268894182 | D11: ='Hist Opex Cat Yr2 New'!$M11 -> 0.9235678404 | E11: ='Hist Opex Cat Yr3 New'!$M11 -> 0.8613866215 | F11: ='Hist Opex Cat Yr4 New'!$M11 -> 0.6676342468 | G11: ='Hist Opex Cat Yr5 New'!$M11 -> 0.6144489935 | H11: =SUM(C11:G11) -> 3.79392712 | N11: =SUM(C11:E11) -> 2.51184388
B12: Materials | C12: ='Hist Opex Cat Yr1 New'!$M12 -> 0.9676575818 | D12: ='Hist Opex Cat Yr2 New'!$M12 -> 0.6904751596 | E12: ='Hist Opex Cat Yr3 New'!$M12 -> 0.6175855098 | F12: ='Hist Opex Cat Yr4 New'!$M12 -> 1.757759013 | G12: ='Hist Opex Cat Yr5 New'!$M12 -> 1.617731957 | H12: 5.651209221 | N12: =SUM(C12:E12) -> 2.275718251
B13: Sub-Totals | C13: =C12+C11 -> 1.694547 | D13: =D12+D11 -> 1.614043 | E13: 1.478972131 | F13: 2.42539326 | G13: 2.23218095 | H13: =SUM(C13:G13) -> 9.445136341 | J13: =SUM('Hist Opex Cat Yr1 New:Hist Opex Cat Yr5 New'!O13) -> 11.12324769 | N13: 4.787562131
B14: Lines | N14: 0
B15: Labour | C15: ='Hist Opex Cat Yr1 New'!$M15 -> 2.097196935 | D15: ='Hist Opex Cat Yr2 New'!$M15 -> 2.572705874 | E15: ='Hist Opex Cat Yr3 New'!$M15 -> 4.362887437 | F15: ='Hist Opex Cat Yr4 New'!$M15 -> 2.8230779 | G15: ='Hist Opex Cat Yr5 New'!$M15 -> 1.858692008 | H15: =SUM(C15:G15) -> 13.71456015 | N15: 9.032790246
B16: Materials | C16: ='Hist Opex Cat Yr1 New'!$M16 -> 2.432803065 | D16: ='Hist Opex Cat Yr2 New'!$M16 -> 2.987294126 | E16: ='Hist Opex Cat Yr3 New'!$M16 -> 5.137112563 | F16: ='Hist Opex Cat Yr4 New'!$M16 -> 10.45538741 | G16: ='Hist Opex Cat Yr5 New'!$M16 -> 6.883743812 | H16: 27.89634098 | N16: 10.55720975
B17: Sub-Totals | C17: =C16+C15 -> 4.53 | D17: =D16+D15 -> 5.56 | E17: =E16+E15 -> 9.5 | F17: =F16+F15 -> 13.27846531 | G17: =G16+G15 -> 8.74243582 | H17: 41.61090113 | J17: =SUM('Hist Opex Cat Yr1 New:Hist Opex Cat Yr5 New'!O17) -> 30.09808101 | N17: 19.59
B18: Secondary Systems | N18: 0
B19: Labour | C19: ='Hist Opex Cat Yr1 New'!$M19 -> 1.458033687 | D19: ='Hist Opex Cat Yr2 New'!$M19 -> 1.938591255 | E19: ='Hist Opex Cat Yr3 New'!$M19 -> 1.312435923 | F19: ='Hist Opex Cat Yr4 New'!$M19 -> 1.205702818 | G19: ='Hist Opex Cat Yr5 New'!$M19 -> 0.9752048267 | H19: 6.889968509 | N19: 4.709060865
B20: Materials | C20: ='Hist Opex Cat Yr1 New'!$M20 -> 0.5919663132 | D20: ='Hist Opex Cat Yr2 New'!$M20 -> 0.811408745 | E20: ='Hist Opex Cat Yr3 New'!$M20 -> 0.3385640773 | F20: ='Hist Opex Cat Yr4 New'!$M20 -> 1.056990802 | G20: ='Hist Opex Cat Yr5 New'!$M20 -> 0.8549225533 | H20: 3.653852491 | N20: 1.741939135
B21: Sub-Totals | C21: =C20+C19 -> 2.05 | D21: =D20+D19 -> 2.75 | E21: =E20+E19 -> 1.651 | F21: =F20+F19 -> 2.26269362 | G21: =G20+G19 -> 1.83012738 | H21: 10.543821 | J21: =SUM('Hist Opex Cat Yr1 New:Hist Opex Cat Yr5 New'!O21) -> 14.00829662 | N21: 6.451
B22: Substations | N22: 0
B23: Labour | C23: ='Hist Opex Cat Yr1 New'!$M23 -> 7.32431771 | D23: ='Hist Opex Cat Yr2 New'!$M23 -> 8.006810288 | E23: ='Hist Opex Cat Yr3 New'!$M23 -> 8.597816436 | F23: ='Hist Opex Cat Yr4 New'!$M23 -> 5.714333382 | G23: ='Hist Opex Cat Yr5 New'!$M23 -> 6.865878687 | H23: 36.5091565 | N23: 23.92894443
B24: Materials | C24: ='Hist Opex Cat Yr1 New'!$M24 -> 3.55145829 | D24: ='Hist Opex Cat Yr2 New'!$M24 -> 3.543189712 | E24: ='Hist Opex Cat Yr3 New'!$M24 -> 3.509752564 | F24: ='Hist Opex Cat Yr4 New'!$M24 -> 6.187004538 | G24: ='Hist Opex Cat Yr5 New'!$M24 -> 7.433801943 | H24: 24.22520705 | N24: 10.60440057
B25: Sub-Totals | C25: =C24+C23 -> 10.875776 | D25: =D24+D23 -> 11.55 | E25: =E24+E23 -> 12.107569 | F25: =F24+F23 -> 11.90133792 | G25: =G24+G23 -> 14.29968063 | H25: 60.73436355 | J25: =SUM('Hist Opex Cat Yr1 New:Hist Opex Cat Yr5 New'!O25) -> 55.03047904 | N25: 34.533345
B26: Easements | N26: 0
B27: Labour | C27: ='Hist Opex Cat Yr1 New'!$M27 -> 1.073543486 | D27: ='Hist Opex Cat Yr2 New'!$M27 -> 1.210230595 | E27: ='Hist Opex Cat Yr3 New'!$M27 -> 1.186665845 | F27: ='Hist Opex Cat Yr4 New'!$M27 -> 0.8070146303 | G27: ='Hist Opex Cat Yr5 New'!$M27 -> 0.785432499 | H27: 5.062887054 | N27: 3.470439925
B28: Materials | C28: ='Hist Opex Cat Yr1 New'!$M28 -> 0.4485265144 | D28: ='Hist Opex Cat Yr2 New'!$M28 -> 0.4297694053 | E28: ='Hist Opex Cat Yr3 New'!$M28 -> 0.4083341554 | F28: ='Hist Opex Cat Yr4 New'!$M28 -> 0.7093073497 | G28: ='Hist Opex Cat Yr5 New'!$M28 -> 0.690338221 | H28: 2.686275646 | N28: 1.286630075
B29: Sub-Totals | C29: =C28+C27 -> 1.52207 | D29: =D28+D27 -> 1.64 | E29: =E28+E27 -> 1.595 | F29: =F28+F27 -> 1.51632198 | G29: =G28+G27 -> 1.47577072 | H29: 7.7491627 | J29: =SUM('Hist Opex Cat Yr1 New:Hist Opex Cat Yr5 New'!O29) -> 5.859195082 | N29: 4.75707
B30: Summary
B31: Sub-Total Labour | C31: =C27+C23+C19+C15+C11 -> 12.67998124 | D31: =D27+D23+D19+D15+D11 -> 14.65190585 | E31: 16.32119226 | F31: 11.21776298 | G31: 11.09965701 | H31: 65.97049934
B32: Sub-Total Non Labour | C32: =C28+C24+C20+C16+C12 -> 7.992411764 | D32: =D28+D24+D20+D16+D12 -> 8.462137148 | E32: 10.01134887 | F32: 20.16644911 | G32: 17.48053849 | H32: 64.11288538
B33: Total Maintenance | C33: =C32+C31 -> 20.672393 | D33: =D32+D31 -> 23.114043 | E33: 26.33254113 | F33: 31.38421209 | G33: 28.5801955 | H33: 130.0833847 | J33: =SUM(J13:J29) -> 116.1192994
B34: Field Support
B35: Field Support | C35: ='Hist Opex Cat Yr1 New'!$M35 -> 4.637425155 | D35: ='Hist Opex Cat Yr2 New'!$M35 -> 4.553722315 | E35: ='Hist Opex Cat Yr3 New'!$M35 -> 4.72050843 | F35: ='Hist Opex Cat Yr4 New'!$M35 -> 6.923846078 | G35: ='Hist Opex Cat Yr5 New'!$M35 -> 7.07520283 | H35: 27.91070481 | J35: =SUM('Hist Opex Cat Yr1 New:Hist Opex Cat Yr5 New'!O35) -> 36.58720238
B36: Direct Charges | C36: ='Hist Opex Cat Yr1 New'!$M36 -> 3.64198612 | D36: ='Hist Opex Cat Yr2 New'!$M36 -> 3.60482554 | E36: ='Hist Opex Cat Yr3 New'!$M36 -> 3.71573743 | F36: ='Hist Opex Cat Yr4 New'!$M36 -> 3.71893723 | G36: ='Hist Opex Cat Yr5 New'!$M36 -> 3.85836036 | H36: 18.53984668 | J36: =SUM('Hist Opex Cat Yr1 New:Hist Opex Cat Yr5 New'!O36) -> 10.71308738
B37: Total Field Support | C37: =C36+C35 -> 8.279411275 | D37: =D36+D35 -> 8.158547855 | E37: =E36+E35 -> 8.43624586 | F37: =F36+F35 -> 10.64278331 | G37: =G36+G35 -> 10.93356319 | H37: 46.45055149 | J37: =J36+J35 -> 47.30028976
B38: Operations
B39: Network Switching | C39: ='Hist Opex Cat Yr1 New'!$M39 -> 5.465422023 | D39: ='Hist Opex Cat Yr2 New'!$M39 -> 5.013832942 | E39: ='Hist Opex Cat Yr3 New'!$M39 -> 5.321306 | F39: ='Hist Opex Cat Yr4 New'!$M39 -> 6.479438478 | G39: ='Hist Opex Cat Yr5 New'!$M39 -> 7.05392881 | H39: 29.33392825 | J39: =SUM('Hist Opex Cat Yr1 New:Hist Opex Cat Yr5 New'!O39) -> 7.815258012
B40: Asset Monitoring | C40: ='Hist Opex Cat Yr1 New'!$M40 -> 1.82963143 | D40: ='Hist Opex Cat Yr2 New'!$M40 -> 1.678455258 | E40: ='Hist Opex Cat Yr3 New'!$M40 -> 1.60251142 | F40: ='Hist Opex Cat Yr4 New'!$M40 -> 1.544632954 | G40: ='Hist Opex Cat Yr5 New'!$M40 -> 1.87759711 | H40: 8.532828172 | J40: =SUM('Hist Opex Cat Yr1 New:Hist Opex Cat Yr5 New'!O40) -> 3.698525148
B41: Total Operations | C41: =C40+C39 -> 7.295053453 | D41: =D40+D39 -> 6.692288201 | E41: =E40+E39 -> 6.92381742 | F41: =F40+F39 -> 8.024071432 | G41: =G40+G39 -> 8.93152592 | H41: 37.86675643 | J41: =J40+J39 -> 11.51378316
B42: Total Direct Operations & Maintenance | C42: =C41+C37+C33 -> 36.24685773 | D42: =D41+D37+D33 -> 37.96487906 | E42: 41.69260441 | F42: 50.05106683 | G42: 48.44528461 | H42: 214.4006926 | J42: =J41+J37+J33 -> 174.9333724
B43: Other Controllable
B44: Asset Manager Support
B45: Grid Planning | C45: ='Hist Opex Cat Yr1 New'!$M45 -> 2.713317876 | D45: ='Hist Opex Cat Yr2 New'!$M45 -> 3.259929096 | E45: ='Hist Opex Cat Yr3 New'!$M45 -> 3.31270807 | F45: ='Hist Opex Cat Yr4 New'!$M45 -> 3.111304666 | G45: ='Hist Opex Cat Yr5 New'!$M45 -> 4.25039698 | H45: 16.64765669 | J45: =SUM('Hist Opex Cat Yr1 New:Hist Opex Cat Yr5 New'!O45) -> 5.762796933
B46: Project Support | C46: ='Hist Opex Cat Yr1 New'!$M46 -> 3.343500357 | D46: ='Hist Opex Cat Yr2 New'!$M46 -> 3.219342373 | E46: ='Hist Opex Cat Yr3 New'!$M46 -> 4.14723285 | F46: ='Hist Opex Cat Yr4 New'!$M46 -> 3.334395116 | G46: ='Hist Opex Cat Yr5 New'!$M46 -> 3.43375627 | H46: 17.47822697 | J46: =SUM('Hist Opex Cat Yr1 New:Hist Opex Cat Yr5 New'!O46) -> 16.27648431
B47: IT Support | C47: ='Hist Opex Cat Yr1 New'!$M47 -> 0.7281546932 | D47: ='Hist Opex Cat Yr2 New'!$M47 -> 0.5230948932 | E47: ='Hist Opex Cat Yr3 New'!$M47 -> 0.50018863 | F47: ='Hist Opex Cat Yr4 New'!$M47 -> 0.4028756049 | G47: ='Hist Opex Cat Yr5 New'!$M47 -> 0.5161669 | H47: 2.670480721 | J47: =SUM('Hist Opex Cat Yr1 New:Hist Opex Cat Yr5 New'!O47) -> 9.491542844
B48: Customer & Regulatory Support | C48: ='Hist Opex Cat Yr1 New'!$M48 -> 0.6891018715 | D48: ='Hist Opex Cat Yr2 New'!$M48 -> 0.5992526055 | E48: ='Hist Opex Cat Yr3 New'!$M48 -> 0.56678326 | F48: ='Hist Opex Cat Yr4 New'!$M48 -> 1.949575811 | G48: ='Hist Opex Cat Yr5 New'!$M48 -> 1.96477026 | H48: 5.769483808 | J48: =SUM('Hist Opex Cat Yr1 New:Hist Opex Cat Yr5 New'!O48) -> 3.392188687
B49: Sub-Totals | C49: =SUM(C45:C48) -> 7.474074798 | D49: =SUM(D45:D48) -> 7.601618967 | E49: 8.52691281 | F49: 8.798151199 | G49: 10.16509041 | H49: 42.56584818 | J49: =SUM(J45:J48) -> 34.92301278
B50: Corporate Support
B51: Insurance | C51: ='Hist Opex Cat Yr1 New'!$M51 -> 1.829 | D51: ='Hist Opex Cat Yr2 New'!$M51 -> 1.883 | E51: ='Hist Opex Cat Yr3 New'!$M51 -> 2.13992658 | F51: ='Hist Opex Cat Yr4 New'!$M51 -> 2.65700453 | G51: ='Hist Opex Cat Yr5 New'!$M51 -> 2.818556 | H51: 11.32748711 | J51: =SUM('Hist Opex Cat Yr1 New:Hist Opex Cat Yr5 New'!O51) -> 15.63384179
B52: Corporate Support | C52: ='Hist Opex Cat Yr1 New'!$M52 -> 2.794681624 | D52: ='Hist Opex Cat Yr2 New'!$M52 -> 3.472882927 | E52: ='Hist Opex Cat Yr3 New'!$M52 -> 3.42847654 | F52: ='Hist Opex Cat Yr4 New'!$M52 -> 2.992274161 | G52: ='Hist Opex Cat Yr5 New'!$M52 -> 3.87106935 | H52: 16.5593846 | J52: =SUM('Hist Opex Cat Yr1 New:Hist Opex Cat Yr5 New'!O52) -> 58.02623131
B53: Sub-Totals | C53: =C52+C51 -> 4.623681624 | D53: =D52+D51 -> 5.355882927 | E53: =E52+E51 -> 5.56840312 | F53: =F52+F51 -> 5.649278691 | G53: =G52+G51 -> 6.68962535 | H53: 27.88687171 | J53: =J52+J51 -> 73.6600731
B54: Total Other Controllable | C54: =C53+C49 -> 12.09775642 | D54: =D53+D49 -> 12.95750189 | E54: 14.09531593 | F54: 14.44742989 | G54: 16.85471576 | H54: 70.4527199 | J54: =J53+J49 -> 108.5830859
B55: Summary
B56: Total Maintenance Labour1 | C56: =C31 -> 12.67998124 | D56: =D31 -> 14.65190585 | E56: 16.32119226 | F56: 11.21776298 | G56: 11.09965701 | H56: 65.97049934 | J56: =J31 -> 0
B57: Total Maintenance Non labour2 | C57: =C32 -> 7.992411764 | D57: =D32 -> 8.462137148 | E57: 10.01134887 | F57: 20.16644911 | G57: 17.48053849 | H57: 64.11288538 | J57: =J32 -> 0
B58: Total Other3 | C58: =C54+C41+C37 -> 27.67222115 | D58: =D54+D41+D37 -> 27.80833795 | E58: 29.45537921 | F58: 33.11428463 | G58: 36.71980487 | H58: 154.7700278
B59: TOTAL CONTROLLABLE OPEX | C59: =SUM(C56:C58) -> 48.34461415 | D59: =SUM(D56:D58) -> 50.92238095 | E59: 55.78792034 | F59: 64.49849672 | G59: 65.30000037 | H59: 284.8534125 | J59: =J54+J42 -> 283.5164582
B61: Other Opex
B62: Network Support | C62: ='Hist Opex Cat Yr1 New'!$M62 -> 4.75879522 | D62: ='Hist Opex Cat Yr2 New'!$M62 -> 4.8416048 | E62: ='Hist Opex Cat Yr3 New'!$M62 -> 6.6184656 | F62: ='Hist Opex Cat Yr4 New'!$M62 -> 6.68112374 | G62: ='Hist Opex Cat Yr5 New'!$M62 -> 7.118778 | H62: 30.01876736 | J62: =SUM('Hist Opex Cat Yr1 New:Hist Opex Cat Yr5 New'!O62) -> 28.69332058 | L62: Refer general discussion of forecast Network Support needs in 6.4.3 of Revenue Proposal
B63: Debt Raising | C63: ='Hist Opex Cat Yr1 New'!$M63 -> 0 | D63: ='Hist Opex Cat Yr2 New'!$M63 -> 0 | E63: ='Hist Opex Cat Yr3 New'!$M63 -> 0 | F63: ='Hist Opex Cat Yr4 New'!$M63 -> 0 | G63: ='Hist Opex Cat Yr5 New'!$M63 -> 0 | H63: 0 | L63: Benchmark costs included - refer Section 6.6.10 of Revenue Proposal
B64: Self Insurance | C64: ='Hist Opex Cat Yr1 New'!$M64 -> 1.722934206 | D64: ='Hist Opex Cat Yr2 New'!$M64 -> 1.790808214 | E64: ='Hist Opex Cat Yr3 New'!$M64 -> 1.873509265 | F64: ='Hist Opex Cat Yr4 New'!$M64 -> 1.92330986 | G64: ='Hist Opex Cat Yr5 New'!$M64 -> 2.032656372 | H64: 9.343217917 | J64: =SUM('Hist Opex Cat Yr1 New:Hist Opex Cat Yr5 New'!O64) -> 9.343217917 | L64: Benchmark costs included - refer Section 6.6.11 of Revenue Proposal
B65: TOTAL OTHER OPEX | C65: =SUM(C62:C64) -> 6.481729426 | D65: =SUM(D62:D64) -> 6.632413014 | E65: 8.491974865 | F65: 8.6044336 | G65: 9.151434372 | H65: 39.36198528 | J65: =SUM(J62:J64) -> 38.03653849
B68: Grand Total | C68: =C65+C59 -> 54.82634358 | D68: =D65+D59 -> 57.55479396 | E68: 64.27989521 | F68: 73.10293032 | G68: 74.45143474 | H68: 324.2153978 | J68: =J65+J59 -> 321.5529967
B70: Revenue Cap Allowance | C70: ='Hist Opex Cat Yr1 New'!M70 -> 56.54526841 | D70: ='Hist Opex Cat Yr2 New'!M70 -> 59.97971366 | E70: ='Hist Opex Cat Yr3 New'!M70 -> 64.08013443 | F70: ='Hist Opex Cat Yr4 New'!M70 -> 68.13 | G70: ='Hist Opex Cat Yr5 New'!M70 -> 72.81 | H70: =SUM(C70:G70) -> 321.5451165
B72: Revenue Cap Allowance excludes debt raising cost
B74: 1 Total Maintenance Labour is the total combination of all Field Maintenance Items
B75: 2Total Maintenance Non Labour is total combination of all Field Maintenance Items
B76: 3The Total Other are all costs sourced from the opex line items including and below Field Support.
B77: Labour includes the labour component of both in-house and external maintenance service providers.

Sheet Hist Opex Cat Yr1 New
D1: Current Reporting Format 2008/09 to 2012/13
D2: Home | F2: Link to Opex instructions - Table 6.1
B3: 1.3 HISTORIC OPEX by expenditure category
B4: for the year ended 30 June 2009 | D4: -1 | E4: -1 | F4: -1
B5: ($m, nominal) | D5: Full Year Ended 30 June 2009
D6: Field Maintenance | G6: Operational Refurbishment | I6: Network Monitoring & Control | J6: Support / Corporate
D7: Routine | E7: Condition-Based | F7: Corrective | H7: Maintenance Support | J7: Network | K7: Non-Network | M7: TOTAL | O7: Revenue Cap Allowance
B8: Direct Operations & Maintenance
B9: Maintenance
B10: Communications
B11: Labour | D11: 0.4499362448 | E11: 0 | F11: 0.2157878984 | G11: 0.06116527497 | M11: =SUM(D11:K11) -> 0.7268894182
B12: Non Labour | D12: =0.280063755194339+0.624547 -> 0.9046107552 | E12: 0 | F12: 0.004212101566 | G12: 0.05883472503 | M12: =SUM(D12:K12) -> 0.9676575818
B13: Sub-Totals | D13: =SUM(D11:D12) -> 1.354547 | E13: =SUM(E11:E12) -> 0 | F13: 0.22 | G13: 0.12 | H13: 0 | I13: 0 | J13: 0 | K13: 0 | M13: 1.694547 | O13: 1.684790216
B14: Lines
B15: Labour | D15: 0.4782031607 | E15: 0 | F15: 0.6229106971 | G15: 0.9960830771 | M15: 2.097196935
B16: Non Labour | D16: 0.5817968393 | E16: 0 | F16: 0.5870893029 | G16: 1.263916923 | M16: 2.432803065
B17: Sub-Totals | D17: =SUM(D15:D16) -> 1.06 | E17: =SUM(E15:E16) -> 0 | F17: =SUM(F15:F16) -> 1.21 | G17: =SUM(G15:G16) -> 2.26 | H17: =SUM(H15:H16) -> 0 | I17: =SUM(I15:I16) -> 0 | J17: =SUM(J15:J16) -> 0 | K17: =SUM(K15:K16) -> 0 | M17: 4.53 | O17: 6.2546897
B18: Secondary Systems
B19: Labour | D19: 0.3574835918 | E19: 0 | F19: 0.6374926362 | G19: 0.4630574589 | M19: 1.458033687
B20: Non Labour | D20: 0.2225164082 | E20: 0 | F20: 0.07250736384 | G20: 0.2969425411 | M20: 0.5919663132
B21: Sub-Totals | D21: =SUM(D19:D20) -> 0.58 | E21: =SUM(E19:E20) -> 0 | F21: =SUM(F19:F20) -> 0.71 | G21: =SUM(G19:G20) -> 0.76 | H21: =SUM(H19:H20) -> 0 | I21: =SUM(I19:I20) -> 0 | J21: =SUM(J19:J20) -> 0 | K21: =SUM(K19:K20) -> 0 | M21: 2.05 | O21: 2.069788403
B22: Substations
B23: Labour | D23: =2.42842301991001+0.482156 -> 2.91057902 | E23: 0.1869304415 | F23: =3.15314198873271+0.14846 -> 3.301601989 | G23: 0.92520626 | M23: 7.32431771
B24: Non Labour | D24: 1.51157698 | E24: 0.03306955849 | F24: 0.3668580113 | G24: =1.50479374001824+0.110716+0.024444 -> 1.63995374 | M24: 3.55145829
B25: Sub-Totals | D25: =SUM(D23:D24) -> 4.422156 | E25: =SUM(E23:E24) -> 0.22 | F25: =SUM(F23:F24) -> 3.66846 | G25: =SUM(G23:G24) -> 2.56516 | H25: =SUM(H23:H24) -> 0 | I25: =SUM(I23:I24) -> 0 | J25: =SUM(J23:J24) -> 0 | K25: =SUM(K23:K24) -> 0 | M25: 10.875776 | O25: 9.832776205
B26: Easements
B27: Labour | D27: 1.071473486 | E27: 0 | F27: 0.00207 | G27: 0 | M27: 1.073543486
B28: Non Labour | D28: 0.3485265144 | E28: 0 | F28: 0 | G28: 0.1 | M28: 0.4485265144
B29: Sub-Totals | D29: =SUM(D27:D28) -> 1.42 | E29: =SUM(E27:E28) -> 0 | F29: =SUM(F27:F28) -> 0.00207 | G29: =SUM(G27:G28) -> 0.1 | H29: =SUM(H27:H28) -> 0 | I29: =SUM(I27:I28) -> 0 | J29: =SUM(J27:J28) -> 0 | K29: =SUM(K27:K28) -> 0 | M29: 1.52207 | O29: 1.079293946
B30: Summary
B31: Sub-Total Labour | D31: =D11+D15+D19+D23+D27 -> 5.267675503 | E31: =E11+E15+E19+E23+E27 -> 0.1869304415 | F31: 4.77986322 | G31: 2.445512071 | H31: 0 | I31: 0 | J31: 0 | K31: 0 | M31: 12.67998124
B32: Sub-Total Non Labour | D32: =D12+D16+D20+D24+D28 -> 3.569027497 | E32: =E12+E16+E20+E24+E28 -> 0.03306955849 | F32: 1.03066678 | G32: 3.359647929 | H32: 0 | I32: 0 | J32: 0 | K32: 0 | M32: 7.992411764
B33: Total Maintenance | D33: =D32+D31 -> 8.836703 | E33: =E32+E31 -> 0.22 | F33: 5.81053 | G33: 5.80516 | H33: 0 | I33: 0 | J33: 0 | K33: 0 | M33: 20.672393 | O33: 20.92133847
B34: Field Support
B35: Maintenance Support | H35: 4.637425155 | M35: 4.637425155 | O35: 6.408764608
B36: Local Taxes & Licences | H36: 3.64198612 | M36: 3.64198612 | O36: 1.781515709
B37: Total Field Support | D37: =SUM(D35:D36) -> 0 | E37: =SUM(E35:E36) -> 0 | F37: =SUM(F35:F36) -> 0 | G37: =SUM(G35:G36) -> 0 | H37: =SUM(H35:H36) -> 8.279411275 | I37: =SUM(I35:I36) -> 0 | J37: =SUM(J35:J36) -> 0 | K37: =SUM(K35:K36) -> 0 | M37: 8.279411275 | O37: 8.190280317
B38: Operations
B39: Network Operations | I39: 5.465422023 | J39: 0 | K39: 0 | M39: 5.465422023 | O39: 1.361625875
B40: Asset Monitoring | I40: 1.82963143 | J40: 0 | K40: 0 | M40: 1.82963143 | O40: 0.6447208964
B41: Total Operations | D41: =SUM(D39:D40) -> 0 | E41: =SUM(E39:E40) -> 0 | F41: =SUM(F39:F40) -> 0 | G41: =SUM(G39:G40) -> 0 | H41: =SUM(H39:H40) -> 0 | I41: =SUM(I39:I40) -> 7.295053453 | J41: =SUM(J39:J40) -> 0 | K41: =SUM(K39:K40) -> 0 | M41: 7.295053453 | O41: 2.006346771
B42: Total Direct Operations & Maintenance | D42: =D41+D33+D37 -> 8.836703 | E42: =E41+E33+E37 -> 0.22 | F42: 5.81053 | G42: 5.80516 | H42: 8.279411275 | I42: 7.295053453 | J42: 0 | K42: 0 | M42: 36.24685773 | O42: 31.11796556
B43: Other Controllable
B44: Asset Manager Support
B45: Grid Planning | J45: 2.713317876 | K45: 0 | M45: 2.713317876 | O45: 1.039027144
B46: Project Support | J46: 3.343500357 | K46: 0 | M46: 3.343500357 | O46: 2.911262045
B47: IT Support | J47: 0 | K47: 0.7281546932 | M47: 0.7281546932 | O47: 1.752788653
B48: Customer & Regulatory Support | J48: 0.6891018715 | K48: 0 | M48: 0.6891018715 | O48: 0.6143768702
B49: Sub-Totals | D49: =SUM(D45:D48) -> 0 | E49: =SUM(E45:E48) -> 0 | F49: 0 | G49: 0 | H49: 0 | I49: 0 | J49: 6.745920104 | K49: 0.7281546932 | M49: 7.474074798 | O49: 6.317454713
B50: Corporate Support
A51: -1 | B51: Insurance | J51: 0 | K51: 1.829 | M51: 1.829 | O51: =4.201872942325-K64 -> 2.478938736
A52: -1 | B52: Corporate Support | J52: 0 | K52: 2.794681624 | M52: 2.794681624 | O52: 10.07301716
B53: Sub-Totals | D53: =SUM(D51:D52) -> 0 | E53: =SUM(E51:E52) -> 0 | F53: =SUM(F51:F52) -> 0 | G53: =SUM(G51:G52) -> 0 | H53: =SUM(H51:H52) -> 0 | I53: =SUM(I51:I52) -> 0 | J53: =SUM(J51:J52) -> 0 | K53: =SUM(K51:K52) -> 4.623681624 | M53: 4.623681624 | O53: =O52+O51 -> 12.5519559
B54: Total Other Controllable | D54: =D53+D49 -> 0 | E54: =E53+E49 -> 0 | F54: 0 | G54: 0 | H54: 0 | I54: 0 | J54: 6.745920104 | K54: 5.351836317 | M54: 12.09775642 | O54: =O53+O49 -> 18.86941061
B55: Summary | M55: 0
B56: Total Maintenance Labour1 | D56: =D31 -> 5.267675503 | E56: =E31 -> 0.1869304415 | F56: 4.77986322 | G56: 2.445512071 | H56: 0 | I56: 0 | J56: 0 | K56: 0 | M56: 12.67998124
B57: Total Maintenance Non labour2 | D57: =D32 -> 3.569027497 | E57: =E32 -> 0.03306955849 | F57: 1.03066678 | G57: 3.359647929 | H57: 0 | I57: 0 | J57: 0 | K57: 0 | M57: 7.992411764 | O57: =O42 -> 31.11796556
B58: Total Other3 | D58: =D54+D41+D37 -> 0 | E58: =E54+E41+E37 -> 0 | F58: 0 | G58: 0 | H58: 8.279411275 | I58: 7.295053453 | J58: 6.745920104 | K58: 5.351836317 | M58: 27.67222115 | O58: =O54 -> 18.86941061
B59: TOTAL CONTROLLABLE OPEX | D59: =SUM(D56:D58) -> 8.836703 | E59: =SUM(E56:E58) -> 0.22 | F59: 5.81053 | G59: 5.80516 | H59: 8.279411275 | I59: 7.295053453 | J59: 6.745920104 | K59: 5.351836317 | M59: 48.34461415 | O59: =SUM(O56:O58) -> 49.98737617
B61: Other Opex
A62: -2 | B62: Network Support | J62: 4.75879522 | M62: =SUM(D62:K62) -> 4.75879522 | O62: 4.834958031
B63: Debt Raising | M63: 0
B64: Self Insurance | K64: 1.722934206 | M64: 1.722934206 | O64: =K64 -> 1.722934206
B65: TOTAL OTHER OPEX | D65: =SUM(D62:D64) -> 0 | E65: 0 | F65: 0 | G65: 0 | H65: 0 | I65: 0 | J65: =SUM(J62:J64) -> 4.75879522 | K65: =SUM(K62:K64) -> 1.722934206 | M65: =SUM(M62:M64) -> 6.481729426 | O65: =SUM(O62:O64) -> 6.557892236
B68: Grand Total | D68: =D65+D59 -> 8.836703 | E68: =E65+E59 -> 0.22 | F68: 5.81053 | G68: 5.80516 | H68: 8.279411275 | I68: 7.295053453 | J68: 11.50471532 | K68: 7.074770523 | M68: 54.82634358 | O68: =O59+O65 -> 56.54526841
B70: Revenue Cap Allowance | D70: 8.32747958 | E70: 0.123807387 | F70: 4.860280279 | G70: 7.609771224 | H70: =O37 -> 8.190280317 | I70: =O41 -> 2.006346771 | J70: =O45+O46+O48+O62 -> 9.39962409 | K70: =O53+O47+O64 -> 16.02767876 | M70: 56.54526841
B72: Revenue Cap Allowance excludes debt raising cost
B78: 1 Total Maintenance Labour is the total combination of all Field Maintenance items
B79: 2Total Maintenance Non Labour is total combination of all Field Maintenance items
B80: 3The Total Other are all costs sourced from the opex line items including and below Field Support
B81: Labour includes the labour component of both in-house and external maintenance service providers

Sheet Hist Opex Cat Yr2 New
D1: Current Reporting Format 2008/09 to 2012/13
D2: Home | F2: Link to Opex instructions - Table 6.1
B3: 1.4 HISTORIC OPEX by expenditure category
B4: for the year ended 30 June 2010 | D4: ='Hist Opex Cat Yr1 New'!D4 -> -1 | E4: ='Hist Opex Cat Yr1 New'!E4 -> -1 | F4: ='Hist Opex Cat Yr1 New'!F4 -> -1 | G4: ='Hist Opex Cat Yr1 New'!G4 -> 0 | H4: ='Hist Opex Cat Yr1 New'!H4 -> 0 | I4: ='Hist Opex Cat Yr1 New'!I4 -> 0 | J4: ='Hist Opex Cat Yr1 New'!J4 -> 0 | K4: ='Hist Opex Cat Yr1 New'!K4 -> 0
B5: ($m, nominal) | D5: Full Year Ended 30 June 2010
D6: Field Maintenance | G6: Operational Refurbishment | I6: Network Monitoring & Control | J6: Support / Corporate | O6: Revenue Cap Allowance
D7: Routine | E7: Condition-Based | F7: Corrective | H7: Maintenance Support | J7: Network | K7: Non-Network | M7: TOTAL
B8: Direct Operations & Maintenance
B9: Maintenance
B10: Communications
A11: ='Hist Opex Cat Yr1 New'!A11 -> 0 | B11: Labour | D11: 0.5296961631 | E11: 0 | F11: 0.1864374236 | G11: 0.2074342537 | M11: =SUM(D11:K11) -> 0.9235678404
A12: ='Hist Opex Cat Yr1 New'!A12 -> 0 | B12: Non Labour | D12: =0.313303836876439+0.357896+0.666147-0.843 -> 0.4943468369 | E12: 0 | F12: 0.003562576389 | G12: 0.1925657463 | M12: =SUM(D12:K12) -> 0.6904751596
A13: ='Hist Opex Cat Yr1 New'!A13 -> 0 | B13: Sub-Totals | D13: =SUM(D11:D12) -> 1.024043 | E13: =SUM(E11:E12) -> 0 | F13: 0.19 | G13: 0.4 | H13: 0 | I13: 0 | J13: 0 | K13: 0 | M13: 1.614043 | O13: 2.033858684
A14: ='Hist Opex Cat Yr1 New'!A14 -> 0 | B14: Lines
A15: ='Hist Opex Cat Yr1 New'!A15 -> 0 | B15: Labour | D15: 0.7647836821 | E15: 0 | F15: 0.884195573 | G15: 0.9237266193 | M15: 2.572705874
A16: ='Hist Opex Cat Yr1 New'!A16 -> 0 | B16: Non Labour | D16: 0.8852163179 | E16: 0 | F16: 0.815804427 | G16: 1.286273381 | M16: 2.987294126
A17: ='Hist Opex Cat Yr1 New'!A17 -> 0 | B17: Sub-Totals | D17: =SUM(D15:D16) -> 1.65 | E17: =SUM(E15:E16) -> 0 | F17: 1.7 | G17: 2.21 | H17: 0 | I17: 0 | J17: 0 | K17: 0 | M17: 5.56 | O17: 6.120111901
A18: ='Hist Opex Cat Yr1 New'!A18 -> 0 | B18: Secondary Systems
A19: ='Hist Opex Cat Yr1 New'!A19 -> 0 | B19: Labour | D19: 0.3393071508 | E19: 0 | F19: 0.7468435534 | G19: 0.8524405509 | M19: 1.938591255
A20: ='Hist Opex Cat Yr1 New'!A20 -> 0 | B20: Non Labour | D20: 0.2006928492 | E20: 0 | F20: 0.08315644662 | G20: 0.5275594491 | M20: 0.811408745
A21: ='Hist Opex Cat Yr1 New'!A21 -> 0 | B21: Sub-Totals | D21: =SUM(D19:D20) -> 0.54 | E21: =SUM(E19:E20) -> 0 | F21: 0.83 | G21: 1.38 | H21: 0 | I21: 0 | J21: 0 | K21: 0 | M21: 2.75 | O21: 2.439503248
A22: ='Hist Opex Cat Yr1 New'!A22 -> 0 | B22: Substations
A23: ='Hist Opex Cat Yr1 New'!A23 -> 0 | B23: Labour | D23: 2.381433521 | E23: 0 | F23: 3.575331055 | G23: 2.050045712 | M23: 8.006810288
A24: ='Hist Opex Cat Yr1 New'!A24 -> 0 | B24: Non Labour | D24: 1.408566479 | E24: 0 | F24: 0.6346689448 | G24: 1.499954288 | M24: 3.543189712
A25: ='Hist Opex Cat Yr1 New'!A25 -> 0 | B25: Sub-Totals | D25: =SUM(D23:D24) -> 3.79 | E25: =SUM(E23:E24) -> 0 | F25: 4.21 | G25: 3.55 | H25: 0 | I25: 0 | J25: 0 | K25: 0 | M25: 11.55 | O25: 10.37252039
A26: ='Hist Opex Cat Yr1 New'!A26 -> 0 | B26: Easements
A27: ='Hist Opex Cat Yr1 New'!A27 -> 0 | B27: Labour | D27: 1.210230595 | E27: 0 | F27: 0 | G27: 0 | M27: 1.210230595
A28: ='Hist Opex Cat Yr1 New'!A28 -> 0 | B28: Non Labour | D28: 0.3797694053 | E28: 0 | F28: 0.05 | G28: 0 | M28: 0.4297694053
A29: ='Hist Opex Cat Yr1 New'!A29 -> 0 | B29: Sub-Totals | D29: =SUM(D27:D28) -> 1.59 | E29: =SUM(E27:E28) -> 0 | F29: 0.05 | G29: 0 | H29: 0 | I29: 0 | J29: 0 | K29: 0 | M29: 1.64 | O29: 1.128086507
A30: ='Hist Opex Cat Yr1 New'!A30 -> 0 | B30: Summary
A31: ='Hist Opex Cat Yr1 New'!A31 -> 0 | B31: Sub-Total Labour | D31: =D11+D15+D19+D23+D27 -> 5.225451112 | E31: =E11+E15+E19+E23+E27 -> 0 | F31: 5.392807605 | G31: 4.033647136 | H31: 0 | I31: 0 | J31: 0 | K31: 0 | M31: 14.65190585
A32: ='Hist Opex Cat Yr1 New'!A32 -> 0 | B32: Sub-Total Non Labour | D32: =D12+D16+D20+D24+D28 -> 3.368591888 | E32: 0 | F32: 1.587192395 | G32: 3.506352864 | H32: 0 | I32: 0 | J32: 0 | K32: 0 | M32: 8.462137148
A33: ='Hist Opex Cat Yr1 New'!A33 -> 0 | B33: Total Maintenance | D33: =D32+D31 -> 8.594043 | E33: =E32+E31 -> 0 | F33: 6.98 | G33: 7.54 | H33: 0 | I33: 0 | J33: 0 | K33: 0 | M33: 23.114043 | O33: =O29+O25+O21+O17+O13 -> 22.09408073
A34: ='Hist Opex Cat Yr1 New'!A34 -> 0 | B34: Field Support
A35: ='Hist Opex Cat Yr1 New'!A35 -> 0 | B35: Field Support | H35: 4.553722315 | M35: 4.553722315 | O35: 6.844942963
A36: ='Hist Opex Cat Yr1 New'!A36 -> 0 | B36: Direct Charges | H36: 3.60482554 | M36: 3.60482554 | O36: 1.963654288
A37: ='Hist Opex Cat Yr1 New'!A37 -> 0 | B37: Total Field Support | D37: =SUM(D35:D36) -> 0 | E37: =SUM(E35:E36) -> 0 | F37: 0 | G37: 0 | H37: 8.158547855 | I37: 0 | J37: 0 | K37: 0 | M37: 8.158547855 | O37: =SUM(O35:O36) -> 8.808597251
A38: ='Hist Opex Cat Yr1 New'!A38 -> 0 | B38: Operations
A39: ='Hist Opex Cat Yr1 New'!A39 -> 0 | B39: Network Switching | I39: 5.013832942 | M39: 5.013832942 | O39: 1.45800976
A40: ='Hist Opex Cat Yr1 New'!A40 -> 0 | B40: Asset Monitoring | I40: 1.678455258 | M40: 1.678455258 | O40: 0.6910630597
A41: ='Hist Opex Cat Yr1 New'!A41 -> 0 | B41: Total Operations | D41: =SUM(D39:D40) -> 0 | E41: =SUM(E39:E40) -> 0 | F41: 0 | G41: 0 | H41: 0 | I41: 6.692288201 | J41: 0 | K41: 0 | M41: 6.692288201 | O41: =SUM(O39:O40) -> 2.14907282
A42: ='Hist Opex Cat Yr1 New'!A42 -> 0 | B42: Total Direct Operations & Maintenance | D42: =D41+D33+D37 -> 8.594043 | E42: =E41+E33+E37 -> 0 | F42: 6.98 | G42: 7.54 | H42: 8.158547855 | I42: 6.692288201 | J42: 0 | K42: 0 | M42: 37.96487906 | O42: 33.0517508
A43: ='Hist Opex Cat Yr1 New'!A43 -> 0 | B43: Other Controllable
A44: ='Hist Opex Cat Yr1 New'!A44 -> 0 | B44: Asset Manager Support
A45: ='Hist Opex Cat Yr1 New'!A45 -> 0 | B45: Grid Planning | J45: 3.259929096 | K45: 0 | M45: 3.259929096 | O45: 1.095177417
A46: ='Hist Opex Cat Yr1 New'!A46 -> 0 | B46: Project Support | J46: 3.219342373 | K46: 0 | M46: 3.219342373 | O46: 3.08237067
A47: ='Hist Opex Cat Yr1 New'!A47 -> 0 | B47: IT Support | K47: 0.5230948932 | M47: 0.5230948932 | O47: 1.823485666
A48: ='Hist Opex Cat Yr1 New'!A48 -> 0 | B48: Customer & Regulatory Support | J48: 0.5992526055 | K48: 0 | M48: 0.5992526055 | O48: 0.6460598596
A49: ='Hist Opex Cat Yr1 New'!A49 -> 0 | B49: Sub-Totals | D49: =SUM(D45:D48) -> 0 | E49: =SUM(E45:E48) -> 0 | F49: 0 | G49: 0 | H49: 0 | I49: 0 | J49: 7.078524074 | K49: 0.5230948932 | M49: 7.601618967 | O49: =SUM(O45:O48) -> 6.647093613
A50: ='Hist Opex Cat Yr1 New'!A50 -> 0 | B50: Corporate Support
A51: ='Hist Opex Cat Yr1 New'!A51 -> -1 | B51: Insurance | J51: 0 | K51: 1.883 | M51: 1.883 | O51: =4.54907750989966-K64 -> 2.758269296
A52: ='Hist Opex Cat Yr1 New'!A52 -> -1 | B52: Corporate Support | J52: 0 | K52: 3.472882927 | M52: 3.472882927 | O52: 10.59660152
A53: ='Hist Opex Cat Yr1 New'!A53 -> 0 | B53: Sub-Totals | D53: =SUM(D51:D52) -> 0 | E53: =SUM(E51:E52) -> 0 | F53: 0 | G53: 0 | H53: 0 | I53: 0 | J53: 0 | K53: 5.355882927 | M53: 5.355882927 | O53: =SUM(O51:O52) -> 13.35487081
A54: ='Hist Opex Cat Yr1 New'!A54 -> 0 | B54: Total Other Controllable | D54: =D53+D49 -> 0 | E54: =E53+E49 -> 0 | F54: 0 | G54: 0 | H54: 0 | I54: 0 | J54: 7.078524074 | K54: 5.87897782 | M54: 12.95750189 | O54: =O53+O49 -> 20.00196443
A55: ='Hist Opex Cat Yr1 New'!A55 -> 0 | B55: Summary | M55: 0
A56: ='Hist Opex Cat Yr1 New'!A56 -> 0 | B56: Total Maintenance Labour1 | D56: =D31 -> 5.225451112 | E56: =E31 -> 0 | F56: 5.392807605 | G56: 4.033647136 | H56: 0 | I56: 0 | J56: 0 | K56: 0 | M56: 14.65190585
A57: ='Hist Opex Cat Yr1 New'!A57 -> 0 | B57: Total Maintenance Non labour2 | D57: =D32 -> 3.368591888 | E57: =E32 -> 0 | F57: 1.587192395 | G57: 3.506352864 | H57: 0 | I57: 0 | J57: 0 | K57: 0 | M57: 8.462137148
A58: ='Hist Opex Cat Yr1 New'!A58 -> 0 | B58: Total Other3 | D58: =D54+D41+D37 -> 0 | E58: =E54+E41+E37 -> 0 | F58: 0 | G58: 0 | H58: 8.158547855 | I58: 6.692288201 | J58: 7.078524074 | K58: 5.87897782 | M58: 27.80833795
A59: ='Hist Opex Cat Yr1 New'!A59 -> 0 | B59: TOTAL CONTROLLABLE OPEX | D59: =SUM(D56:D58) -> 8.594043 | E59: =SUM(E56:E58) -> 0 | F59: 6.98 | G59: 7.54 | H59: 8.158547855 | I59: 6.692288201 | J59: 7.078524074 | K59: 5.87897782 | M59: 50.92238095 | O59: =O54+O42 -> 53.05371523
A60: ='Hist Opex Cat Yr1 New'!A60 -> 0
A61: ='Hist Opex Cat Yr1 New'!A61 -> 0 | B61: Other Opex
A62: ='Hist Opex Cat Yr1 New'!A62 -> -2 | B62: Network Support | J62: 4.8416048 | M62: =SUM(D62:K62) -> 4.8416048 | O62: 5.135190219
B63: Debt Raising | M63: 0
B64: Self Insurance | K64: 1.790808214 | M64: 1.790808214 | O64: =M64 -> 1.790808214
A65: ='Hist Opex Cat Yr1 New'!A65 -> 0 | B65: TOTAL OTHER OPEX | D65: =SUM(D62:D64) -> 0 | E65: 0 | F65: 0 | G65: 0 | H65: 0 | I65: 0 | J65: =SUM(J62:J64) -> 4.8416048 | K65: =SUM(K62:K64) -> 1.790808214 | M65: =SUM(M62:M64) -> 6.632413014 | O65: =SUM(O62:O64) -> 6.925998433
B68: Grand Total | D68: =D65+D59 -> 8.594043 | E68: =E65+E59 -> 0 | F68: 6.98 | G68: 7.54 | H68: 8.158547855 | I68: 6.692288201 | J68: 11.92012887 | K68: 7.669786034 | M68: 57.55479396 | O68: =O65+O59 -> 59.97971366
B70: Revenue Cap Allowance | D70: 9.251209041 | E70: 0.1356837014 | F70: 5.314252012 | G70: 7.392935975 | H70: =O37 -> 8.808597251 | I70: =O41 -> 2.14907282 | J70: =O45+O46+O48+O62 -> 9.958798165 | K70: =O53+O47+O64 -> 16.96916469 | M70: =SUM(D70:K70) -> 59.97971366
B72: Revenue Cap Allowance excludes debt raising cost
B74: 1 Total Maintenance Labour is the total combination of all Field Maintenance items
B75: 2Total Maintenance Non Labour is total combination of all Field Maintenance items
B76: 3The Total Other are all costs sourced from the opex line items including and below Field Support
B77: Labour includes the labour component of both in-house and external maintenance service providers

Sheet Hist Opex Cat Yr3 New
D1: Current Reporting Format 2008/09 to 2012/13
D2: Home | F2: Link to Opex instructions - Table 6.1
B3: 1.5 HISTORIC OPEX by expenditure category
B4: for the year ended 30 June 2011 | D4: ='Hist Opex Cat Yr1 New'!D4 -> -1 | E4: ='Hist Opex Cat Yr1 New'!E4 -> -1 | F4: ='Hist Opex Cat Yr1 New'!F4 -> -1 | G4: ='Hist Opex Cat Yr1 New'!G4 -> 0 | H4: ='Hist Opex Cat Yr1 New'!H4 -> 0 | I4: ='Hist Opex Cat Yr1 New'!I4 -> 0 | J4: ='Hist Opex Cat Yr1 New'!J4 -> 0 | K4: ='Hist Opex Cat Yr1 New'!K4 -> 0
B5: ($m, nominal) | D5: Full Year Ended 30 June 2011
D6: Field Maintenance | G6: Operational Refurbishment | I6: Network Monitoring & Control | J6: Support / Corporate
D7: Routine | E7: Condition-Based | F7: Corrective | H7: Maintenance Support | J7: Network | K7: Non-Network | M7: TOTAL | O7: Revenue Cap Allowance
B8: Direct Operations & Maintenance
B9: Maintenance
B10: Communications
A11: ='Hist Opex Cat Yr1 New'!A11 -> 0 | B11: Labour | D11: 0.6196332944 | E11: 0 | F11: 0 | G11: 0.2417533271 | M11: =SUM(D11:K11) -> 0.8613866215
A12: ='Hist Opex Cat Yr1 New'!A12 -> 0 | B12: Non Labour | D12: =0.313303836876439+0.969608+0.050327-0.9329 -> 0.4003388369 | E12: 0 | F12: 0 | G12: 0.2172466729 | M12: =SUM(D12:K12) -> 0.6175855098
A13: ='Hist Opex Cat Yr1 New'!A13 -> 0 | B13: Sub-Totals | D13: =SUM(D11:D12) -> 1.019972131 | E13: =SUM(E11:E12) -> 0 | F13: 0 | G13: 0.459 | H13: 0 | I13: 0 | J13: 0 | K13: 0 | M13: 1.478972131 | O13: 2.244598792
A14: ='Hist Opex Cat Yr1 New'!A14 -> 0 | B14: Lines
A15: ='Hist Opex Cat Yr1 New'!A15 -> 0 | B15: Labour | D15: 1.185530352 | E15: 0 | F15: 1.040594263 | G15: 2.136762822 | M15: 4.362887437
A16: ='Hist Opex Cat Yr1 New'!A16 -> 0 | B16: Non Labour | D16: 1.311469648 | E16: 0 | F16: 0.9454057367 | G16: 2.880237178 | M16: 5.137112563
A17: ='Hist Opex Cat Yr1 New'!A17 -> 0 | B17: Sub-Totals | D17: =SUM(D15:D16) -> 2.497 | E17: =SUM(E15:E16) -> 0 | F17: 1.986 | G17: 5.017 | H17: 0 | I17: 0 | J17: 0 | K17: 0 | M17: 9.5 | O17: 6.053279408
A18: ='Hist Opex Cat Yr1 New'!A18 -> 0 | B18: Secondary Systems
A19: ='Hist Opex Cat Yr1 New'!A19 -> 0 | B19: Labour | D19: 0.406275026 | E19: 0 | F19: 0.8867748265 | G19: 0.01938607021 | M19: 1.312435923
A20: ='Hist Opex Cat Yr1 New'!A20 -> 0 | B20: Non Labour | D20: 0.229724974 | E20: 0 | F20: 0.0972251735 | G20: 0.01161392979 | M20: 0.3385640773
A21: ='Hist Opex Cat Yr1 New'!A21 -> 0 | B21: Sub-Totals | D21: =SUM(D19:D20) -> 0.636 | E21: =SUM(E19:E20) -> 0 | F21: 0.984 | G21: 0.031 | H21: 0 | I21: 0 | J21: 0 | K21: 0 | M21: 1.651 | O21: 2.629004967
A22: ='Hist Opex Cat Yr1 New'!A22 -> 0 | B22: Substations
A23: ='Hist Opex Cat Yr1 New'!A23 -> 0 | B23: Labour | D23: =3.46803005715744+0.342086-0.009517 -> 3.800599057 | E23: 0 | F23: 3.42016993 | G23: 1.377047449 | M23: 8.597816436
A24: ='Hist Opex Cat Yr1 New'!A24 -> 0 | B24: Non Labour | D24: 1.960969943 | E24: 0 | F24: 0.5978300701 | G24: 0.9509525505 | M24: 3.509752564
A25: ='Hist Opex Cat Yr1 New'!A25 -> 0 | B25: Sub-Totals | D25: =SUM(D23:D24) -> 5.761569 | E25: =SUM(E23:E24) -> 0 | F25: 4.018 | G25: 2.328 | H25: 0 | I25: 0 | J25: 0 | K25: 0 | M25: 12.107569 | O25: 11.13518244
A26: ='Hist Opex Cat Yr1 New'!A26 -> 0 | B26: Easements
A27: ='Hist Opex Cat Yr1 New'!A27 -> 0 | B27: Labour | D27: 1.186665845 | E27: 0 | F27: 0 | G27: 0 | M27: 1.186665845
A28: ='Hist Opex Cat Yr1 New'!A28 -> 0 | B28: Non Labour | D28: 0.3603341554 | E28: 0 | F28: 0.048 | G28: 0 | M28: 0.4083341554
A29: ='Hist Opex Cat Yr1 New'!A29 -> 0 | B29: Sub-Totals | D29: =SUM(D27:D28) -> 1.547 | E29: =SUM(E27:E28) -> 0 | F29: 0.048 | G29: 0 | H29: 0 | I29: 0 | J29: 0 | K29: 0 | M29: 1.595 | O29: 1.181814629
A30: ='Hist Opex Cat Yr1 New'!A30 -> 0 | B30: Summary
A31: ='Hist Opex Cat Yr1 New'!A31 -> 0 | B31: Sub-Total Labour | D31: =D11+D15+D19+D23+D27 -> 7.198703574 | E31: =E11+E15+E19+E23+E27 -> 0 | F31: 5.34753902 | G31: 3.774949669 | H31: 0 | I31: 0 | J31: 0 | K31: 0 | M31: 16.32119226
A32: ='Hist Opex Cat Yr1 New'!A32 -> 0 | B32: Sub-Total Non Labour | D32: =D12+D16+D20+D24+D28 -> 4.262837557 | E32: 0 | F32: 1.68846098 | G32: 4.060050331 | H32: 0 | I32: 0 | J32: 0 | K32: 0 | M32: 10.01134887
A33: ='Hist Opex Cat Yr1 New'!A33 -> 0 | B33: Total Maintenance | D33: =D32+D31 -> 11.46154113 | E33: =E32+E31 -> 0 | F33: 7.036 | G33: 7.835 | H33: 0 | I33: 0 | J33: 0 | K33: 0 | M33: 26.33254113 | O33: =SUM(O13:O29) -> 23.24388024
A34: ='Hist Opex Cat Yr1 New'!A34 -> 0 | B34: Field Support
A35: ='Hist Opex Cat Yr1 New'!A35 -> 0 | B35: Field Support | H35: 4.72050843 | M35: 4.72050843 | O35: 7.333494812
A36: ='Hist Opex Cat Yr1 New'!A36 -> 0 | B36: Direct Charges | H36: 3.71573743 | M36: 3.71573743 | O36: 2.107917381
A37: ='Hist Opex Cat Yr1 New'!A37 -> 0 | B37: Total Field Support | D37: =SUM(D35:D36) -> 0 | E37: =SUM(E35:E36) -> 0 | F37: 0 | G37: 0 | H37: 8.43624586 | I37: 0 | J37: 0 | K37: 0 | M37: 8.43624586 | O37: =SUM(O35:O36) -> 9.441412194
A38: ='Hist Opex Cat Yr1 New'!A38 -> 0 | B38: Operations
A39: ='Hist Opex Cat Yr1 New'!A39 -> 0 | B39: Network Switching | I39: 5.321306 | M39: 5.321306 | O39: 1.565622377
A40: ='Hist Opex Cat Yr1 New'!A40 -> 0 | B40: Asset Monitoring | I40: 1.60251142 | M40: 1.60251142 | O40: 0.7427411924
A41: ='Hist Opex Cat Yr1 New'!A41 -> 0 | B41: Total Operations | D41: =SUM(D39:D40) -> 0 | E41: =SUM(E39:E40) -> 0 | F41: 0 | G41: 0 | H41: 0 | I41: 6.92381742 | J41: 0 | K41: 0 | M41: 6.92381742 | O41: =SUM(O39:O40) -> 2.308363569
A42: ='Hist Opex Cat Yr1 New'!A42 -> 0 | B42: Total Direct Operations & Maintenance | D42: =D41+D33+D37 -> 11.46154113 | E42: =E41+E33+E37 -> 0 | F42: 7.036 | G42: 7.835 | H42: 8.43624586 | I42: 6.92381742 | J42: 0 | K42: 0 | M42: 41.69260441 | O42: =O41+O37+O33 -> 34.993656
A43: ='Hist Opex Cat Yr1 New'!A43 -> 0 | B43: Other Controllable
A44: ='Hist Opex Cat Yr1 New'!A44 -> 0 | B44: Asset Manager Support
A45: ='Hist Opex Cat Yr1 New'!A45 -> 0 | B45: Grid Planning | J45: 3.31270807 | K45: 0 | M45: 3.31270807 | O45: 1.158592372
A46: ='Hist Opex Cat Yr1 New'!A46 -> 0 | B46: Project Support | J46: 4.14723285 | K46: 0 | M46: 4.14723285 | O46: 3.272851597
A47: ='Hist Opex Cat Yr1 New'!A47 -> 0 | B47: IT Support | K47: 0.50018863 | M47: 0.50018863 | O47: 1.905268524
A48: ='Hist Opex Cat Yr1 New'!A48 -> 0 | B48: Customer & Regulatory Support | J48: 0.56678326 | K48: 0 | M48: 0.56678326 | O48: 0.6817519576
A49: ='Hist Opex Cat Yr1 New'!A49 -> 0 | B49: Sub-Totals | D49: =SUM(D45:D48) -> 0 | E49: =SUM(E45:E48) -> 0 | F49: 0 | G49: 0 | H49: 0 | I49: 0 | J49: 8.02672418 | K49: 0.50018863 | M49: 8.52691281 | O49: =SUM(O45:O48) -> 7.018464451
A50: ='Hist Opex Cat Yr1 New'!A50 -> 0 | B50: Corporate Support
A51: ='Hist Opex Cat Yr1 New'!A51 -> -1 | B51: Insurance | J51: 0 | K51: 2.13992658 | M51: 2.13992658 | O51: =4.95610925570808-K64 -> 3.082599991
A52: ='Hist Opex Cat Yr1 New'!A52 -> -1 | B52: Corporate Support | J52: 0 | K52: 3.42847654 | M52: 3.42847654 | O52: 11.59661263
A53: ='Hist Opex Cat Yr1 New'!A53 -> 0 | B53: Sub-Totals | D53: =SUM(D51:D52) -> 0 | E53: =SUM(E51:E52) -> 0 | F53: 0 | G53: 0 | H53: 0 | I53: 0 | J53: 0 | K53: 5.56840312 | M53: 5.56840312 | O53: =SUM(O51:O52) -> 14.67921262
A54: ='Hist Opex Cat Yr1 New'!A54 -> 0 | B54: Total Other Controllable | D54: =D53+D49 -> 0 | E54: =E53+E49 -> 0 | F54: 0 | G54: 0 | H54: 0 | I54: 0 | J54: 8.02672418 | K54: 6.06859175 | M54: 14.09531593 | O54: =O53+O49 -> 21.69767707
A55: ='Hist Opex Cat Yr1 New'!A55 -> 0 | B55: Summary | M55: 0
A56: ='Hist Opex Cat Yr1 New'!A56 -> 0 | B56: Total Maintenance Labour1 | D56: =D31 -> 7.198703574 | E56: =E31 -> 0 | F56: 5.34753902 | G56: 3.774949669 | H56: 0 | I56: 0 | J56: 0 | K56: 0 | M56: 16.32119226
A57: ='Hist Opex Cat Yr1 New'!A57 -> 0 | B57: Total Maintenance Non labour2 | D57: =D32 -> 4.262837557 | E57: =E32 -> 0 | F57: 1.68846098 | G57: 4.060050331 | H57: 0 | I57: 0 | J57: 0 | K57: 0 | M57: 10.01134887
A58: ='Hist Opex Cat Yr1 New'!A58 -> 0 | B58: Total Other3 | D58: =D54+D41+D37 -> 0 | E58: =E54+E41+E37 -> 0 | F58: 0 | G58: 0 | H58: 8.43624586 | I58: 6.92381742 | J58: 8.02672418 | K58: 6.06859175 | M58: 29.45537921
A59: ='Hist Opex Cat Yr1 New'!A59 -> 0 | B59: TOTAL CONTROLLABLE OPEX | D59: =SUM(D56:D58) -> 11.46154113 | E59: =SUM(E56:E58) -> 0 | F59: 7.036 | G59: 7.835 | H59: 8.43624586 | I59: 6.92381742 | J59: 8.02672418 | K59: 6.06859175 | M59: 55.78792034 | O59: =O54+O42 -> 56.69133307
A60: ='Hist Opex Cat Yr1 New'!A60 -> 0
A61: ='Hist Opex Cat Yr1 New'!A61 -> 0 | B61: Other Opex
A62: ='Hist Opex Cat Yr1 New'!A62 -> -2 | B62: Network Support | J62: 6.6184656 | M62: =SUM(D62:K62) -> 6.6184656 | O62: 5.523172328
B63: Debt Raising | M63: 0
B64: Self Insurance | K64: 1.873509265 | M64: 1.873509265 | O64: =K64 -> 1.873509265
A65: ='Hist Opex Cat Yr1 New'!A65 -> 0 | B65: TOTAL OTHER OPEX | D65: =SUM(D62:D64) -> 0 | E65: 0 | F65: 0 | G65: 0 | H65: 0 | I65: 0 | J65: =SUM(J62:J64) -> 6.6184656 | K65: =SUM(K62:K64) -> 1.873509265 | M65: =SUM(M62:M64) -> 8.491974865 | O65: =SUM(O62:O64) -> 7.396681593
B68: Grand Total | D68: =D65+D59 -> 11.46154113 | E68: =E65+E59 -> 0 | F68: 7.036 | G68: 7.835 | H68: 8.43624586 | I68: 6.92381742 | J68: 14.64518978 | K68: 7.942101015 | M68: 64.27989521 | O68: =O65+O59 -> 64.08801467
B70: Revenue Cap Allowance | D70: 9.556 | E70: 0.15 | F70: 5.85 | G70: 7.68 | H70: =O37 -> 9.441412194 | I70: =O41 -> 2.308363569 | J70: =O45+O46+O48+O62 -> 10.63636825 | K70: =O53+O47+O64 -> 18.45799041 | M70: =SUM(D70:K70) -> 64.08013443
B72: Revenue Cap Allowance excludes debt raising cost
B74: 1 Total Maintenance Labour is the total combination of all Field Maintenance items
B75: 2Total Maintenance Non Labour is total combination of all Field Maintenance items
B76: 3The Total Other are all costs sourced from the opex line items including and below Field Support
B77: Labour includes the labour component of both in-house and external maintenance service providers

Sheet Hist Opex Cat Yr4 New
D1: Current Reporting Format 2008/09 to 2012/13
D2: Home | F2: Link to Opex instructions - Table 6.1
B3: 1.6 HISTORIC OPEX by expenditure category
B4: for the year ended 30 June 2012 | D4: ='Hist Opex Cat Yr1 New'!D4 -> -1 | E4: ='Hist Opex Cat Yr1 New'!E4 -> -1 | F4: ='Hist Opex Cat Yr1 New'!F4 -> -1 | G4: ='Hist Opex Cat Yr1 New'!G4 -> 0 | H4: ='Hist Opex Cat Yr1 New'!H4 -> 0 | I4: ='Hist Opex Cat Yr1 New'!I4 -> 0 | J4: ='Hist Opex Cat Yr1 New'!J4 -> 0 | K4: ='Hist Opex Cat Yr1 New'!K4 -> 0
B5: ($m, nominal) | D5: Full Year Ended 30 June 2012
D6: Field Maintenance | G6: Operational Refurbishment | I6: Network Monitoring & Control | J6: Support / Corporate
D7: Routine | E7: Condition-Based | F7: Corrective | H7: Maintenance Support | J7: Network | K7: Non-Network | M7: TOTAL | O7: Revenue Cap Allowance
B8: Direct Operations & Maintenance
B9: Maintenance
B10: Communications
A11: ='Hist Opex Cat Yr1 New'!A11 -> 0 | B11: Labour | D11: 0.4335817544 | F11: 0.08472108623 | G11: 0.1493314062 | M11: =SUM(D11:K11) -> 0.6676342468
A12: ='Hist Opex Cat Yr1 New'!A12 -> 0 | B12: Non Labour | D12: 1.141541556 | F12: 0.2230551438 | G12: 0.3931623138 | M12: =SUM(D12:K12) -> 1.757759013
A13: ='Hist Opex Cat Yr1 New'!A13 -> 0 | B13: Sub-Totals | D13: =SUM(D11:D12) -> 1.57512331 | E13: 0 | F13: 0.30777623 | G13: 0.54249372 | H13: 0 | I13: 0 | J13: 0 | K13: 0 | M13: 2.42539326 | O13: 2.44
A14: ='Hist Opex Cat Yr1 New'!A14 -> 0 | B14: Lines
A15: ='Hist Opex Cat Yr1 New'!A15 -> 0 | B15: Labour | D15: 0.710785117 | F15: 1.256311087 | G15: 0.8559816961 | M15: 2.8230779
A16: ='Hist Opex Cat Yr1 New'!A16 -> 0 | B16: Non Labour | D16: 2.632422493 | F16: 4.652800803 | G16: 3.170164114 | M16: 10.45538741
A17: ='Hist Opex Cat Yr1 New'!A17 -> 0 | B17: Sub-Totals | D17: =SUM(D15:D16) -> 3.34320761 | E17: 0 | F17: 5.90911189 | G17: 4.02614581 | H17: 0 | I17: 0 | J17: 0 | K17: 0 | M17: 13.27846531 | O17: 5.87
A18: ='Hist Opex Cat Yr1 New'!A18 -> 0 | B18: Secondary Systems
A19: ='Hist Opex Cat Yr1 New'!A19 -> 0 | B19: Labour | D19: 0.4376558614 | F19: 0.5337757661 | G19: 0.2342711906 | M19: 1.205702818
A20: ='Hist Opex Cat Yr1 New'!A20 -> 0 | B20: Non Labour | D20: 0.3836751586 | F20: 0.4679395839 | G20: 0.2053760594 | M20: 1.056990802
A21: ='Hist Opex Cat Yr1 New'!A21 -> 0 | B21: Sub-Totals | D21: =SUM(D19:D20) -> 0.82133102 | E21: 0 | F21: 1.00171535 | G21: 0.43964725 | H21: 0 | I21: 0 | J21: 0 | K21: 0 | M21: 2.26269362 | O21: 3.06
A22: ='Hist Opex Cat Yr1 New'!A22 -> 0 | B22: Substations
A23: ='Hist Opex Cat Yr1 New'!A23 -> 0 | B23: Labour | D23: 2.764186799 | F23: 2.096271984 | G23: 0.8538745989 | M23: 5.714333382
A24: ='Hist Opex Cat Yr1 New'!A24 -> 0 | B24: Non Labour | D24: 2.992831381 | F24: 2.269668816 | G24: 0.9245043411 | M24: 6.187004538
A25: ='Hist Opex Cat Yr1 New'!A25 -> 0 | B25: Sub-Totals | D25: =SUM(D23:D24) -> 5.75701818 | E25: 0 | F25: 4.3659408 | G25: 1.77837894 | H25: 0 | I25: 0 | J25: 0 | K25: 0 | M25: 11.90133792 | O25: 11.89
A26: ='Hist Opex Cat Yr1 New'!A26 -> 0 | B26: Easements
A27: ='Hist Opex Cat Yr1 New'!A27 -> 0 | B27: Labour | D27: 0.8070146303 | F27: 0 | M27: 0.8070146303
A28: ='Hist Opex Cat Yr1 New'!A28 -> 0 | B28: Non Labour | D28: 0.7093073497 | F28: 0 | M28: 0.7093073497
A29: ='Hist Opex Cat Yr1 New'!A29 -> 0 | B29: Sub-Totals | D29: =SUM(D27:D28) -> 1.51632198 | E29: 0 | F29: 0 | G29: 0 | H29: 0 | I29: 0 | J29: 0 | K29: 0 | M29: 1.51632198 | O29: 1.21
A30: ='Hist Opex Cat Yr1 New'!A30 -> 0 | B30: Summary
A31: ='Hist Opex Cat Yr1 New'!A31 -> 0 | B31: Sub-Total Labour | D31: =D11+D15+D19+D23+D27 -> 5.153224162 | E31: =E11+E15+E19+E23+E27 -> 0 | F31: 3.971079923 | G31: 2.093458892 | H31: 0 | I31: 0 | J31: 0 | K31: 0 | M31: 11.21776298
A32: ='Hist Opex Cat Yr1 New'!A32 -> 0 | B32: Sub-Total Non Labour | D32: =D12+D16+D20+D24+D28 -> 7.859777938 | E32: 0 | F32: 7.613464347 | G32: 4.693206828 | H32: 0 | I32: 0 | J32: 0 | K32: 0 | M32: 20.16644911
A33: ='Hist Opex Cat Yr1 New'!A33 -> 0 | B33: Total Maintenance | D33: =D32+D31 -> 13.0130021 | E33: =E32+E31 -> 0 | F33: 11.58454427 | G33: 6.78666572 | H33: 0 | I33: 0 | J33: 0 | K33: 0 | M33: 31.38421209 | O33: =SUM(O13:O29) -> 24.47
A34: ='Hist Opex Cat Yr1 New'!A34 -> 0 | B34: Field Support
A35: ='Hist Opex Cat Yr1 New'!A35 -> 0 | B35: Field Support | H35: 6.923846078 | M35: 6.923846078 | O35: 7.71
A36: ='Hist Opex Cat Yr1 New'!A36 -> 0 | B36: Direct Charges | H36: 3.71893723 | M36: 3.71893723 | O36: 2.32
A37: ='Hist Opex Cat Yr1 New'!A37 -> 0 | B37: Total Field Support | D37: =SUM(D35:D36) -> 0 | E37: =SUM(E35:E36) -> 0 | F37: 0 | G37: 0 | H37: 10.64278331 | I37: 0 | J37: 0 | K37: 0 | M37: 10.64278331 | O37: =SUM(O35:O36) -> 10.03
A38: ='Hist Opex Cat Yr1 New'!A38 -> 0 | B38: Operations
A39: ='Hist Opex Cat Yr1 New'!A39 -> 0 | B39: Network Switching | I39: 6.479438478 | M39: 6.479438478 | O39: 1.65
A40: ='Hist Opex Cat Yr1 New'!A40 -> 0 | B40: Asset Monitoring | I40: 1.544632954 | M40: 1.544632954 | O40: 0.78
A41: ='Hist Opex Cat Yr1 New'!A41 -> 0 | B41: Total Operations | D41: =SUM(D39:D40) -> 0 | E41: =SUM(E39:E40) -> 0 | F41: 0 | G41: 0 | H41: 0 | I41: 8.024071432 | J41: 0 | K41: 0 | M41: 8.024071432 | O41: =SUM(O39:O40) -> 2.43
A42: ='Hist Opex Cat Yr1 New'!A42 -> 0 | B42: Total Direct Operations & Maintenance | D42: =D41+D33+D37 -> 13.0130021 | E42: =E41+E33+E37 -> 0 | F42: 11.58454427 | G42: 6.78666572 | H42: 10.64278331 | I42: 8.024071432 | J42: 0 | K42: 0 | M42: 50.05106683 | O42: =O41+O37+O33 -> 36.93
A43: ='Hist Opex Cat Yr1 New'!A43 -> 0 | B43: Other Controllable
A44: ='Hist Opex Cat Yr1 New'!A44 -> 0 | B44: Asset Manager Support
A45: ='Hist Opex Cat Yr1 New'!A45 -> 0 | B45: Grid Planning | J45: 3.111304666 | K45: 0 | M45: 3.111304666 | O45: 1.2
A46: ='Hist Opex Cat Yr1 New'!A46 -> 0 | B46: Project Support | J46: 3.334395116 | K46: 0 | M46: 3.334395116 | O46: 3.41
A47: ='Hist Opex Cat Yr1 New'!A47 -> 0 | B47: IT Support | K47: 0.4028756049 | M47: 0.4028756049 | O47: 1.96
A48: ='Hist Opex Cat Yr1 New'!A48 -> 0 | B48: Customer & Regulatory Support | J48: 1.949575811 | K48: 0 | M48: 1.949575811 | O48: 0.71
A49: ='Hist Opex Cat Yr1 New'!A49 -> 0 | B49: Sub-Totals | D49: =SUM(D45:D48) -> 0 | E49: =SUM(E45:E48) -> 0 | F49: 0 | G49: 0 | H49: 0 | I49: 0 | J49: 8.395275594 | K49: 0.4028756049 | M49: 8.798151199 | O49: =SUM(O45:O48) -> 7.28
A50: ='Hist Opex Cat Yr1 New'!A50 -> 0 | B50: Corporate Support
A51: ='Hist Opex Cat Yr1 New'!A51 -> -1 | B51: Insurance | J51: 0 | K51: 2.65700453 | M51: 2.65700453 | O51: =5.36-K64 -> 3.43669014
A52: ='Hist Opex Cat Yr1 New'!A52 -> -1 | B52: Corporate Support | J52: 0 | K52: 2.992274161 | M52: 2.992274161 | O52: 12.59
A53: ='Hist Opex Cat Yr1 New'!A53 -> 0 | B53: Sub-Totals | D53: =SUM(D51:D52) -> 0 | E53: =SUM(E51:E52) -> 0 | F53: 0 | G53: 0 | H53: 0 | I53: 0 | J53: 0 | K53: 5.649278691 | M53: 5.649278691 | O53: =SUM(O51:O52) -> 16.02669014
A54: ='Hist Opex Cat Yr1 New'!A54 -> 0 | B54: Total Other Controllable | D54: =D53+D49 -> 0 | E54: =E53+E49 -> 0 | F54: 0 | G54: 0 | H54: 0 | I54: 0 | J54: 8.395275594 | K54: 6.052154296 | M54: 14.44742989 | O54: =O53+O49 -> 23.30669014
A55: ='Hist Opex Cat Yr1 New'!A55 -> 0 | B55: Summary | M55: 0
A56: ='Hist Opex Cat Yr1 New'!A56 -> 0 | B56: Total Maintenance Labour1 | D56: =D31 -> 5.153224162 | E56: =E31 -> 0 | F56: 3.971079923 | G56: 2.093458892 | H56: 0 | I56: 0 | J56: 0 | K56: 0 | M56: 11.21776298
A57: ='Hist Opex Cat Yr1 New'!A57 -> 0 | B57: Total Maintenance Non labour2 | D57: =D32 -> 7.859777938 | E57: =E32 -> 0 | F57: 7.613464347 | G57: 4.693206828 | H57: 0 | I57: 0 | J57: 0 | K57: 0 | M57: 20.16644911
A58: ='Hist Opex Cat Yr1 New'!A58 -> 0 | B58: Total Other3 | D58: =D54+D41+D37 -> 0 | E58: =E54+E41+E37 -> 0 | F58: 0 | G58: 0 | H58: 10.64278331 | I58: 8.024071432 | J58: 8.395275594 | K58: 6.052154296 | M58: 33.11428463
A59: ='Hist Opex Cat Yr1 New'!A59 -> 0 | B59: TOTAL CONTROLLABLE OPEX | D59: =SUM(D56:D58) -> 13.0130021 | E59: =SUM(E56:E58) -> 0 | F59: 11.58454427 | G59: 6.78666572 | H59: 10.64278331 | I59: 8.024071432 | J59: 8.395275594 | K59: 6.052154296 | M59: 64.49849672 | O59: =O54+O42 -> 60.23669014
A60: ='Hist Opex Cat Yr1 New'!A60 -> 0
A61: ='Hist Opex Cat Yr1 New'!A61 -> 0 | B61: Other Opex
A62: ='Hist Opex Cat Yr1 New'!A62 -> -2 | B62: Network Support | J62: 6.68112374 | M62: =SUM(D62:K62) -> 6.68112374 | O62: 5.97
B63: Debt Raising | M63: 0
B64: Self Insurance | K64: 1.92330986 | M64: 1.92330986 | O64: =K64 -> 1.92330986
A65: ='Hist Opex Cat Yr1 New'!A65 -> 0 | B65: TOTAL OTHER OPEX | D65: =SUM(D62:D64) -> 0 | E65: 0 | F65: 0 | G65: 0 | H65: 0 | I65: 0 | J65: =SUM(J62:J64) -> 6.68112374 | K65: =SUM(K62:K64) -> 1.92330986 | M65: =SUM(M62:M64) -> 8.6044336 | O65: =SUM(O62:O64) -> 7.89330986
B68: Grand Total | D68: =D65+D59 -> 13.0130021 | E68: =E65+E59 -> 0 | F68: 11.58454427 | G68: 6.78666572 | H68: 10.64278331 | I68: 8.024071432 | J68: 15.07639933 | K68: 7.975464155 | M68: 73.10293032 | O68: =O65+O59 -> 68.13
B70: Revenue Cap Allowance | D70: 10.28 | E70: 0.16 | F70: 6.33 | G70: 7.7 | H70: =O37 -> 10.03 | I70: =O41 -> 2.43 | J70: =O45+O46+O48+O62 -> 11.29 | K70: =O53+O47+O64 -> 19.91 | M70: =SUM(D70:K70) -> 68.13
B72: Revenue Cap Allowance excludes debt raising cost
B74: 1 Total Maintenance Labour is the total combination of all Field Maintenance items
B75: 2Total Maintenance Non Labour is total combination of all Field Maintenance items
B76: 3The Total Other are all costs sourced from the opex line items including and below Field Support
B77: Labour includes the labour component of both in-house and external maintenance service providers

Sheet Hist Opex Cat Yr5 New
D1: Current Reporting Format 2008/09 to 2012/13
D2: Home | F2: Link to Opex instructions - Table 6.1
B3: 1.7 HISTORIC OPEX by expenditure category
B4: for the year ended 30 June 2013 | D4: ='Hist Opex Cat Yr1 New'!D4 -> -1 | E4: ='Hist Opex Cat Yr1 New'!E4 -> -1 | F4: ='Hist Opex Cat Yr1 New'!F4 -> -1 | G4: ='Hist Opex Cat Yr1 New'!G4 -> 0 | H4: ='Hist Opex Cat Yr1 New'!H4 -> 0 | I4: ='Hist Opex Cat Yr1 New'!I4 -> 0 | J4: ='Hist Opex Cat Yr1 New'!J4 -> 0 | K4: ='Hist Opex Cat Yr1 New'!K4 -> 0
B5: ($m, nominal) | D5: Full Year Ended 30 June 2013
D6: Field Maintenance | G6: Operational Refurbishment | I6: Network Monitoring & Control | J6: Support / Corporate
D7: Routine | E7: Condition-Based | F7: Corrective | H7: Maintenance Support | J7: Network | K7: Non-Network | M7: TOTAL | O7: Revenue Cap Allowance
B8: Direct Operations & Maintenance
B9: Maintenance
B10: Communications
A11: ='Hist Opex Cat Yr1 New'!A11 -> 0 | B11: Labour | D11: 0.3774124809 | F11: 0.0718754417 | G11: 0.1651610709 | M11: =SUM(D11:K11) -> 0.6144489935
A12: ='Hist Opex Cat Yr1 New'!A12 -> 0 | B12: Non Labour | D12: 0.9936581191 | F12: 0.1892349083 | G12: 0.4348389291 | M12: =SUM(D12:K12) -> 1.617731957
A13: ='Hist Opex Cat Yr1 New'!A13 -> 0 | B13: Sub-Totals | D13: =SUM(D11:D12) -> 1.3710706 | E13: 0 | F13: 0.26111035 | G13: 0.6 | H13: 0 | I13: 0 | J13: 0 | K13: 0 | M13: 2.23218095 | O13: 2.72
A14: ='Hist Opex Cat Yr1 New'!A14 -> 0 | B14: Lines
A15: ='Hist Opex Cat Yr1 New'!A15 -> 0 | B15: Labour | D15: 0.7291217686 | F15: 0.6953017619 | G15: 0.4342684779 | M15: 1.858692008
A16: ='Hist Opex Cat Yr1 New'!A16 -> 0 | B16: Non Labour | D16: 2.700333051 | F16: 2.575079238 | G16: 1.608331522 | M16: 6.883743812
A17: ='Hist Opex Cat Yr1 New'!A17 -> 0 | B17: Sub-Totals | D17: =SUM(D15:D16) -> 3.42945482 | E17: 0 | F17: 3.270381 | G17: 2.0426 | H17: 0 | I17: 0 | J17: 0 | K17: 0 | M17: 8.74243582 | O17: 5.8
A18: ='Hist Opex Cat Yr1 New'!A18 -> 0 | B18: Secondary Systems
A19: ='Hist Opex Cat Yr1 New'!A19 -> 0 | B19: Labour | D19: 0.427685992 | F19: 0.474596026 | G19: 0.07292280868 | M19: 0.9752048267
A20: ='Hist Opex Cat Yr1 New'!A20 -> 0 | B20: Non Labour | D20: 0.374934978 | F20: 0.416059104 | G20: 0.06392847132 | M20: 0.8549225533
A21: ='Hist Opex Cat Yr1 New'!A21 -> 0 | B21: Sub-Totals | D21: =SUM(D19:D20) -> 0.80262097 | E21: 0 | F21: 0.89065513 | G21: 0.13685128 | H21: 0 | I21: 0 | J21: 0 | K21: 0 | M21: 1.83012738 | O21: 3.81
A22: ='Hist Opex Cat Yr1 New'!A22 -> 0 | B22: Substations
A23: ='Hist Opex Cat Yr1 New'!A23 -> 0 | B23: Labour | D23: 3.053899712 | F23: 2.282726387 | G23: 1.529252589 | M23: 6.865878687
A24: ='Hist Opex Cat Yr1 New'!A24 -> 0 | B24: Non Labour | D24: 3.306508408 | F24: 2.471546123 | G24: 1.655747411 | M24: 7.433801943
A25: ='Hist Opex Cat Yr1 New'!A25 -> 0 | B25: Sub-Totals | D25: =SUM(D23:D24) -> 6.36040812 | E25: 0 | F25: 4.75427251 | G25: 3.185 | H25: 0 | I25: 0 | J25: 0 | K25: 0 | M25: 14.29968063 | O25: 11.8
A26: ='Hist Opex Cat Yr1 New'!A26 -> 0 | B26: Easements
A27: ='Hist Opex Cat Yr1 New'!A27 -> 0 | B27: Labour | D27: 0.785432499 | F27: 0 | M27: 0.785432499
A28: ='Hist Opex Cat Yr1 New'!A28 -> 0 | B28: Non Labour | D28: 0.690338221 | F28: 0 | M28: 0.690338221
A29: ='Hist Opex Cat Yr1 New'!A29 -> 0 | B29: Sub-Totals | D29: =SUM(D27:D28) -> 1.47577072 | E29: 0 | F29: 0 | G29: 0 | H29: 0 | I29: 0 | J29: 0 | K29: 0 | M29: 1.47577072 | O29: 1.26
A30: ='Hist Opex Cat Yr1 New'!A30 -> 0 | B30: Summary
A31: ='Hist Opex Cat Yr1 New'!A31 -> 0 | B31: Sub-Total Labour | D31: =D11+D15+D19+D23+D27 -> 5.373552452 | E31: =E11+E15+E19+E23+E27 -> 0 | F31: 3.524499617 | G31: 2.201604946 | H31: 0 | I31: 0 | J31: 0 | K31: 0 | M31: 11.09965701
A32: ='Hist Opex Cat Yr1 New'!A32 -> 0 | B32: Sub-Total Non Labour | D32: =D12+D16+D20+D24+D28 -> 8.065772778 | E32: 0 | F32: 5.651919373 | G32: 3.762846334 | H32: 0 | I32: 0 | J32: 0 | K32: 0 | M32: 17.48053849
A33: ='Hist Opex Cat Yr1 New'!A33 -> 0 | B33: Total Maintenance | D33: =D32+D31 -> 13.43932523 | E33: =E32+E31 -> 0 | F33: 9.17641899 | G33: 5.96445128 | H33: 0 | I33: 0 | J33: 0 | K33: 0 | M33: 28.5801955 | O33: =SUM(O13:O29) -> 25.39
A34: ='Hist Opex Cat Yr1 New'!A34 -> 0 | B34: Field Support
A35: ='Hist Opex Cat Yr1 New'!A35 -> 0 | B35: Field Support | H35: 7.07520283 | M35: 7.07520283 | O35: 8.29
A36: ='Hist Opex Cat Yr1 New'!A36 -> 0 | B36: Direct Charges | H36: 3.85836036 | M36: 3.85836036 | O36: 2.54
A37: ='Hist Opex Cat Yr1 New'!A37 -> 0 | B37: Total Field Support | D37: =SUM(D35:D36) -> 0 | E37: =SUM(E35:E36) -> 0 | F37: 0 | G37: 0 | H37: 10.93356319 | I37: 0 | J37: 0 | K37: 0 | M37: 10.93356319 | O37: =SUM(O35:O36) -> 10.83
A38: ='Hist Opex Cat Yr1 New'!A38 -> 0 | B38: Operations
A39: ='Hist Opex Cat Yr1 New'!A39 -> 0 | B39: Network Switching | I39: 7.05392881 | M39: 7.05392881 | O39: 1.78
A40: ='Hist Opex Cat Yr1 New'!A40 -> 0 | B40: Asset Monitoring | I40: 1.87759711 | M40: 1.87759711 | O40: 0.84
A41: ='Hist Opex Cat Yr1 New'!A41 -> 0 | B41: Total Operations | D41: =SUM(D39:D40) -> 0 | E41: =SUM(E39:E40) -> 0 | F41: 0 | G41: 0 | H41: 0 | I41: 8.93152592 | J41: 0 | K41: 0 | M41: 8.93152592 | O41: =SUM(O39:O40) -> 2.62
A42: ='Hist Opex Cat Yr1 New'!A42 -> 0 | B42: Total Direct Operations & Maintenance | D42: =D41+D33+D37 -> 13.43932523 | E42: =E41+E33+E37 -> 0 | F42: 9.17641899 | G42: 5.96445128 | H42: 10.93356319 | I42: 8.93152592 | J42: 0 | K42: 0 | M42: 48.44528461 | O42: =O41+O37+O33 -> 38.84
A43: ='Hist Opex Cat Yr1 New'!A43 -> 0 | B43: Other Controllable
A44: ='Hist Opex Cat Yr1 New'!A44 -> 0 | B44: Asset Manager Support
A45: ='Hist Opex Cat Yr1 New'!A45 -> 0 | B45: Grid Planning | J45: 4.25039698 | K45: 0 | M45: 4.25039698 | O45: 1.27
A46: ='Hist Opex Cat Yr1 New'!A46 -> 0 | B46: Project Support | J46: 3.43375627 | K46: 0 | M46: 3.43375627 | O46: 3.6
A47: ='Hist Opex Cat Yr1 New'!A47 -> 0 | B47: IT Support | K47: 0.5161669 | M47: 0.5161669 | O47: 2.05
A48: ='Hist Opex Cat Yr1 New'!A48 -> 0 | B48: Customer & Regulatory Support | J48: 1.96477026 | K48: 0 | M48: 1.96477026 | O48: 0.74
A49: ='Hist Opex Cat Yr1 New'!A49 -> 0 | B49: Sub-Totals | D49: =SUM(D45:D48) -> 0 | E49: =SUM(E45:E48) -> 0 | F49: 0 | G49: 0 | H49: 0 | I49: 0 | J49: 9.64892351 | K49: 0.5161669 | M49: 10.16509041 | O49: =SUM(O45:O48) -> 7.66
A50: ='Hist Opex Cat Yr1 New'!A50 -> 0 | B50: Corporate Support
A51: ='Hist Opex Cat Yr1 New'!A51 -> -1 | B51: Insurance | J51: 0 | K51: 2.818556 | M51: 2.818556 | O51: =5.91-K64 -> 3.877343628
A52: ='Hist Opex Cat Yr1 New'!A52 -> -1 | B52: Corporate Support | J52: 0 | K52: 3.87106935 | M52: 3.87106935 | O52: 13.17
A53: ='Hist Opex Cat Yr1 New'!A53 -> 0 | B53: Sub-Totals | D53: =SUM(D51:D52) -> 0 | E53: =SUM(E51:E52) -> 0 | F53: 0 | G53: 0 | H53: 0 | I53: 0 | J53: 0 | K53: 6.68962535 | M53: 6.68962535 | O53: =SUM(O51:O52) -> 17.04734363
A54: ='Hist Opex Cat Yr1 New'!A54 -> 0 | B54: Total Other Controllable | D54: =D53+D49 -> 0 | E54: =E53+E49 -> 0 | F54: 0 | G54: 0 | H54: 0 | I54: 0 | J54: 9.64892351 | K54: 7.20579225 | M54: 16.85471576 | O54: =O53+O49 -> 24.70734363
A55: ='Hist Opex Cat Yr1 New'!A55 -> 0 | B55: Summary | M55: 0
A56: ='Hist Opex Cat Yr1 New'!A56 -> 0 | B56: Total Maintenance Labour1 | D56: =D31 -> 5.373552452 | E56: =E31 -> 0 | F56: 3.524499617 | G56: 2.201604946 | H56: 0 | I56: 0 | J56: 0 | K56: 0 | M56: 11.09965701
A57: ='Hist Opex Cat Yr1 New'!A57 -> 0 | B57: Total Maintenance Non labour2 | D57: =D32 -> 8.065772778 | E57: =E32 -> 0 | F57: 5.651919373 | G57: 3.762846334 | H57: 0 | I57: 0 | J57: 0 | K57: 0 | M57: 17.48053849
A58: ='Hist Opex Cat Yr1 New'!A58 -> 0 | B58: Total Other3 | D58: =D54+D41+D37 -> 0 | E58: =E54+E41+E37 -> 0 | F58: 0 | G58: 0 | H58: =H54+H41+H37 -> 10.93356319 | I58: 8.93152592 | J58: 9.64892351 | K58: 7.20579225 | M58: 36.71980487
A59: ='Hist Opex Cat Yr1 New'!A59 -> 0 | B59: TOTAL CONTROLLABLE OPEX | D59: =SUM(D56:D58) -> 13.43932523 | E59: =SUM(E56:E58) -> 0 | F59: 9.17641899 | G59: 5.96445128 | H59: 10.93356319 | I59: 8.93152592 | J59: 9.64892351 | K59: 7.20579225 | M59: 65.30000037 | O59: =O54+O42 -> 63.54734363
A60: ='Hist Opex Cat Yr1 New'!A60 -> 0
A61: ='Hist Opex Cat Yr1 New'!A61 -> 0 | B61: Other Opex
A62: ='Hist Opex Cat Yr1 New'!A62 -> -2 | B62: Network Support | J62: 7.118778 | M62: =SUM(D62:K62) -> 7.118778 | O62: 7.23
B63: Debt Raising | M63: 0
B64: Self Insurance | K64: 2.032656372 | M64: 2.032656372 | O64: =K64 -> 2.032656372
A65: ='Hist Opex Cat Yr1 New'!A65 -> 0 | B65: TOTAL OTHER OPEX | D65: =SUM(D62:D64) -> 0 | E65: 0 | F65: 0 | G65: 0 | H65: 0 | I65: 0 | J65: =SUM(J62:J64) -> 7.118778 | K65: =SUM(K62:K64) -> 2.032656372 | M65: =SUM(M62:M64) -> 9.151434372 | O65: =SUM(O62:O64) -> 9.262656372
B68: Grand Total | D68: =D65+D59 -> 13.43932523 | E68: =E65+E59 -> 0 | F68: 9.17641899 | G68: 5.96445128 | H68: 10.93356319 | I68: 8.93152592 | J68: 16.76770151 | K68: 9.238448622 | M68: 74.45143474 | O68: =O65+O59 -> 72.81
B70: Revenue Cap Allowance | D70: 11.27 | E70: 0.19 | F70: 7.32 | G70: 6.61 | H70: =O37 -> 10.83 | I70: =O41 -> 2.62 | J70: =O45+O46+O48+O62 -> 12.84 | K70: =O53+O47+O64 -> 21.13 | M70: =SUM(D70:K70) -> 72.81
B72: Revenue Cap Allowance excludes debt raising cost
B74: 1 Total Maintenance Labour is the total combination of all Field Maintenance items
B75: 2Total Maintenance Non Labour is total combination of all Field Maintenance items
B76: 3The Total Other are all costs sourced from the opex line items including and below Field Support
B77: Labour includes the labour component of both in-house and external maintenance service providers

Sheet Fcast Opex Summary
D2: Home | F2: Link to Opex instructions - Table 6.1
B3: 1.1 HISTORIC OPEX by expenditure category
B4: for the period 1 January 2003 to 30 June 2008
B5: ($m, real 2012/13)
D7: 2013-14 | E7: 2014-15 | F7: 2015-16 | G7: 2016-17 | H7: 2017-18 | I7: Total | J7: Revenue Cap Allowance | K7: Key cost drivers and explanation for material differences over time
B8: Direct Operations & Maintenance
B9: Maintenance
B10: Communications
B11: Labour | D11: ='Fcast Opex Cat Yr6'!O11 -> 1.64434545 | E11: ='Fcast Opex Cat Yr7'!O11 -> 2.1012963 | F11: ='Fcast Opex Cat Yr8'!O11 -> 2.03463687 | G11: ='Fcast Opex Cat Yr9'!O11 -> 1.94158672 | H11: ='Fcast Opex Cat Yr10'!O11 -> 1.87743316 | I11: =SUM(D11:H11) -> 9.5992985
B12: Non Labour | D12: ='Fcast Opex Cat Yr6'!O12 -> 0.20656939 | E12: ='Fcast Opex Cat Yr7'!O12 -> 0.19205595 | F12: ='Fcast Opex Cat Yr8'!O12 -> 0.18210426 | G12: ='Fcast Opex Cat Yr9'!O12 -> 0.20339769 | H12: ='Fcast Opex Cat Yr10'!O12 -> 0.19397717 | I12: =SUM(D12:H12) -> 0.97810446
B13: Sub-Totals | D13: =D12+D11 -> 1.85091484 | E13: =E12+E11 -> 2.29335225 | F13: 2.21674113 | G13: 2.14498441 | H13: 2.07141033 | I13: 10.57740296
B14: Lines
B15: Labour | D15: ='Fcast Opex Cat Yr6'!O15 -> 14.71716255 | E15: ='Fcast Opex Cat Yr7'!O15 -> 16.10725216 | F15: ='Fcast Opex Cat Yr8'!O15 -> 15.93741628 | G15: ='Fcast Opex Cat Yr9'!O15 -> 12.61977641 | H15: ='Fcast Opex Cat Yr10'!O15 -> 10.62911414 | I15: 70.01072154
B16: Non Labour | D16: ='Fcast Opex Cat Yr6'!O16 -> 3.79897452 | E16: ='Fcast Opex Cat Yr7'!O16 -> 4.07731381 | F16: ='Fcast Opex Cat Yr8'!O16 -> 4.10193823 | G16: ='Fcast Opex Cat Yr9'!O16 -> 4.7138395 | H16: ='Fcast Opex Cat Yr10'!O16 -> 4.51389032 | I16: 21.20595638
B17: Sub-Totals | D17: =D16+D15 -> 18.51613707 | E17: =E16+E15 -> 20.18456597 | F17: =F16+F15 -> 20.03935451 | G17: =G16+G15 -> 17.33361591 | H17: =H16+H15 -> 15.14300446 | I17: 91.21667792
B18: Secondary Systems
B19: Labour | D19: ='Fcast Opex Cat Yr6'!O19 -> 2.11578199 | E19: ='Fcast Opex Cat Yr7'!O19 -> 2.05260769 | F19: ='Fcast Opex Cat Yr8'!O19 -> 2.20727242 | G19: ='Fcast Opex Cat Yr9'!O19 -> 2.10111245 | H19: ='Fcast Opex Cat Yr10'!O19 -> 2.50122588 | I19: 10.97800043
B20: Non Labour | D20: ='Fcast Opex Cat Yr6'!O20 -> 0.28867192 | E20: ='Fcast Opex Cat Yr7'!O20 -> 0.2776658 | F20: ='Fcast Opex Cat Yr8'!O20 -> 0.28885788 | G20: ='Fcast Opex Cat Yr9'!O20 -> 0.27276256 | H20: ='Fcast Opex Cat Yr10'!O20 -> 0.30632257 | I20: 1.43428073
B21: Sub-Totals | D21: =D20+D19 -> 2.40445391 | E21: =E20+E19 -> 2.33027349 | F21: =F20+F19 -> 2.4961303 | G21: =G20+G19 -> 2.37387501 | H21: =H20+H19 -> 2.80754845 | I21: 12.41228116
B22: Substations
B23: Labour | D23: ='Fcast Opex Cat Yr6'!O23 -> 14.00893647 | E23: ='Fcast Opex Cat Yr7'!O23 -> 15.53163979 | F23: ='Fcast Opex Cat Yr8'!O23 -> 14.71793633 | G23: ='Fcast Opex Cat Yr9'!O23 -> 15.02438759 | H23: ='Fcast Opex Cat Yr10'!O23 -> 16.28966648 | I23: 75.57256666
B24: Non Labour | D24: ='Fcast Opex Cat Yr6'!O24 -> 3.28183711 | E24: ='Fcast Opex Cat Yr7'!O24 -> 3.40428835 | F24: ='Fcast Opex Cat Yr8'!O24 -> 3.31635531 | G24: ='Fcast Opex Cat Yr9'!O24 -> 3.2670499 | H24: ='Fcast Opex Cat Yr10'!O24 -> 4.04521218 | I24: 17.31474285
B25: Sub-Totals | D25: =D24+D23 -> 17.29077358 | E25: =E24+E23 -> 18.93592814 | F25: =F24+F23 -> 18.03429164 | G25: =G24+G23 -> 18.29143749 | H25: =H24+H23 -> 20.33487866 | I25: 92.88730951
B26: Easements
B27: Labour | D27: ='Fcast Opex Cat Yr6'!O27 -> 1.32441929 | E27: ='Fcast Opex Cat Yr7'!O27 -> 1.38226113 | F27: ='Fcast Opex Cat Yr8'!O27 -> 1.14993607 | G27: ='Fcast Opex Cat Yr9'!O27 -> 1.15091119 | H27: ='Fcast Opex Cat Yr10'!O27 -> 1.15202996 | I27: 6.15955764
B28: Non Labour | D28: ='Fcast Opex Cat Yr6'!O28 -> 0.29057005 | E28: ='Fcast Opex Cat Yr7'!O28 -> 0.29324806 | F28: ='Fcast Opex Cat Yr8'!O28 -> 0.28160905 | G28: ='Fcast Opex Cat Yr9'!O28 -> 0.28160906 | H28: ='Fcast Opex Cat Yr10'!O28 -> 0.28160906 | I28: 1.42864528
B29: Sub-Totals | D29: =D28+D27 -> 1.61498934 | E29: =E28+E27 -> 1.67550919 | F29: =F28+F27 -> 1.43154512 | G29: =G28+G27 -> 1.43252025 | H29: =H28+H27 -> 1.43363902 | I29: 7.58820292
B30: Summary
B31: Sub-Total Labour | D31: =D11+D15+D19+D23+D27 -> 33.81064575 | E31: =E11+E15+E19+E23+E27 -> 37.17505707 | F31: 36.04719797 | G31: 32.83777436 | H31: 32.44946962 | I31: 172.3201448
B32: Sub-Total Non Labour | D32: =D12+D16+D20+D24+D28 -> 7.86662299 | E32: =E12+E16+E20+E24+E28 -> 8.24457197 | F32: 8.17086473 | G32: 8.73865871 | H32: 9.3410113 | I32: 42.3617297
B33: Total Maintenance | D33: =D32+D31 -> 41.67726874 | E33: =E32+E31 -> 45.41962904 | F33: 44.2180627 | G33: 41.57643307 | H33: 41.79048092 | I33: 214.6818745
B34: Network Optimisation
B35: Network Optimisation | D35: ='Fcast Opex Cat Yr6'!O35 -> 0.82634708 | E35: ='Fcast Opex Cat Yr7'!O35 -> 2.75824914 | F35: ='Fcast Opex Cat Yr8'!O35 -> 2.54771036 | G35: ='Fcast Opex Cat Yr9'!O35 -> 3.51503774 | H35: ='Fcast Opex Cat Yr10'!O35 -> 3.66660645
B36: Total Network Optimisation | D36: =D35 -> 0.82634708 | E36: =E35 -> 2.75824914 | F36: =F35 -> 2.54771036 | G36: =G35 -> 3.51503774 | H36: =H35 -> 3.66660645 | I36: =I35 -> 0
B37: Field Support
B38: Field Support | D38: ='Fcast Opex Cat Yr6'!O38 -> 7.76983323 | E38: ='Fcast Opex Cat Yr7'!O38 -> 7.94913054 | F38: ='Fcast Opex Cat Yr8'!O38 -> 8.09259623 | G38: ='Fcast Opex Cat Yr9'!O38 -> 8.35133303 | H38: ='Fcast Opex Cat Yr10'!O38 -> 8.49506089 | I38: 40.65795392
B39: Direct Charges | D39: ='Fcast Opex Cat Yr6'!O39 -> 5.19696689 | E39: ='Fcast Opex Cat Yr7'!O39 -> 5.50633937 | F39: ='Fcast Opex Cat Yr8'!O39 -> 5.83087273 | G39: ='Fcast Opex Cat Yr9'!O39 -> 6.19946619 | H39: ='Fcast Opex Cat Yr10'!O39 -> 6.54655318 | I39: 29.28019836
B40: Total Field Support | D40: =D39+D38 -> 12.96680012 | E40: =E39+E38 -> 13.45546991 | F40: =F39+F38 -> 13.92346896 | G40: =G39+G38 -> 14.55079922 | H40: =H39+H38 -> 15.04161407 | I40: 69.93815228
B41: Operations
B42: Network Switching | D42: ='Fcast Opex Cat Yr6'!O42 -> 7.16386532 | E42: ='Fcast Opex Cat Yr7'!O42 -> 7.40226336 | F42: ='Fcast Opex Cat Yr8'!O42 -> 7.61146155 | G42: ='Fcast Opex Cat Yr9'!O42 -> 7.89850946 | H42: ='Fcast Opex Cat Yr10'!O42 -> 8.13547491 | I42: 38.2115746
B43: Asset Monitoring | D43: ='Fcast Opex Cat Yr6'!O43 -> 1.67110909 | E43: ='Fcast Opex Cat Yr7'!O43 -> 1.74083347 | F43: ='Fcast Opex Cat Yr8'!O43 -> 1.80827435 | G43: ='Fcast Opex Cat Yr9'!O43 -> 1.8818009 | H43: ='Fcast Opex Cat Yr10'!O43 -> 1.96551526 | I43: 9.06753307
B44: Total Operations | D44: =D43+D42 -> 8.83497441 | E44: =E43+E42 -> 9.14309683 | F44: =F43+F42 -> 9.4197359 | G44: =G43+G42 -> 9.78031036 | H44: =H43+H42 -> 10.10099017 | I44: 47.27910767
B45: Total Direct Operations & Maintenance | D45: =D44+D40+D33+D36 -> 64.30539035 | E45: =E44+E40+E33+E36 -> 70.77644492 | F45: 70.10897792 | G45: 69.42258039 | H45: 70.59969161 | I45: 345.2130852
B46: Other Controllable
B47: Asset Manager Support
B48: Grid Planning | D48: ='Fcast Opex Cat Yr6'!O48 -> 3.33232012 | E48: ='Fcast Opex Cat Yr7'!O48 -> 3.43631835 | F48: ='Fcast Opex Cat Yr8'!O48 -> 3.53798815 | G48: ='Fcast Opex Cat Yr9'!O48 -> 3.64897347 | H48: ='Fcast Opex Cat Yr10'!O48 -> 3.7752383 | I48: 17.73083839
B49: Project Support | D49: ='Fcast Opex Cat Yr6'!O49 -> 3.84456519 | E49: ='Fcast Opex Cat Yr7'!O49 -> 3.90949349 | F49: ='Fcast Opex Cat Yr8'!O49 -> 3.94561755 | G49: ='Fcast Opex Cat Yr9'!O49 -> 4.07254914 | H49: ='Fcast Opex Cat Yr10'!O49 -> 4.08781104 | I49: 19.86003641
B50: IT Support | D50: ='Fcast Opex Cat Yr6'!O50 -> 0.43139214 | E50: ='Fcast Opex Cat Yr7'!O50 -> 0.44479342 | F50: ='Fcast Opex Cat Yr8'!O50 -> 0.45788916 | G50: ='Fcast Opex Cat Yr9'!O50 -> 0.47218214 | H50: ='Fcast Opex Cat Yr10'!O50 -> 0.48844042 | I50: 2.29469728
B51: Customer & Regulatory Support | D51: ='Fcast Opex Cat Yr6'!O51 -> 0.19638928 | E51: ='Fcast Opex Cat Yr7'!O51 -> 0.20132103 | F51: ='Fcast Opex Cat Yr8'!O51 -> 0.20603667 | G51: ='Fcast Opex Cat Yr9'!O51 -> 2.10569511 | H51: ='Fcast Opex Cat Yr10'!O51 -> 1.17461676 | I51: 3.88405885
B52: Sub-Totals | D52: =SUM(D48:D51) -> 7.80466673 | E52: =SUM(E48:E51) -> 7.99192629 | F52: 8.14753153 | G52: 10.29939986 | H52: 9.52610652 | I52: 43.76963093
B53: Corporate Support
B54: Insurance | D54: ='Fcast Opex Cat Yr6'!O54 -> 2.59964794 | E54: ='Fcast Opex Cat Yr7'!O54 -> 2.78314563 | F54: ='Fcast Opex Cat Yr8'!O54 -> 3.04221663 | G54: ='Fcast Opex Cat Yr9'!O54 -> 3.26982297 | H54: ='Fcast Opex Cat Yr10'!O54 -> 3.41227162 | I54: 15.10710479
B55: Corporate Support | D55: ='Fcast Opex Cat Yr6'!O55 -> 3.40969035 | E55: ='Fcast Opex Cat Yr7'!O55 -> 3.42094133 | F55: ='Fcast Opex Cat Yr8'!O55 -> 3.93762219 | G55: ='Fcast Opex Cat Yr9'!O55 -> 3.98949297 | H55: ='Fcast Opex Cat Yr10'!O55 -> 3.96228914 | I55: 18.72003598
B56: Sub-Totals | D56: =D55+D54 -> 6.00933829 | E56: =E55+E54 -> 6.20408696 | F56: =F55+F54 -> 6.97983882 | G56: =G55+G54 -> 7.25931594 | H56: =H55+H54 -> 7.37456076 | I56: 33.82714077
B57: Total Other Controllable | D57: =D56+D52 -> 13.81400502 | E57: =E56+E52 -> 14.19601325 | F57: 15.12737035 | G57: 17.5587158 | H57: 16.90066728 | I57: 77.5967717
B58: Summary
B59: Total Maintenance Labour1 | D59: =D31 -> 33.81064575 | E59: =E31 -> 37.17505707 | F59: 36.04719797 | G59: 32.83777436 | H59: 32.44946962 | I59: 172.3201448
B60: Total Maintenance Non labour2 | D60: =D32 -> 7.86662299 | E60: 4.702860685 | F60: 8.191662599 | G60: 9.707 | H60: 11.64 | I60: 42.10814627
B61: Total Other3 | D61: =D57+D40+D44+D36 -> 36.44212663 | E61: =E57+E40+E44+E36 -> 39.55282913 | F61: 41.01828557 | G61: 45.40486312 | H61: 45.70987797 | I61: 208.1279824
B62: TOTAL CONTROLLABLE OPEX | D62: =D57+D45 -> 78.11939537 | E62: =E57+E45 -> 84.97245817 | F62: 85.23634827 | G62: 86.98129619 | H62: 87.50035889 | I62: 422.8098569
B64: Other Opex
B65: Network Support | D65: ='Fcast Opex Cat Yr6'!O65 -> 8.11644532 | E65: ='Fcast Opex Cat Yr7'!O65 -> 8.18269492 | F65: ='Fcast Opex Cat Yr8'!O65 -> 8.23446684 | G65: ='Fcast Opex Cat Yr9'!O65 -> 8.49143021 | H65: ='Fcast Opex Cat Yr10'!O65 -> 8.5753783 | I65: 41.60041559
B66: Debt Raising | D66: ='Fcast Opex Cat Yr6'!O66 -> 0 | E66: ='Fcast Opex Cat Yr7'!O66 -> 0 | F66: ='Fcast Opex Cat Yr8'!O66 -> 0 | G66: ='Fcast Opex Cat Yr9'!O66 -> 0 | H66: ='Fcast Opex Cat Yr10'!O66 -> 0 | I66: 0
B67: Self Insurance | D67: ='Fcast Opex Cat Yr6'!O68 -> 1.4259803 | E67: ='Fcast Opex Cat Yr7'!O68 -> 1.45329287 | F67: ='Fcast Opex Cat Yr8'!O68 -> 1.49026962 | G67: ='Fcast Opex Cat Yr9'!O68 -> 1.53728259 | H67: ='Fcast Opex Cat Yr10'!O68 -> 1.56940424 | I67: =SUM(D67:H67) -> 7.47622962
B68: TOTAL OTHER OPEX | D68: =SUM(D65:D67) -> 9.54242562 | E68: =SUM(E65:E67) -> 9.63598779 | F68: =SUM(F65:F67) -> 9.72473646 | G68: =SUM(G65:G67) -> 10.0287128 | H68: =SUM(H65:H67) -> 10.14478254 | I68: 49.07664521
B71: Grand Total | D71: =D68+D62 -> 87.66182099 | E71: =E68+E62 -> 94.60844596 | F71: =F68+F62 -> 94.96108473 | G71: =G68+G62 -> 97.01000899 | H71: =H68+H62 -> 97.64514143 | I71: 471.8865021
B73: Revenue Cap Allowance
B77: 1 Total Maintenance Labour is the total combination of all Field Maintenance items
B78: 2Total Maintenance Non Labour is total combination of all Field Maintenance items
B79: 3The Total Other are all costs sourced from the opex line items including and below Field Support
B80: Labour includes the labour component of both in-house and external maintenance service providers

Sheet Fcast Opex Cat Yr6
I2: Home | J2: Link to Opex instructions - Table 6.1
B3: 2.2 Future by expenditure category
B4: Cat 2013-14
B5: ($m, real 2012/13) | D5: For the year ended 30 June 2014
D6: Field Maintenance | F6: Field Maintenance | G6: Operational Refurbishment | H6: Network Optimisation | I6: Maintenance Support | J6: Network Monitoring & Control | K6: Support / Corporate | M6: Corporate Support
D7: Routine | E7: Corrective | K7: Network | L7: Non-Network | O7: TOTAL | Q7: Revenue Cap Allowance
B8: Direct Operations & Maintenance
B9: Field Maintenance
B10: Communications
B11: Labour | D11: 1.37333681 | E11: 0.23971281 | F11: 1.61304962 | G11: 0.03129583 | H11: 0 | I11: 0 | J11: 0 | K11: 0 | L11: 0 | M11: 0 | O11: =SUM(F11:J11,M11) -> 1.64434545
B12: Non Labour | D12: 0.15056314 | E12: 0.02575 | F12: 0.17631314 | G12: 0.03025625 | H12: 0 | I12: 0 | J12: 0 | K12: 0 | L12: 0 | M12: 0 | O12: =SUM(F12:J12,M12) -> 0.20656939
B13: Sub-Totals | D13: =D12+D11 -> 1.52389995 | E13: =E12+E11 -> 0.26546281 | G13: 0.06155208 | H13: =H12+H11 -> 0 | I13: 0 | J13: 0 | K13: 0 | L13: 0 | M13: 0 | O13: =O12+O11 -> 1.85091484
B14: Lines
B15: Labour | D15: 1.69915595 | E15: 7.67080976 | F15: 9.36996571 | G15: 5.34719684 | H15: 0 | I15: 0 | J15: 0 | K15: 0 | L15: 0 | M15: 0 | O15: =SUM(F15:J15,M15) -> 14.71716255
B16: Non Labour | D16: 2.4520188 | E16: 0.824 | F16: 3.2760188 | G16: 0.52295572 | H16: 0 | I16: 0 | J16: 0 | K16: 0 | L16: 0 | M16: 0 | O16: 3.79897452
B17: Sub-Totals | D17: =D16+D15 -> 4.15117475 | E17: =E16+E15 -> 8.49480976 | G17: =G16+G15 -> 5.87015256 | H17: 0 | I17: =I16+I15 -> 0 | J17: =J16+J15 -> 0 | K17: =K16+K15 -> 0 | L17: =L16+L15 -> 0 | M17: 0 | O17: =O16+O15 -> 18.51613707
B18: Secondary Systems
B19: Labour | D19: 1.16076617 | E19: 0.83100439 | F19: 1.99177056 | G19: 0.12401143 | H19: 0 | I19: 0 | J19: 0 | K19: 0 | L19: 0 | M19: 0 | O19: =SUM(F19:J19,M19) -> 2.11578199
B20: Non Labour | D20: 0.11089392 | E20: 0.09785 | F20: 0.20874392 | G20: 0.079928 | H20: 0 | I20: 0 | J20: 0 | K20: 0 | L20: 0 | M20: 0 | O20: 0.28867192
B21: Sub-Totals | D21: =D20+D19 -> 1.27166009 | E21: =E20+E19 -> 0.92885439 | G21: =G20+G19 -> 0.20393943 | H21: 0 | I21: =I20+I19 -> 0 | J21: =J20+J19 -> 0 | K21: =K20+K19 -> 0 | L21: =L20+L19 -> 0 | M21: 0 | O21: =O20+O19 -> 2.40445391
B22: Substations
B23: Labour | D23: 5.9781079 | E23: 4.68239013 | F23: 10.66049803 | G23: 3.34843844 | H23: 0 | I23: 0 | J23: 0 | K23: 0 | L23: 0 | M23: 0 | O23: =SUM(F23:J23,M23) -> 14.00893647
B24: Non Labour | D24: 0.64448194 | E24: 0.4944 | F24: 1.13888194 | G24: 2.14295517 | H24: 0 | I24: 0 | J24: 0 | K24: 0 | L24: 0 | M24: 0 | O24: 3.28183711
B25: Sub-Totals | D25: =D24+D23 -> 6.62258984 | E25: =E24+E23 -> 5.17679013 | F25: 11.79937997 | G25: 5.49139361 | H25: =H24+H23 -> 0 | I25: 0 | J25: 0 | K25: 0 | L25: 0 | M25: =M24+M23 -> 0 | O25: =O24+O23 -> 17.29077358
B26: Easements
B27: Labour | D27: 1.10995623 | E27: 0.03835405 | F27: 1.14831028 | G27: 0.17610901 | H27: 0 | I27: 0 | J27: 0 | K27: 0 | L27: 0 | M27: 0 | O27: =SUM(F27:J27,M27) -> 1.32441929
B28: Non Labour | D28: 0.27748905 | E28: 0.00412 | F28: 0.28160905 | G28: 0.008961 | H28: 0 | I28: 0 | J28: 0 | K28: 0 | L28: 0 | M28: 0 | O28: 0.29057005
B29: Sub-Totals | D29: =D28+D27 -> 1.38744528 | E29: =E28+E27 -> 0.04247405 | F29: 1.42991933 | G29: 0.18507001 | H29: =H28+H27 -> 0 | I29: 0 | J29: 0 | K29: 0 | L29: 0 | M29: =M28+M27 -> 0 | O29: =O28+O27 -> 1.61498934
B30: Summary
B31: Sub-Total Labour | D31: =D11+D15+D19+D23+D27 -> 11.32132306 | E31: =E11+E15+E19+E23+E27 -> 13.46227114 | F31: =F11+F15+F19+F23+F27 -> 24.7835942 | G31: 9.02705155 | H31: =H11+H15+H19+H23+H27 -> 0 | I31: =I11+I15+I19+I23+I27 -> 0 | J31: 0 | K31: 0 | L31: 0 | M31: 0 | O31: =O11+O15+O19+O23+O27 -> 33.81064575
B32: Sub-Total Non Labour | D32: =D12+D16+D20+D24+D28 -> 3.63544685 | E32: =E12+E16+E20+E24+E28 -> 1.44612 | F32: =F12+F16+F20+F24+F28 -> 5.08156685 | G32: 2.78505614 | H32: =H12+H16+H20+H24+H28 -> 0 | I32: 0 | J32: 0 | K32: 0 | L32: 0 | M32: 0 | O32: =O12+O16+O20+O24+O28 -> 7.86662299
B33: Total Maintenance | D33: =D32+D31 -> 14.95676991 | E33: =E32+E31 -> 14.90839114 | F33: =F32+F31 -> 29.86516105 | G33: 11.81210769 | H33: =H32+H31 -> 0 | I33: =I32+I31 -> 0 | J33: =J32+J31 -> 0 | K33: =K32+K31 -> 0 | L33: =L32+L31 -> 0 | M33: =M32+M31 -> 0 | O33: =O32+O31 -> 41.67726874
B34: Network Optimisation
B35: Network Optimisation | H35: 0.82634708 | I35: 0 | J35: 0 | K35: 0 | L35: 0 | M35: 0 | O35: =SUM(F35:J35,M35) -> 0.82634708
B36: Total Network Optimisation | D36: =D35 -> 0 | E36: 0 | F36: 0 | G36: 0 | H36: =H35 -> 0.82634708 | I36: =I35 -> 0 | J36: 0 | K36: 0 | L36: 0 | M36: 0 | O36: =O35 -> 0.82634708
B37: Field Support
B38: Field Support | D38: 0 | E38: 0 | F38: 0 | G38: 0 | H38: 0 | I38: 7.74258202 | J38: 0.02725121 | K38: 0 | L38: 0 | M38: 0 | O38: =SUM(F38:J38,M38) -> 7.76983323
B39: Direct Charges | D39: 0 | E39: 0 | F39: 0 | G39: 0 | H39: 0 | I39: 5.19696689 | J39: 0 | K39: 0 | L39: 0 | M39: 0 | O39: 5.19696689
B40: Total Field Support | D40: =D39+D38 -> 0 | E40: =E39+E38 -> 0 | F40: 0 | G40: 0 | H40: =H39+H38 -> 0 | I40: 12.93954891 | J40: 0.02725121 | K40: 0 | L40: 0 | M40: =M39+M38 -> 0 | O40: =O39+O38 -> 12.96680012
B41: Operations
B42: Network Switching | D42: 0 | E42: 0 | F42: 0 | G42: 0 | H42: 0 | I42: 0 | J42: 7.16386532 | K42: 0 | L42: 0 | M42: 0 | O42: =SUM(F42:J42,M42) -> 7.16386532
B43: Asset Monitoring | D43: 0 | E43: 0 | F43: 0 | G43: 0 | H43: 0 | I43: 0 | J43: 1.67110909 | K43: 0 | L43: 0 | M43: 0 | O43: 1.67110909
B44: Total Operations | D44: =D43+D42 -> 0 | E44: =E43+E42 -> 0 | F44: 0 | G44: 0 | H44: =H43+H42 -> 0 | I44: 0 | J44: 8.83497441 | K44: 0 | L44: 0 | M44: =M43+M42 -> 0 | O44: =O43+O42 -> 8.83497441
B45: Total Direct Operations & Maintenance | C45: =C33+C40+C44+C36 -> 0 | D45: =D33+D40+D44+D36 -> 14.95676991 | E45: 14.90839114 | F45: 29.86516105 | G45: 11.81210769 | H45: 0.82634708 | I45: 12.93954891 | J45: 8.86222562 | K45: 0 | L45: 0 | M45: 0 | O45: =O33+O40+O44+O36 -> 64.30539035
B46: Other Controllable
B47: Asset Manager Support
B48: Grid Planning | D48: 0 | E48: 0 | F48: 0 | G48: 0 | H48: 0 | I48: 0 | J48: 0 | K48: 3.33232012 | L48: 0 | M48: 3.33232012 | O48: =SUM(F48:J48,M48) -> 3.33232012
B49: Project Support | D49: 0 | E49: 0 | F49: 0 | G49: 0 | H49: 0 | I49: 0 | J49: 0 | K49: 3.84456519 | L49: 0 | M49: 3.84456519 | O49: 3.84456519
B50: IT Support | D50: 0 | E50: 0 | F50: 0 | G50: 0 | H50: 0 | I50: 0 | J50: 0 | K50: 0 | L50: 0.43139214 | M50: 0.43139214 | O50: 0.43139214
B51: Customer & Regulatory Support | D51: 0 | E51: 0 | F51: 0 | G51: 0 | H51: 0 | I51: 0 | J51: 0 | K51: 0.19638928 | L51: 0 | M51: 0.19638928 | O51: 0.19638928
B52: Sub-Totals | D52: =SUM(D48:D51) -> 0 | E52: =SUM(E48:E51) -> 0 | F52: 0 | G52: 0 | H52: =SUM(H48:H51) -> 0 | I52: 0 | J52: 0 | K52: 7.37327459 | L52: 0.43139214 | M52: =SUM(M48:M51) -> 7.80466673 | O52: 7.80466673
B53: Corporate Support
B54: Insurance | D54: 0 | E54: 0 | F54: 0 | G54: 0 | H54: 0 | I54: 0 | J54: 0 | K54: 0 | L54: 2.59964794 | M54: 2.59964794 | O54: =SUM(F54:J54,M54) -> 2.59964794
B55: Corporate Support | D55: 0 | E55: 0 | F55: 0 | G55: 0 | H55: 0 | I55: 0 | J55: 0 | K55: 0 | L55: 3.40969035 | M55: 3.40969035 | O55: 3.40969035
B56: Sub-Totals | D56: =D55+D54 -> 0 | E56: =E55+E54 -> 0 | F56: 0 | G56: 0 | H56: =H55+H54 -> 0 | I56: 0 | J56: 0 | K56: 0 | L56: 6.00933829 | M56: =M55+M54 -> 6.00933829 | O56: =O55+O54 -> 6.00933829
B57: Total Other Controllable | D57: =D56+D52 -> 0 | E57: =E56+E52 -> 0 | F57: =F56+F52 -> 0 | G57: 0 | H57: =H56+H52 -> 0 | I57: 0 | J57: 0 | K57: 7.37327459 | L57: 6.44073043 | M57: =M56+M52 -> 13.81400502 | O57: =O56+O52 -> 13.81400502
B58: Summary
B59: Total Maintenance Labour1 | D59: =D31 -> 11.32132306 | E59: =E31 -> 13.46227114 | F59: 24.7835942 | G59: 9.02705155 | H59: 0 | I59: 0 | J59: 0 | K59: 0 | L59: 0 | M59: 0 | O59: =O31 -> 33.81064575
B60: Total Maintenance Non labour2 | D60: =D32 -> 3.63544685 | E60: =E32 -> 1.44612 | F60: 5.08156685 | G60: 2.78505614 | H60: 0 | I60: 0 | J60: 0 | K60: 0 | L60: 0 | M60: 0 | O60: =O32 -> 7.86662299
B61: Total Other3 | D61: =D40+D44+D36+D52+D56 -> 0 | E61: =E40+E44+E36+E52+E56 -> 0 | F61: 0 | G61: 0 | H61: 0.82634708 | I61: 12.93954891 | J61: 8.86222562 | K61: 7.37327459 | L61: 6.44073043 | M61: 13.81400502 | O61: 36.44212663
B62: TOTAL CONTROLLABLE OPEX | D62: =D57+D45 -> 14.95676991 | E62: =E57+E45 -> 14.90839114 | F62: =F57+F45 -> 29.86516105 | G62: 11.81210769 | H62: =H57+H45 -> 0.82634708 | I62: 12.93954891 | J62: 8.86222562 | K62: 7.37327459 | L62: 6.44073043 | M62: =M57+M45 -> 13.81400502 | O62: =O57+O45 -> 78.11939537
B64: Other Opex
B65: Network Support | D65: 0 | E65: 0 | F65: 0 | G65: 0 | H65: 0 | I65: 0 | J65: 0 | K65: 8.11644532 | L65: 0 | M65: 8.11644532 | O65: =SUM(F65:J65,M65) -> 8.11644532
B66: Debt Raising | D66: 0 | E66: 0 | F66: 0 | G66: 0 | H66: 0 | I66: 0 | J66: 0 | K66: 0 | L66: 0 | M66: 0 | O66: 0
B67: Equity Raising | D67: 0 | E67: 0 | F67: 0 | G67: 0 | H67: 0 | I67: 0 | J67: 0 | K67: 0 | L67: 0 | M67: 0 | O67: 0
B68: Self Insurance | D68: 0 | E68: 0 | F68: 0 | G68: 0 | H68: 0 | I68: 0 | J68: 0 | K68: 0 | L68: 1.4259803 | M68: 1.4259803 | O68: 1.4259803
B69: TOTAL OTHER OPEX | D69: =SUM(D65:D68) -> 0 | E69: =SUM(E65:E68) -> 0 | F69: =SUM(F65:F68) -> 0 | G69: 0 | H69: 0 | I69: 0 | J69: 0 | K69: 8.11644532 | L69: 1.4259803 | M69: =SUM(M65:M68) -> 9.54242562 | O69: 9.54242562
B72: Grand Total | D72: =D69+D62 -> 14.95676991 | E72: =E69+E62 -> 14.90839114 | F72: =F69+F62 -> 29.86516105 | G72: 11.81210769 | H72: 0.82634708 | I72: 12.93954891 | J72: 8.86222562 | K72: 15.48971991 | L72: 7.86671073 | M72: =M69+M62 -> 23.35643064 | O72: =O69+O62 -> 87.66182099
B74: Revenue Cap Allowance
B78: 1 Total Maintenance Labour is the total combination of all Field Maintenance items
B79: 2Total Maintenance Non Labour is total combination of all Field Maintenance items
B80: 3The Total Other are all costs sourced from the opex line items including and below Field Support
B81: Labour includes the labour component of both in-house and external maintenance service providers

Sheet Fcast Opex Cat Yr7
I2: Home | J2: Link to Opex instructions - Table 6.1
B3: 2.4 Future by expenditure category
B4: Cat 2014-15
B5: ($m, real 2012/13) | D5: For the year ended 30 June 2015
D6: Field Maintenance | F6: Field Maintenance | G6: Operational Refurbishment | H6: Network Optimisation | I6: Maintenance Support | J6: Network Monitoring & Control | K6: Support / Corporate | M6: Corporate Support
D7: Routine | E7: Corrective | K7: Network | L7: Non-Network | O7: TOTAL | Q7: Revenue Cap Allowance
B8: Direct Operations & Maintenance
B9: Field Maintenance
B10: Communications
B11: Labour | D11: 1.53648356 | E11: 0.24439013 | F11: 1.78087369 | G11: 0.32042261 | H11: 0 | I11: 0 | J11: 0 | K11: 0 | L11: 0 | M11: 0 | O11: =SUM(F11:J11,M11) -> 2.1012963
B12: Non Labour | D12: 0.16630595 | E12: 0.02575 | F12: 0.19205595 | G12: 0 | H12: 0 | I12: 0 | J12: 0 | K12: 0 | L12: 0 | M12: 0 | O12: =SUM(F12:J12,M12) -> 0.19205595
B13: Sub-Totals | D13: =D12+D11 -> 1.70278951 | E13: =E12+E11 -> 0.27014013 | G13: 0.32042261 | H13: 0 | I13: 0 | J13: 0 | K13: 0 | L13: 0 | M13: 0 | O13: =O12+O11 -> 2.29335225
B14: Lines
B15: Labour | D15: 1.7902682 | E15: 7.82048409 | F15: 9.61075229 | G15: 6.49649987 | H15: 0 | I15: 0 | J15: 0 | K15: 0 | L15: 0 | M15: 0 | O15: =SUM(F15:J15,M15) -> 16.10725216
B16: Non Labour | D16: 2.46214181 | E16: 0.824 | F16: 3.28614181 | G16: 0.791172 | H16: 0 | I16: 0 | J16: 0 | K16: 0 | L16: 0 | M16: 0 | O16: 4.07731381
B17: Sub-Totals | D17: =D16+D15 -> 4.25241001 | E17: =E16+E15 -> 8.64448409 | G17: =G16+G15 -> 7.28767187 | H17: 0 | I17: 0 | J17: 0 | K17: 0 | L17: 0 | M17: 0 | O17: =O16+O15 -> 20.18456597
B18: Secondary Systems
B19: Labour | D19: 1.07895742 | E19: 0.84721911 | F19: 1.92617653 | G19: 0.12643116 | H19: 0 | I19: 0 | J19: 0 | K19: 0 | L19: 0 | M19: 0 | O19: =SUM(F19:J19,M19) -> 2.05260769
B20: Non Labour | D20: 0.0998878 | E20: 0.09785 | F20: 0.1977378 | G20: 0.079928 | H20: 0 | I20: 0 | J20: 0 | K20: 0 | L20: 0 | M20: 0 | O20: 0.2776658
B21: Sub-Totals | D21: =D20+D19 -> 1.17884522 | E21: =E20+E19 -> 0.94506911 | G21: =G20+G19 -> 0.20635916 | H21: 0 | I21: 0 | J21: 0 | K21: 0 | L21: 0 | M21: 0 | O21: =O20+O19 -> 2.33027349
B22: Substations
B23: Labour | D23: 6.31918012 | E23: 4.77375383 | F23: 11.09293395 | G23: 4.43870584 | H23: 0 | I23: 0 | J23: 0 | K23: 0 | L23: 0 | M23: 0 | O23: =SUM(F23:J23,M23) -> 15.53163979
B24: Non Labour | D24: 0.6694169 | E24: 0.4944 | F24: 1.1638169 | G24: 2.24047145 | H24: 0 | I24: 0 | J24: 0 | K24: 0 | L24: 0 | M24: 0 | O24: 3.40428835
B25: Sub-Totals | D25: =D24+D23 -> 6.98859702 | E25: =E24+E23 -> 5.26815383 | F25: 12.25675085 | G25: 6.67917729 | H25: 0 | I25: 0 | J25: 0 | K25: 0 | L25: 0 | M25: =M24+M23 -> 0 | O25: =O24+O23 -> 18.93592814
B26: Easements
B27: Labour | D27: 1.10995623 | E27: 0.03910242 | F27: 1.14905865 | G27: 0.23320248 | H27: 0 | I27: 0 | J27: 0 | K27: 0 | L27: 0 | M27: 0 | O27: =SUM(F27:J27,M27) -> 1.38226113
B28: Non Labour | D28: 0.27748906 | E28: 0.00412 | F28: 0.28160906 | G28: 0.011639 | H28: 0 | I28: 0 | J28: 0 | K28: 0 | L28: 0 | M28: 0 | O28: 0.29324806
B29: Sub-Totals | D29: =D28+D27 -> 1.38744529 | E29: =E28+E27 -> 0.04322242 | F29: 1.43066771 | G29: 0.24484148 | H29: 0 | I29: 0 | J29: 0 | K29: 0 | L29: 0 | M29: =M28+M27 -> 0 | O29: =O28+O27 -> 1.67550919
B30: Summary
B31: Sub-Total Labour | D31: =D11+D15+D19+D23+D27 -> 11.83484553 | E31: =E11+E15+E19+E23+E27 -> 13.72494958 | F31: 25.55979511 | G31: 11.61526196 | H31: 0 | I31: 0 | J31: 0 | K31: 0 | L31: 0 | M31: 0 | O31: =O11+O15+O19+O23+O27 -> 37.17505707
B32: Sub-Total Non Labour | D32: =D12+D16+D20+D24+D28 -> 3.67524152 | E32: 1.44612 | F32: 5.12136152 | G32: 3.12321045 | H32: 0 | I32: 0 | J32: 0 | K32: 0 | L32: 0 | M32: 0 | O32: =O12+O16+O20+O24+O28 -> 8.24457197
B33: Total Maintenance | D33: =D32+D31 -> 15.51008705 | E33: =E32+E31 -> 15.17106958 | F33: 30.68115663 | G33: 14.73847241 | H33: 0 | I33: =I32+I31 -> 0 | J33: =J32+J31 -> 0 | K33: =K32+K31 -> 0 | L33: =L32+L31 -> 0 | M33: =M32+M31 -> 0 | O33: =O32+O31 -> 45.41962904
H35: 2.75824914 | I35: 0 | J35: 0 | K35: 0 | L35: 0 | M35: 0 | O35: =SUM(F35:J35,M35) -> 2.75824914
D36: =D35 -> 0 | E36: 0 | F36: 0 | G36: 0 | H36: =H35 -> 2.75824914 | I36: =I35 -> 0 | J36: 0 | K36: 0 | L36: 0 | M36: 0 | O36: =O35 -> 2.75824914
B37: Field Support
B38: Field Support | D38: 0 | E38: 0 | F38: 0 | G38: 0 | H38: 0 | I38: 7.92154044 | J38: 0.0275901 | K38: 0 | L38: 0 | M38: 0 | O38: =SUM(F38:J38,M38) -> 7.94913054
B39: Direct Charges | D39: 0 | E39: 0 | F39: 0 | G39: 0 | H39: 0 | I39: 5.50633937 | J39: 0 | K39: 0 | L39: 0 | M39: 0 | O39: 5.50633937
B40: Total Field Support | D40: =D39+D38 -> 0 | E40: =E39+E38 -> 0 | F40: 0 | G40: 0 | H40: 0 | I40: 13.42787981 | J40: 0.0275901 | K40: 0 | L40: 0 | M40: 0 | O40: =O39+O38 -> 13.45546991
B41: Operations
B42: Network Switching | D42: 0 | E42: 0 | F42: 0 | G42: 0 | H42: 0 | I42: 0 | J42: 7.40226336 | K42: 0 | L42: 0 | M42: 0 | O42: =SUM(F42:J42,M42) -> 7.40226336
B43: Asset Monitoring | D43: 0 | E43: 0 | F43: 0 | G43: 0 | H43: 0 | I43: 0 | J43: 1.74083347 | K43: 0 | L43: 0 | M43: 0 | O43: 1.74083347
B44: Total Operations | D44: =D43+D42 -> 0 | E44: =E43+E42 -> 0 | F44: 0 | G44: 0 | H44: 0 | I44: 0 | J44: 9.14309683 | K44: 0 | L44: 0 | M44: 0 | O44: =O43+O42 -> 9.14309683
B45: Total Direct Operations & Maintenance | D45: =D33+D40+D44+D36 -> 15.51008705 | E45: 15.17106958 | F45: 30.68115663 | G45: 14.73847241 | H45: 2.75824914 | I45: 13.42787981 | J45: 9.17068693 | K45: 0 | L45: 0 | M45: 0 | O45: =O33+O40+O44+O36 -> 70.77644492
B46: Other Controllable
B47: Asset Manager Support
B48: Grid Planning | D48: 0 | E48: 0 | F48: 0 | G48: 0 | H48: 0 | I48: 0 | J48: 0 | K48: 3.43631835 | L48: 0 | M48: 3.43631835 | O48: =SUM(F48:J48,M48) -> 3.43631835
B49: Project Support | D49: 0 | E49: 0 | F49: 0 | G49: 0 | H49: 0 | I49: 0 | J49: 0 | K49: 3.90949349 | L49: 0 | M49: 3.90949349 | O49: 3.90949349
B50: IT Support | D50: 0 | E50: 0 | F50: 0 | G50: 0 | H50: 0 | I50: 0 | J50: 0 | K50: 0 | L50: 0.44479342 | M50: 0.44479342 | O50: 0.44479342
B51: Customer & Regulatory Support | D51: 0 | E51: 0 | F51: 0 | G51: 0 | H51: 0 | I51: 0 | J51: 0 | K51: 0.20132103 | L51: 0 | M51: 0.20132103 | O51: 0.20132103
B52: Sub-Totals | D52: =SUM(D48:D51) -> 0 | E52: =SUM(E48:E51) -> 0 | F52: 0 | G52: 0 | H52: 0 | I52: 0 | J52: 0 | K52: 7.54713287 | L52: 0.44479342 | M52: 7.99192629 | O52: 7.99192629
B53: Corporate Support
B54: Insurance | D54: 0 | E54: 0 | F54: 0 | G54: 0 | H54: 0 | I54: 0 | J54: 0 | K54: 0 | L54: 2.78314563 | M54: 2.78314563 | O54: =SUM(F54:J54,M54) -> 2.78314563
B55: Corporate Support | D55: 0 | E55: 0 | F55: 0 | G55: 0 | H55: 0 | I55: 0 | J55: 0 | K55: 0 | L55: 3.42094133 | M55: 3.42094133 | O55: 3.42094133
B56: Sub-Totals | D56: =D55+D54 -> 0 | E56: =E55+E54 -> 0 | F56: 0 | G56: 0 | H56: 0 | I56: 0 | J56: 0 | K56: 0 | L56: 6.20408696 | M56: 6.20408696 | O56: =O55+O54 -> 6.20408696
B57: Total Other Controllable | D57: =D56+D52 -> 0 | E57: =E56+E52 -> 0 | F57: 0 | G57: 0 | H57: 0 | I57: 0 | J57: 0 | K57: 7.54713287 | L57: 6.64888038 | M57: 14.19601325 | O57: =O56+O52 -> 14.19601325
B58: Summary
B59: Total Maintenance Labour1 | D59: =D31 -> 11.83484553 | E59: =E31 -> 13.72494958 | F59: 25.55979511 | G59: 11.61526196 | H59: 0 | I59: 0 | J59: 0 | K59: 0 | L59: 0 | M59: 0 | O59: =O31 -> 37.17505707
B60: Total Maintenance Non labour2 | D60: =D32 -> 3.67524152 | E60: 1.44612 | F60: 5.12136152 | G60: 3.12321045 | H60: 0 | I60: 0 | J60: 0 | K60: 0 | L60: 0 | M60: 0 | O60: =O32 -> 8.24457197
B61: Total Other3 | D61: =D40+D44+D36+D52+D56 -> 0 | E61: =E40+E44+E36+E52+E56 -> 0 | F61: 0 | G61: 0 | H61: 2.75824914 | I61: 13.42787981 | J61: 9.17068693 | K61: 7.54713287 | L61: 6.64888038 | M61: 14.19601325 | O61: 39.55282913
B62: TOTAL CONTROLLABLE OPEX | D62: =D57+D45 -> 15.51008705 | E62: =E57+E45 -> 15.17106958 | F62: 30.68115663 | G62: 14.73847241 | H62: 2.75824914 | I62: 13.42787981 | J62: 9.17068693 | K62: 7.54713287 | L62: 6.64888038 | M62: 14.19601325 | O62: =O57+O45 -> 84.97245817
B64: Other Opex
B65: Network Support | D65: 0 | E65: 0 | F65: 0 | G65: 0 | H65: 0 | I65: 0 | J65: 0 | K65: 8.18269492 | L65: 0 | M65: 8.18269492 | O65: =SUM(F65:J65,M65) -> 8.18269492
B66: Debt Raising | D66: 0 | E66: 0 | F66: 0 | G66: 0 | H66: 0 | I66: 0 | J66: 0 | K66: 0 | L66: 0 | M66: 0 | O66: 0
B67: Equity Raising | D67: 0 | E67: 0 | F67: 0 | G67: 0 | H67: 0 | I67: 0 | J67: 0 | K67: 0 | L67: 0 | M67: 0 | O67: 0
B68: Self Insurance | D68: 0 | E68: 0 | F68: 0 | G68: 0 | H68: 0 | I68: 0 | J68: 0 | K68: 0 | L68: 1.45329287 | M68: 1.45329287 | O68: 1.45329287
B69: TOTAL OTHER OPEX | D69: =SUM(D65:D68) -> 0 | E69: =SUM(E65:E68) -> 0 | F69: 0 | G69: 0 | H69: 0 | I69: 0 | J69: 0 | K69: 8.18269492 | L69: 1.45329287 | M69: 9.63598779 | O69: 9.63598779
B72: Grand Total | D72: =D69+D62 -> 15.51008705 | E72: =E69+E62 -> 15.17106958 | F72: 30.68115663 | G72: 14.73847241 | H72: 2.75824914 | I72: 13.42787981 | J72: 9.17068693 | K72: 15.72982779 | L72: 8.10217325 | M72: 23.83200104 | O72: =O69+O62 -> 94.60844596
B74: Revenue Cap Allowance
B78: 1 Total Maintenance Labour is the total combination of all Field Maintenance items
B79: 2Total Maintenance Non Labour is total combination of all Field Maintenance items
B80: 3The Total Other are all costs sourced from the opex line items including and below Field Support
B81: Labour includes the labour component of both in-house and external maintenance service providers

Sheet Fcast Opex Cat Yr8
D2: Home | E2: Link to Opex instructions - Table 6.1
B3: 2.4 Future by expenditure category
B4: Cat 2015-16
B5: ($m, real 2012/13) | D5: For the year ended 30 June 2016
D6: Field Maintenance | F6: Field Maintenance | G6: Operational Refurbishment | H6: Network Optimisation | I6: Maintenance Support | J6: Network Monitoring & Control | K6: Support / Corporate | M6: Corporate Support
D7: Routine | E7: Corrective | K7: Network | L7: Non-Network | O7: TOTAL | Q7: Revenue Cap Allowance
B8: Direct Operations & Maintenance
B9: Field Maintenance
B10: Communications
B11: Labour | D11: 1.34011629 | E11: 0.249874 | F11: 1.58999029 | G11: 0.44464658 | H11: 0 | I11: 0 | J11: 0 | K11: 0 | L11: 0 | M11: 0 | O11: =SUM(F11:J11,M11) -> 2.03463687
B12: Non Labour | D12: 0.14429369 | E12: 0.02575 | F12: 0.17004369 | G12: 0.01206057 | H12: 0 | I12: 0 | J12: 0 | K12: 0 | L12: 0 | M12: 0 | O12: =SUM(F12:J12,M12) -> 0.18210426
B13: Sub-Totals | D13: =D12+D11 -> 1.48440998 | E13: =E12+E11 -> 0.275624 | G13: 0.45670715 | H13: 0 | I13: 0 | J13: 0 | K13: 0 | L13: 0 | M13: 0 | O13: =O12+O11 -> 2.21674113
B14: Lines
B15: Labour | D15: 2.01858025 | E15: 7.99596812 | F15: 10.01454837 | G15: 5.92286791 | H15: 0 | I15: 0 | J15: 0 | K15: 0 | L15: 0 | M15: 0 | O15: =SUM(F15:J15,M15) -> 15.93741628
B16: Non Labour | D16: 2.48751005 | E16: 0.824 | F16: 3.31151005 | G16: 0.79042818 | H16: 0 | I16: 0 | J16: 0 | K16: 0 | L16: 0 | M16: 0 | O16: 4.10193823
B17: Sub-Totals | D17: =D16+D15 -> 4.5060903 | E17: =E16+E15 -> 8.81996812 | G17: =G16+G15 -> 6.71329609 | H17: 0 | I17: 0 | J17: 0 | K17: 0 | L17: 0 | M17: 0 | O17: =O16+O15 -> 20.03935451
B18: Secondary Systems
B19: Labour | D19: 1.41167359 | E19: 0.66633068 | F19: 2.07800427 | G19: 0.12926815 | H19: 0 | I19: 0 | J19: 0 | K19: 0 | L19: 0 | M19: 0 | O19: =SUM(F19:J19,M19) -> 2.20727242
B20: Non Labour | D20: 0.13167988 | E20: 0.07725 | F20: 0.20892988 | G20: 0.079928 | H20: 0 | I20: 0 | J20: 0 | K20: 0 | L20: 0 | M20: 0 | O20: 0.28885788
B21: Sub-Totals | D21: =D20+D19 -> 1.54335347 | E21: =E20+E19 -> 0.74358068 | G21: =G20+G19 -> 0.20919615 | H21: 0 | I21: 0 | J21: 0 | K21: 0 | L21: 0 | M21: 0 | O21: =O20+O19 -> 2.4961303
B22: Substations
B23: Labour | D23: 6.11916994 | E23: 3.83140139 | F23: 9.95057133 | G23: 4.767365 | H23: 0 | I23: 0 | J23: 0 | K23: 0 | L23: 0 | M23: 0 | O23: =SUM(F23:J23,M23) -> 14.71793633
B24: Non Labour | D24: 0.63564229 | E24: 0.38625 | F24: 1.02189229 | G24: 2.29446302 | H24: 0 | I24: 0 | J24: 0 | K24: 0 | L24: 0 | M24: 0 | O24: 3.31635531
B25: Sub-Totals | D25: =D24+D23 -> 6.75481223 | E25: =E24+E23 -> 4.21765139 | F25: 10.97246362 | G25: 7.06182802 | H25: 0 | I25: 0 | J25: 0 | K25: 0 | L25: 0 | M25: =M24+M23 -> 0 | O25: =O24+O23 -> 18.03429164
B26: Easements
B27: Labour | D27: 1.10995623 | E27: 0.03997984 | F27: 1.14993607 | G27: 0 | H27: 0 | I27: 0 | J27: 0 | K27: 0 | L27: 0 | M27: 0 | O27: =SUM(F27:J27,M27) -> 1.14993607
B28: Non Labour | D28: 0.27748905 | E28: 0.00412 | F28: 0.28160905 | G28: 0 | H28: 0 | I28: 0 | J28: 0 | K28: 0 | L28: 0 | M28: 0 | O28: 0.28160905
B29: Sub-Totals | D29: =D28+D27 -> 1.38744528 | E29: =E28+E27 -> 0.04409984 | F29: 1.43154512 | G29: 0 | H29: 0 | I29: 0 | J29: 0 | K29: 0 | L29: 0 | M29: =M28+M27 -> 0 | O29: =O28+O27 -> 1.43154512
B30: Summary
B31: Sub-Total Labour | D31: =D11+D15+D19+D23+D27 -> 11.9994963 | E31: =E11+E15+E19+E23+E27 -> 12.78355403 | F31: 24.78305033 | G31: 11.26414764 | H31: 0 | I31: 0 | J31: 0 | K31: 0 | L31: 0 | M31: 0 | O31: =O11+O15+O19+O23+O27 -> 36.04719797
B32: Sub-Total Non Labour | D32: =D12+D16+D20+D24+D28 -> 3.67661496 | E32: 1.31737 | F32: 4.99398496 | G32: 3.17687977 | H32: 0 | I32: 0 | J32: 0 | K32: 0 | L32: 0 | M32: 0 | O32: =O12+O16+O20+O24+O28 -> 8.17086473
B33: Total Maintenance | D33: =D32+D31 -> 15.67611126 | E33: =E32+E31 -> 14.10092403 | F33: 29.77703529 | G33: 14.44102741 | H33: 0 | I33: =I32+I31 -> 0 | J33: =J32+J31 -> 0 | K33: =K32+K31 -> 0 | L33: =L32+L31 -> 0 | M33: =M32+M31 -> 0 | O33: =O32+O31 -> 44.2180627
H35: 2.54771036 | I35: 0 | J35: 0 | K35: 0 | L35: 0 | M35: 0 | O35: =SUM(F35:J35,M35) -> 2.54771036
D36: =D35 -> 0 | E36: 0 | F36: 0 | G36: 0 | H36: =H35 -> 2.54771036 | I36: =I35 -> 0 | J36: 0 | K36: 0 | L36: 0 | M36: 0 | O36: =O35 -> 2.54771036
B37: Field Support
B38: Field Support | D38: 0 | E38: 0 | F38: 0 | G38: 0 | H38: 0 | I38: 8.06471997 | J38: 0.02787626 | K38: 0 | L38: 0 | M38: 0 | O38: =SUM(F38:J38,M38) -> 8.09259623
B39: Direct Charges | D39: 0 | E39: 0 | F39: 0 | G39: 0 | H39: 0 | I39: 5.83087273 | J39: 0 | K39: 0 | L39: 0 | M39: 0 | O39: 5.83087273
B40: Total Field Support | D40: =D39+D38 -> 0 | E40: =E39+E38 -> 0 | F40: 0 | G40: 0 | H40: 0 | I40: 13.8955927 | J40: 0.02787626 | K40: 0 | L40: 0 | M40: 0 | O40: =O39+O38 -> 13.92346896
B41: Operations
B42: Network Switching | D42: 0 | E42: 0 | F42: 0 | G42: 0 | H42: 0 | I42: 0 | J42: 7.61146155 | K42: 0 | L42: 0 | M42: 0 | O42: =SUM(F42:J42,M42) -> 7.61146155
B43: Asset Monitoring | D43: 0 | E43: 0 | F43: 0 | G43: 0 | H43: 0 | I43: 0 | J43: 1.80827435 | K43: 0 | L43: 0 | M43: 0 | O43: 1.80827435
B44: Total Operations | D44: =D43+D42 -> 0 | E44: =E43+E42 -> 0 | F44: 0 | G44: 0 | H44: 0 | I44: 0 | J44: 9.4197359 | K44: 0 | L44: 0 | M44: 0 | O44: =O43+O42 -> 9.4197359
B45: Total Direct Operations & Maintenance | D45: =D33+D40+D44+D36 -> 15.67611126 | E45: 14.10092403 | F45: 29.77703529 | G45: 14.44102741 | H45: 2.54771036 | I45: 13.8955927 | J45: 9.44761216 | K45: 0 | L45: 0 | M45: 0 | O45: =O33+O40+O44+O36 -> 70.10897792
B46: Other Controllable
B47: Asset Manager Support
B48: Grid Planning | D48: 0 | E48: 0 | F48: 0 | G48: 0 | H48: 0 | I48: 0 | J48: 0 | K48: 3.53798815 | L48: 0 | M48: 3.53798815 | O48: =SUM(F48:J48,M48) -> 3.53798815
B49: Project Support | D49: 0 | E49: 0 | F49: 0 | G49: 0 | H49: 0 | I49: 0 | J49: 0 | K49: 3.94561755 | L49: 0 | M49: 3.94561755 | O49: 3.94561755
B50: IT Support | D50: 0 | E50: 0 | F50: 0 | G50: 0 | H50: 0 | I50: 0 | J50: 0 | K50: 0 | L50: 0.45788916 | M50: 0.45788916 | O50: 0.45788916
B51: Customer & Regulatory Support | D51: 0 | E51: 0 | F51: 0 | G51: 0 | H51: 0 | I51: 0 | J51: 0 | K51: 0.20603667 | L51: 0 | M51: 0.20603667 | O51: 0.20603667
B52: Sub-Totals | D52: =SUM(D48:D51) -> 0 | E52: =SUM(E48:E51) -> 0 | F52: 0 | G52: 0 | H52: 0 | I52: 0 | J52: 0 | K52: 7.68964237 | L52: 0.45788916 | M52: 8.14753153 | O52: 8.14753153
B53: Corporate Support
B54: Insurance | D54: 0 | E54: 0 | F54: 0 | G54: 0 | H54: 0 | I54: 0 | J54: 0 | K54: 0 | L54: 3.04221663 | M54: 3.04221663 | O54: =SUM(F54:J54,M54) -> 3.04221663
B55: Corporate Support | D55: 0 | E55: 0 | F55: 0 | G55: 0 | H55: 0 | I55: 0 | J55: 0 | K55: 0 | L55: 3.93762219 | M55: 3.93762219 | O55: 3.93762219
B56: Sub-Totals | D56: =D55+D54 -> 0 | E56: =E55+E54 -> 0 | F56: 0 | G56: 0 | H56: 0 | I56: 0 | J56: 0 | K56: 0 | L56: 6.97983882 | M56: 6.97983882 | O56: =O55+O54 -> 6.97983882
B57: Total Other Controllable | D57: =D56+D52 -> 0 | E57: =E56+E52 -> 0 | F57: 0 | G57: 0 | H57: 0 | I57: 0 | J57: 0 | K57: 7.68964237 | L57: 7.43772798 | M57: 15.12737035 | O57: =O56+O52 -> 15.12737035
B58: Summary
B59: Total Maintenance Labour1 | D59: =D31 -> 11.9994963 | E59: =E31 -> 12.78355403 | F59: 24.78305033 | G59: 11.26414764 | H59: 0 | I59: 0 | J59: 0 | K59: 0 | L59: 0 | M59: 0 | O59: =O31 -> 36.04719797
B60: Total Maintenance Non labour2 | D60: =D32 -> 3.67661496 | E60: 1.31737 | F60: 4.99398496 | G60: 3.17687977 | H60: 0 | I60: 0 | J60: 0 | K60: 0 | L60: 0 | M60: 0 | O60: =O32 -> 8.17086473
B61: Total Other3 | D61: =D40+D44+D36+D52+D56 -> 0 | E61: =E40+E44+E36+E52+E56 -> 0 | F61: 0 | G61: 0 | H61: 2.54771036 | I61: 13.8955927 | J61: 9.44761216 | K61: 7.68964237 | L61: 7.43772798 | M61: 15.12737035 | O61: 41.01828557
B62: TOTAL CONTROLLABLE OPEX | D62: =D57+D45 -> 15.67611126 | E62: =E57+E45 -> 14.10092403 | F62: 29.77703529 | G62: 14.44102741 | H62: 2.54771036 | I62: 13.8955927 | J62: 9.44761216 | K62: 7.68964237 | L62: 7.43772798 | M62: 15.12737035 | O62: =O57+O45 -> 85.23634827
B64: Other Opex
B65: Network Support | D65: 0 | E65: 0 | F65: 0 | G65: 0 | H65: 0 | I65: 0 | J65: 0 | K65: 8.23446684 | L65: 0 | M65: 8.23446684 | O65: =SUM(F65:J65,M65) -> 8.23446684
B66: Debt Raising | D66: 0 | E66: 0 | F66: 0 | G66: 0 | H66: 0 | I66: 0 | J66: 0 | K66: 0 | L66: 0 | M66: 0 | O66: 0
B67: Equity Raising | D67: 0 | E67: 0 | F67: 0 | G67: 0 | H67: 0 | I67: 0 | J67: 0 | K67: 0 | L67: 0 | M67: 0 | O67: 0
B68: Self Insurance | D68: 0 | E68: 0 | F68: 0 | G68: 0 | H68: 0 | I68: 0 | J68: 0 | K68: 0 | L68: 1.49026962 | M68: 1.49026962 | O68: 1.49026962
B69: TOTAL OTHER OPEX | D69: =SUM(D65:D68) -> 0 | E69: =SUM(E65:E68) -> 0 | F69: 0 | G69: 0 | H69: 0 | I69: 0 | J69: 0 | K69: 8.23446684 | L69: 1.49026962 | M69: 9.72473646 | O69: 9.72473646
B72: Grand Total | D72: =D69+D62 -> 15.67611126 | E72: =E69+E62 -> 14.10092403 | F72: 29.77703529 | G72: 14.44102741 | H72: 2.54771036 | I72: 13.8955927 | J72: 9.44761216 | K72: 15.92410921 | L72: 8.9279976 | M72: 24.85210681 | O72: =O69+O62 -> 94.96108473
B74: Revenue Cap Allowance
B78: 1 Total Maintenance Labour is the total combination of all Field Maintenance items
B79: 2Total Maintenance Non Labour is total combination of all Field Maintenance items
B80: 3The Total Other are all costs sourced from the opex line items including and below Field Support
B81: Labour includes the labour component of both in-house and external maintenance service providers

Sheet Fcast Opex Cat Yr9
D2: Home | E2: Link to Opex instructions - Table 6.1
B3: 2.5 Future by expenditure category
B4: Cat 2016-17
B5: ($m, real 2012/13) | D5: For the year ended 30 June 2017
D6: Field Maintenance | F6: Field Maintenance | G6: Operational Refurbishment | H6: Network Optimisation | I6: Maintenance Support | J6: Network Monitoring & Control | K6: Support / Corporate | M6: Corporate Support
D7: Routine | E7: Corrective | K7: Network | L7: Non-Network | O7: TOTAL | Q7: Revenue Cap Allowance
B8: Direct Operations & Maintenance
B9: Field Maintenance
B10: Communications
B11: Labour | D11: 1.48307447 | E11: 0.25596849 | F11: 1.73904296 | G11: 0.20254376 | H11: 0 | I11: 0 | J11: 0 | K11: 0 | L11: 0 | M11: 0 | O11: =SUM(F11:J11,M11) -> 1.94158672
B12: Non Labour | D12: 0.15727213 | E12: 0.02575 | F12: 0.18302213 | G12: 0.02037556 | H12: 0 | I12: 0 | J12: 0 | K12: 0 | L12: 0 | M12: 0 | O12: =SUM(F12:J12,M12) -> 0.20339769
B13: Sub-Totals | D13: =D12+D11 -> 1.6403466 | E13: =E12+E11 -> 0.28171849 | G13: 0.22291932 | H13: 0 | I13: 0 | J13: 0 | K13: 0 | L13: 0 | M13: 0 | O13: =O12+O11 -> 2.14498441
B14: Lines
B15: Labour | D15: 1.90110975 | E15: 6.1432438 | F15: 8.04435355 | G15: 4.57542286 | H15: 0 | I15: 0 | J15: 0 | K15: 0 | L15: 0 | M15: 0 | O15: =SUM(F15:J15,M15) -> 12.61977641
B16: Non Labour | D16: 2.62386522 | E16: 0.618 | F16: 3.24186522 | G16: 1.47197428 | H16: 0 | I16: 0 | J16: 0 | K16: 0 | L16: 0 | M16: 0 | O16: 4.7138395
B17: Sub-Totals | D17: =D16+D15 -> 4.52497497 | E17: =E16+E15 -> 6.7612438 | G17: =G16+G15 -> 6.04739714 | H17: 0 | I17: 0 | J17: 0 | K17: 0 | L17: 0 | M17: 0 | O17: =O16+O15 -> 17.33361591
B18: Secondary Systems
B19: Labour | D19: 1.28610878 | E19: 0.68258264 | F19: 1.96869142 | G19: 0.13242103 | H19: 0 | I19: 0 | J19: 0 | K19: 0 | L19: 0 | M19: 0 | O19: =SUM(F19:J19,M19) -> 2.10111245
B20: Non Labour | D20: 0.11558456 | E20: 0.07725 | F20: 0.19283456 | G20: 0.079928 | H20: 0 | I20: 0 | J20: 0 | K20: 0 | L20: 0 | M20: 0 | O20: 0.27276256
B21: Sub-Totals | D21: =D20+D19 -> 1.40169334 | E21: =E20+E19 -> 0.75983264 | G21: =G20+G19 -> 0.21234903 | H21: 0 | I21: 0 | J21: 0 | K21: 0 | L21: 0 | M21: 0 | O21: =O20+O19 -> 2.37387501
B22: Substations
B23: Labour | D23: 7.31022251 | E23: 3.9248502 | F23: 11.23507271 | G23: 3.78931488 | H23: 0 | I23: 0 | J23: 0 | K23: 0 | L23: 0 | M23: 0 | O23: =SUM(F23:J23,M23) -> 15.02438759
B24: Non Labour | D24: 0.74198378 | E24: 0.38625 | F24: 1.12823378 | G24: 2.13881612 | H24: 0 | I24: 0 | J24: 0 | K24: 0 | L24: 0 | M24: 0 | O24: 3.2670499
B25: Sub-Totals | D25: =D24+D23 -> 8.05220629 | E25: =E24+E23 -> 4.3111002 | F25: 12.36330649 | G25: 5.928131 | H25: 0 | I25: 0 | J25: 0 | K25: 0 | L25: 0 | M25: =M24+M23 -> 0 | O25: =O24+O23 -> 18.29143749
B26: Easements
B27: Labour | D27: 1.10995623 | E27: 0.04095496 | F27: 1.15091119 | G27: 0 | H27: 0 | I27: 0 | J27: 0 | K27: 0 | L27: 0 | M27: 0 | O27: =SUM(F27:J27,M27) -> 1.15091119
B28: Non Labour | D28: 0.27748906 | E28: 0.00412 | F28: 0.28160906 | G28: 0 | H28: 0 | I28: 0 | J28: 0 | K28: 0 | L28: 0 | M28: 0 | O28: 0.28160906
B29: Sub-Totals | D29: =D28+D27 -> 1.38744529 | E29: =E28+E27 -> 0.04507496 | F29: 1.43252025 | G29: 0 | H29: 0 | I29: 0 | J29: 0 | K29: 0 | L29: 0 | M29: =M28+M27 -> 0 | O29: =O28+O27 -> 1.43252025
B30: Summary
B31: Sub-Total Labour | D31: =D11+D15+D19+D23+D27 -> 13.09047174 | E31: =E11+E15+E19+E23+E27 -> 11.04760009 | F31: 24.13807183 | G31: 8.69970253 | H31: 0 | I31: 0 | J31: 0 | K31: 0 | L31: 0 | M31: 0 | O31: =O11+O15+O19+O23+O27 -> 32.83777436
B32: Sub-Total Non Labour | D32: =D12+D16+D20+D24+D28 -> 3.91619475 | E32: 1.11137 | F32: 5.02756475 | G32: 3.71109396 | H32: 0 | I32: 0 | J32: 0 | K32: 0 | L32: 0 | M32: 0 | O32: =O12+O16+O20+O24+O28 -> 8.73865871
B33: Total Maintenance | D33: =D32+D31 -> 17.00666649 | E33: =E32+E31 -> 12.15897009 | F33: 29.16563658 | G33: 12.41079649 | H33: 0 | I33: =I32+I31 -> 0 | J33: =J32+J31 -> 0 | K33: =K32+K31 -> 0 | L33: =L32+L31 -> 0 | M33: =M32+M31 -> 0 | O33: =O32+O31 -> 41.57643307
B34: Network Optimisation
B35: Network Optimisation | H35: 3.51503774 | I35: 0 | J35: 0 | K35: 0 | L35: 0 | M35: 0 | O35: =SUM(F35:J35,M35) -> 3.51503774
B36: Total Network Optimisation | D36: =D35 -> 0 | E36: 0 | F36: 0 | G36: 0 | H36: =H35 -> 3.51503774 | I36: =I35 -> 0 | J36: 0 | K36: 0 | L36: 0 | M36: 0 | O36: =O35 -> 3.51503774
B37: Field Support
B38: Field Support | D38: 0 | E38: 0 | F38: 0 | G38: 0 | H38: 0 | I38: 8.32316651 | J38: 0.02816652 | K38: 0 | L38: 0 | M38: 0 | O38: =SUM(F38:J38,M38) -> 8.35133303
B39: Direct Charges | D39: 0 | E39: 0 | F39: 0 | G39: 0 | H39: 0 | I39: 6.19946619 | J39: 0 | K39: 0 | L39: 0 | M39: 0 | O39: 6.19946619
B40: Total Field Support | D40: =D39+D38 -> 0 | E40: =E39+E38 -> 0 | F40: 0 | G40: 0 | H40: 0 | I40: 14.5226327 | J40: 0.02816652 | K40: 0 | L40: 0 | M40: 0 | O40: =O39+O38 -> 14.55079922
B41: Operations
B42: Network Switching | D42: 0 | E42: 0 | F42: 0 | G42: 0 | H42: 0 | I42: 0 | J42: 7.89850946 | K42: 0 | L42: 0 | M42: 0 | O42: =SUM(F42:J42,M42) -> 7.89850946
B43: Asset Monitoring | D43: 0 | E43: 0 | F43: 0 | G43: 0 | H43: 0 | I43: 0 | J43: 1.8818009 | K43: 0 | L43: 0 | M43: 0 | O43: 1.8818009
B44: Total Operations | D44: =D43+D42 -> 0 | E44: =E43+E42 -> 0 | F44: 0 | G44: 0 | H44: 0 | I44: 0 | J44: 9.78031036 | K44: 0 | L44: 0 | M44: 0 | O44: =O43+O42 -> 9.78031036
B45: Total Direct Operations & Maintenance | D45: =D33+D40+D44+D36 -> 17.00666649 | E45: 12.15897009 | F45: 29.16563658 | G45: 12.41079649 | H45: 3.51503774 | I45: 14.5226327 | J45: 9.80847688 | K45: 0 | L45: 0 | M45: 0 | O45: =O33+O40+O44+O36 -> 69.42258039
B46: Other Controllable
B47: Asset Manager Support
B48: Grid Planning | D48: 0 | E48: 0 | F48: 0 | G48: 0 | H48: 0 | I48: 0 | J48: 0 | K48: 3.64897347 | L48: 0 | M48: 3.64897347 | O48: =SUM(F48:J48,M48) -> 3.64897347
B49: Project Support | D49: 0 | E49: 0 | F49: 0 | G49: 0 | H49: 0 | I49: 0 | J49: 0 | K49: 4.07254914 | L49: 0 | M49: 4.07254914 | O49: 4.07254914
B50: IT Support | D50: 0 | E50: 0 | F50: 0 | G50: 0 | H50: 0 | I50: 0 | J50: 0 | K50: 0 | L50: 0.47218214 | M50: 0.47218214 | O50: 0.47218214
B51: Customer & Regulatory Support | D51: 0 | E51: 0 | F51: 0 | G51: 0 | H51: 0 | I51: 0 | J51: 0 | K51: 2.10569511 | L51: 0 | M51: 2.10569511 | O51: 2.10569511
B52: Sub-Totals | D52: =SUM(D48:D51) -> 0 | E52: =SUM(E48:E51) -> 0 | F52: 0 | G52: 0 | H52: 0 | I52: 0 | J52: 0 | K52: 9.82721772 | L52: 0.47218214 | M52: 10.29939986 | O52: 10.29939986
B53: Corporate Support
B54: Insurance | D54: 0 | E54: 0 | F54: 0 | G54: 0 | H54: 0 | I54: 0 | J54: 0 | K54: 0 | L54: 3.26982297 | M54: 3.26982297 | O54: =SUM(F54:J54,M54) -> 3.26982297
B55: Corporate Support | D55: 0 | E55: 0 | F55: 0 | G55: 0 | H55: 0 | I55: 0 | J55: 0 | K55: 0 | L55: 3.98949297 | M55: 3.98949297 | O55: 3.98949297
B56: Sub-Totals | D56: =D55+D54 -> 0 | E56: =E55+E54 -> 0 | F56: 0 | G56: 0 | H56: 0 | I56: 0 | J56: 0 | K56: 0 | L56: 7.25931594 | M56: 7.25931594 | O56: =O55+O54 -> 7.25931594
B57: Total Other Controllable | D57: =D56+D52 -> 0 | E57: =E56+E52 -> 0 | F57: 0 | G57: 0 | H57: 0 | I57: 0 | J57: 0 | K57: 9.82721772 | L57: 7.73149808 | M57: 17.5587158 | O57: =O56+O52 -> 17.5587158
B58: Summary
B59: Total Maintenance Labour1 | D59: =D31 -> 13.09047174 | E59: =E31 -> 11.04760009 | F59: 24.13807183 | G59: 8.69970253 | H59: 0 | I59: 0 | J59: 0 | K59: 0 | L59: 0 | M59: 0 | O59: =O31 -> 32.83777436
B60: Total Maintenance Non labour2 | D60: =D32 -> 3.91619475 | E60: 1.11137 | F60: 5.02756475 | G60: 3.71109396 | H60: 0 | I60: 0 | J60: 0 | K60: 0 | L60: 0 | M60: 0 | O60: =O32 -> 8.73865871
B61: Total Other3 | D61: =D40+D44+D36+D52+D56 -> 0 | E61: =E40+E44+E36+E52+E56 -> 0 | F61: 0 | G61: 0 | H61: 3.51503774 | I61: 14.5226327 | J61: 9.80847688 | K61: 9.82721772 | L61: 7.73149808 | M61: 17.5587158 | O61: 45.40486312
B62: TOTAL CONTROLLABLE OPEX | D62: =D57+D45 -> 17.00666649 | E62: =E57+E45 -> 12.15897009 | F62: 29.16563658 | G62: 12.41079649 | H62: 3.51503774 | I62: 14.5226327 | J62: 9.80847688 | K62: 9.82721772 | L62: 7.73149808 | M62: 17.5587158 | O62: =O57+O45 -> 86.98129619
B64: Other Opex
B65: Network Support | D65: 0 | E65: 0 | F65: 0 | G65: 0 | H65: 0 | I65: 0 | J65: 0 | K65: 8.49143021 | L65: 0 | M65: 8.49143021 | O65: =SUM(F65:J65,M65) -> 8.49143021
B66: Debt Raising | D66: 0 | E66: 0 | F66: 0 | G66: 0 | H66: 0 | I66: 0 | J66: 0 | K66: 0 | L66: 0 | M66: 0 | O66: 0
B67: Equity Raising | D67: 0 | E67: 0 | F67: 0 | G67: 0 | H67: 0 | I67: 0 | J67: 0 | K67: 0 | L67: 0 | M67: 0 | O67: 0
B68: Self Insurance | D68: 0 | E68: 0 | F68: 0 | G68: 0 | H68: 0 | I68: 0 | J68: 0 | K68: 0 | L68: 1.53728259 | M68: 1.53728259 | O68: 1.53728259
B69: TOTAL OTHER OPEX | D69: =SUM(D65:D68) -> 0 | E69: =SUM(E65:E68) -> 0 | F69: 0 | G69: 0 | H69: 0 | I69: 0 | J69: 0 | K69: 8.49143021 | L69: 1.53728259 | M69: 10.0287128 | O69: 10.0287128
B72: Grand Total | D72: =D69+D62 -> 17.00666649 | E72: =E69+E62 -> 12.15897009 | F72: 29.16563658 | G72: 12.41079649 | H72: 3.51503774 | I72: 14.5226327 | J72: 9.80847688 | K72: 18.31864793 | L72: 9.26878067 | M72: 27.5874286 | O72: =O69+O62 -> 97.01000899
B74: Revenue Cap Allowance
B78: 1 Total Maintenance Labour is the total combination of all Field Maintenance items
B79: 2Total Maintenance Non Labour is total combination of all Field Maintenance items
B80: 3The Total Other are all costs sourced from the opex line items including and below Field Support
B81: Labour includes the labour component of both in-house and external maintenance service providers

Sheet Fcast Opex Cat Yr10
D2: Home | E2: Link to Opex instructions - Table 6.1
B3: 2.6 Future by expenditure category
B4: Cat 2017-18
B5: ($m, real 2012/13) | D5: For the year ended 30 June 2018
D6: Field Maintenance | F6: Field Maintenance | G6: Operational Refurbishment | H6: Network Optimisation | I6: Maintenance Support | J6: Network Monitoring & Control | K6: Support / Corporate | M6: Corporate Support
D7: Routine | E7: Corrective | K7: Network | L7: Non-Network | O7: TOTAL | Q7: Revenue Cap Allowance
B8: Direct Operations & Maintenance
B9: Field Maintenance
B10: Communications
B11: Labour | D11: 1.61447236 | E11: 0.2629608 | F11: 1.87743316 | G11: 0 | H11: 0 | I11: 0 | J11: 0 | K11: 0 | L11: 0 | M11: 0 | O11: =SUM(F11:J11,M11) -> 1.87743316
B12: Non Labour | D12: 0.16822717 | E12: 0.02575 | F12: 0.19397717 | G12: 0 | H12: 0 | I12: 0 | J12: 0 | K12: 0 | L12: 0 | M12: 0 | O12: =SUM(F12:J12,M12) -> 0.19397717
B13: Sub-Totals | D13: =D12+D11 -> 1.78269953 | E13: =E12+E11 -> 0.2887108 | G13: 0 | H13: 0 | I13: 0 | J13: 0 | K13: 0 | L13: 0 | M13: 0 | O13: =O12+O11 -> 2.07141033
B14: Lines
B15: Labour | D15: 1.97355073 | E15: 6.31105924 | F15: 8.28460997 | G15: 2.34450417 | H15: 0 | I15: 0 | J15: 0 | K15: 0 | L15: 0 | M15: 0 | O15: =SUM(F15:J15,M15) -> 10.62911414
B16: Non Labour | D16: 2.63191501 | E16: 0.618 | F16: 3.24991501 | G16: 1.26397531 | H16: 0 | I16: 0 | J16: 0 | K16: 0 | L16: 0 | M16: 0 | O16: 4.51389032
B17: Sub-Totals | D17: =D16+D15 -> 4.60546574 | E17: =E16+E15 -> 6.92905924 | G17: =G16+G15 -> 3.60847948 | H17: 0 | I17: 0 | J17: 0 | K17: 0 | L17: 0 | M17: 0 | O17: =O16+O15 -> 15.14300446
B18: Secondary Systems
B19: Labour | D19: 1.66395868 | E19: 0.70122881 | F19: 2.36518749 | G19: 0.13603839 | H19: 0 | I19: 0 | J19: 0 | K19: 0 | L19: 0 | M19: 0 | O19: =SUM(F19:J19,M19) -> 2.50122588
B20: Non Labour | D20: 0.14914457 | E20: 0.07725 | F20: 0.22639457 | G20: 0.079928 | H20: 0 | I20: 0 | J20: 0 | K20: 0 | L20: 0 | M20: 0 | O20: 0.30632257
B21: Sub-Totals | D21: =D20+D19 -> 1.81310325 | E21: =E20+E19 -> 0.77847881 | G21: =G20+G19 -> 0.21596639 | H21: 0 | I21: 0 | J21: 0 | K21: 0 | L21: 0 | M21: 0 | O21: =O20+O19 -> 2.80754845
B22: Substations
B23: Labour | D23: 7.46190599 | E23: 4.03206563 | F23: 11.49397162 | G23: 4.79569486 | H23: 0 | I23: 0 | J23: 0 | K23: 0 | L23: 0 | M23: 0 | O23: =SUM(F23:J23,M23) -> 16.28966648
B24: Non Labour | D24: 0.73895889 | E24: 0.38625 | F24: 1.12520889 | G24: 2.92000329 | H24: 0 | I24: 0 | J24: 0 | K24: 0 | L24: 0 | M24: 0 | O24: 4.04521218
B25: Sub-Totals | D25: =D24+D23 -> 8.20086488 | E25: =E24+E23 -> 4.41831563 | F25: 12.61918051 | G25: 7.71569815 | H25: 0 | I25: 0 | J25: 0 | K25: 0 | L25: 0 | M25: =M24+M23 -> 0 | O25: =O24+O23 -> 20.33487866
B26: Easements
B27: Labour | D27: 1.10995623 | E27: 0.04207373 | F27: 1.15202996 | G27: 0 | H27: 0 | I27: 0 | J27: 0 | K27: 0 | L27: 0 | M27: 0 | O27: =SUM(F27:J27,M27) -> 1.15202996
B28: Non Labour | D28: 0.27748906 | E28: 0.00412 | F28: 0.28160906 | G28: 0 | H28: 0 | I28: 0 | J28: 0 | K28: 0 | L28: 0 | M28: 0 | O28: 0.28160906
B29: Sub-Totals | D29: =D28+D27 -> 1.38744529 | E29: =E28+E27 -> 0.04619373 | F29: 1.43363902 | G29: 0 | H29: 0 | I29: 0 | J29: 0 | K29: 0 | L29: 0 | M29: =M28+M27 -> 0 | O29: =O28+O27 -> 1.43363902
B30: Summary
B31: Sub-Total Labour | D31: =D11+D15+D19+D23+D27 -> 13.82384399 | E31: =E11+E15+E19+E23+E27 -> 11.34938821 | F31: 25.1732322 | G31: 7.27623742 | H31: 0 | I31: 0 | J31: 0 | K31: 0 | L31: 0 | M31: 0 | O31: =O11+O15+O19+O23+O27 -> 32.44946962
B32: Sub-Total Non Labour | D32: =D12+D16+D20+D24+D28 -> 3.9657347 | E32: 1.11137 | F32: 5.0771047 | G32: 4.2639066 | H32: 0 | I32: 0 | J32: 0 | K32: 0 | L32: 0 | M32: 0 | O32: =O12+O16+O20+O24+O28 -> 9.3410113
B33: Total Maintenance | D33: =D32+D31 -> 17.78957869 | E33: =E32+E31 -> 12.46075821 | F33: 30.2503369 | G33: 11.54014402 | H33: 0 | I33: =I32+I31 -> 0 | J33: =J32+J31 -> 0 | K33: =K32+K31 -> 0 | L33: =L32+L31 -> 0 | M33: =M32+M31 -> 0 | O33: =O32+O31 -> 41.79048092
H35: 3.66660645 | I35: 0 | J35: 0 | K35: 0 | L35: 0 | M35: 0 | O35: =SUM(F35:J35,M35) -> 3.66660645
D36: =D35 -> 0 | E36: 0 | F36: 0 | G36: 0 | H36: =H35 -> 3.66660645 | I36: =I35 -> 0 | J36: 0 | K36: 0 | L36: 0 | M36: 0 | O36: =O35 -> 3.66660645
B37: Field Support
B38: Field Support | D38: 0 | E38: 0 | F38: 0 | G38: 0 | H38: 0 | I38: 8.46658362 | J38: 0.02847727 | K38: 0 | L38: 0 | M38: 0 | O38: =SUM(F38:J38,M38) -> 8.49506089
B39: Direct Charges | D39: 0 | E39: 0 | F39: 0 | G39: 0 | H39: 0 | I39: 6.54655318 | J39: 0 | K39: 0 | L39: 0 | M39: 0 | O39: 6.54655318
B40: Total Field Support | D40: =D39+D38 -> 0 | E40: =E39+E38 -> 0 | F40: 0 | G40: 0 | H40: 0 | I40: 15.0131368 | J40: 0.02847727 | K40: 0 | L40: 0 | M40: 0 | O40: =O39+O38 -> 15.04161407
B41: Operations
B42: Network Switching | D42: 0 | E42: 0 | F42: 0 | G42: 0 | H42: 0 | I42: 0 | J42: 8.13547491 | K42: 0 | L42: 0 | M42: 0 | O42: =SUM(F42:J42,M42) -> 8.13547491
B43: Asset Monitoring | D43: 0 | E43: 0 | F43: 0 | G43: 0 | H43: 0 | I43: 0 | J43: 1.96551526 | K43: 0 | L43: 0 | M43: 0 | O43: 1.96551526
B44: Total Operations | D44: =D43+D42 -> 0 | E44: =E43+E42 -> 0 | F44: 0 | G44: 0 | H44: 0 | I44: 0 | J44: 10.10099017 | K44: 0 | L44: 0 | M44: 0 | O44: =O43+O42 -> 10.10099017
B45: Total Direct Operations & Maintenance | D45: =D33+D40+D44+D36 -> 17.78957869 | E45: 12.46075821 | F45: 30.2503369 | G45: 11.54014402 | H45: 3.66660645 | I45: 15.0131368 | J45: 10.12946744 | K45: 0 | L45: 0 | M45: 0 | O45: =O33+O40+O44+O36 -> 70.59969161
B46: Other Controllable
B47: Asset Manager Support
B48: Grid Planning | D48: 0 | E48: 0 | F48: 0 | G48: 0 | H48: 0 | I48: 0 | J48: 0 | K48: 3.7752383 | L48: 0 | M48: 3.7752383 | O48: =SUM(F48:J48,M48) -> 3.7752383
B49: Project Support | D49: 0 | E49: 0 | F49: 0 | G49: 0 | H49: 0 | I49: 0 | J49: 0 | K49: 4.08781104 | L49: 0 | M49: 4.08781104 | O49: 4.08781104
B50: IT Support | D50: 0 | E50: 0 | F50: 0 | G50: 0 | H50: 0 | I50: 0 | J50: 0 | K50: 0 | L50: 0.48844042 | M50: 0.48844042 | O50: 0.48844042
B51: Customer & Regulatory Support | D51: 0 | E51: 0 | F51: 0 | G51: 0 | H51: 0 | I51: 0 | J51: 0 | K51: 1.17461676 | L51: 0 | M51: 1.17461676 | O51: 1.17461676
B52: Sub-Totals | D52: =SUM(D48:D51) -> 0 | E52: =SUM(E48:E51) -> 0 | F52: 0 | G52: 0 | H52: 0 | I52: 0 | J52: 0 | K52: 9.0376661 | L52: 0.48844042 | M52: 9.52610652 | O52: 9.52610652
B53: Corporate Support
B54: Insurance | D54: 0 | E54: 0 | F54: 0 | G54: 0 | H54: 0 | I54: 0 | J54: 0 | K54: 0 | L54: 3.41227162 | M54: 3.41227162 | O54: =SUM(F54:J54,M54) -> 3.41227162
B55: Corporate Support | D55: 0 | E55: 0 | F55: 0 | G55: 0 | H55: 0 | I55: 0 | J55: 0 | K55: 0 | L55: 3.96228914 | M55: 3.96228914 | O55: 3.96228914
B56: Sub-Totals | D56: =D55+D54 -> 0 | E56: =E55+E54 -> 0 | F56: 0 | G56: 0 | H56: 0 | I56: 0 | J56: 0 | K56: 0 | L56: 7.37456076 | M56: 7.37456076 | O56: =O55+O54 -> 7.37456076
B57: Total Other Controllable | D57: =D56+D52 -> 0 | E57: =E56+E52 -> 0 | F57: 0 | G57: 0 | H57: 0 | I57: 0 | J57: 0 | K57: 9.0376661 | L57: 7.86300118 | M57: 16.90066728 | O57: =O56+O52 -> 16.90066728
B58: Summary
B59: Total Maintenance Labour1 | D59: =D31 -> 13.82384399 | E59: =E31 -> 11.34938821 | F59: 25.1732322 | G59: 7.27623742 | H59: 0 | I59: 0 | J59: 0 | K59: 0 | L59: 0 | M59: 0 | O59: =O31 -> 32.44946962
B60: Total Maintenance Non labour2 | D60: =D32 -> 3.9657347 | E60: 1.11137 | F60: 5.0771047 | G60: 4.2639066 | H60: 0 | I60: 0 | J60: 0 | K60: 0 | L60: 0 | M60: 0 | O60: =O32 -> 9.3410113
B61: Total Other3 | D61: =D40+D44+D36+D52+D56 -> 0 | E61: =E40+E44+E36+E52+E56 -> 0 | F61: 0 | G61: 0 | H61: 3.66660645 | I61: 15.0131368 | J61: 10.12946744 | K61: 9.0376661 | L61: 7.86300118 | M61: 16.90066728 | O61: 45.70987797
B62: TOTAL CONTROLLABLE OPEX | D62: =D57+D45 -> 17.78957869 | E62: =E57+E45 -> 12.46075821 | F62: 30.2503369 | G62: 11.54014402 | H62: 3.66660645 | I62: 15.0131368 | J62: 10.12946744 | K62: 9.0376661 | L62: 7.86300118 | M62: 16.90066728 | O62: =O57+O45 -> 87.50035889
B64: Other Opex
B65: Network Support | D65: 0 | E65: 0 | F65: 0 | G65: 0 | H65: 0 | I65: 0 | J65: 0 | K65: 8.5753783 | L65: 0 | M65: 8.5753783 | O65: =SUM(F65:J65,M65) -> 8.5753783
B66: Debt Raising | D66: 0 | E66: 0 | F66: 0 | G66: 0 | H66: 0 | I66: 0 | J66: 0 | K66: 0 | L66: 0 | M66: 0 | O66: 0
B67: Equity Raising | D67: 0 | E67: 0 | F67: 0 | G67: 0 | H67: 0 | I67: 0 | J67: 0 | K67: 0 | L67: 0 | M67: 0 | O67: 0
B68: Self Insurance | D68: 0 | E68: 0 | F68: 0 | G68: 0 | H68: 0 | I68: 0 | J68: 0 | K68: 0 | L68: 1.56940424 | M68: 1.56940424 | O68: 1.56940424
B69: TOTAL OTHER OPEX | D69: =SUM(D65:D68) -> 0 | E69: =SUM(E65:E68) -> 0 | F69: 0 | G69: 0 | H69: 0 | I69: 0 | J69: 0 | K69: 8.5753783 | L69: 1.56940424 | M69: 10.14478254 | O69: 10.14478254
B72: Grand Total | D72: =D69+D62 -> 17.78957869 | E72: =E69+E62 -> 12.46075821 | F72: 30.2503369 | G72: 11.54014402 | H72: 3.66660645 | I72: 15.0131368 | J72: 10.12946744 | K72: 17.6130444 | L72: 9.43240542 | M72: 27.04544982 | O72: =O69+O62 -> 97.64514143
B74: Revenue Cap Allowance
B78: 1 Total Maintenance Labour is the total combination of all Field Maintenance items
B79: 2Total Maintenance Non Labour is total combination of all Field Maintenance items
B80: 3The Total Other are all costs sourced from the opex line items including and below Field Support
B81: Labour includes the labour component of both in-house and external maintenance service providers

Sheet Historic Capex by Category
A1: 3.1 HISTORIC CAPEX by project category | E1: Home | I1: Link to Historic Capex Instructions - Table 6.2 | M1: Link to Historic Capex Commentary - Table 5.2
A5: $M nominal
A7: Project Category | F7: Any Part Year | G7: Year 1 | H7: Year 2 | I7: Year 3 | J7: Year 4 | K7: Year 5 | L7: TOTAL
A9: NETWORK
A10: LOAD DRIVEN | B10: Augmentation | G10: 14.25568104 | H10: 42.49 | I10: 161.7782315 | J10: 72.14828622 | K10: 56.44802482 | L10: 347.1121009
B12: Connection | G12: 11.84955998 | H12: 20.8293076 | I12: 28.88113288 | J12: 23.71094988 | K12: 35.62758879 | L12: 120.8985391
B14: Easements | G14: 1.20790972 | H14: 0.19355849 | I14: 1.18204808 | J14: 12.26526687 | K14: 14.52906549 | L14: 29.37784865
A17: NON-LOAD DRIVEN | B17: Replacement | G17: 55.27264018 | H17: 34.97628743 | I17: 19.17799685 | J17: 47.04739482 | K17: 69.52597627 | L17: 226.0002956
B19: Security/Compliance | G19: 3.72180307 | H19: 8.02194488 | I19: 10.99650985 | J19: 14.08458026 | K19: 23.82392537 | L19: 60.64876342
B21: Other | G21: 0 | H21: 0 | I21: 0 | J21: 0 | K21: 0 | L21: 0
B23: Inventory/Spares | G23: 3.83997704 | H23: 2.43854657 | I23: 2.22844317 | J23: 2.44076678 | K23: 4.09259372 | L23: 15.04032728
A25: NON NETWORK
A26: BUSINESS IT | B26: Information Technology | G26: 6.39527559 | H26: 5.78969239 | I26: 7.27778203 | J26: 7.715115088 | K26: 12.70021511 | L26: 39.8780802
A28: SUPPORT THE BUSINESS | B28: Facilities | G28: 0.86482247 | H28: 2.83049528 | I28: 0.71746148 | J28: 1.16690162 | K28: 1.90652898 | L28: 7.48620983
A31: TOTAL HISTORIC CAPEX | G31: 97.40766909 | H31: 117.57 | I31: 232.2396059 | J31: 180.5792615 | K31: 218.6539185 | L31: 846.45

Sheet Historic Capex by Asset Class
A1: 3.2 HISTORIC CAPEX by asset class | E1: Home | G1: Link to Capex Instructions - Table 6.2
A5: $M, Nominal | E5: Any Part Year | F5: Year 1 | G5: Year 2 | H5: Year 3 | I5: Year 4 | J5: Year 5 | K5: TOTAL
A6: Asset class
E7: Cost | F7: Cost | G7: Cost | H7: Cost | I7: Cost | J7: Cost | K7: Cost
A8: Transmission Lines | F8: 22.28 | G8: 6.33 | H8: 11.46745153 | I8: 6.14612018 | J8: 11.46878369 | K8: 57.69235539
A9: Transmission Lines (underground) | F9: 3.14 | G9: 12.54 | H9: 60.07316961 | I9: 20.08249874 | J9: 0.6079714614 | K9: 96.44363981
A10: Substations Primary Plant | F10: 36.8 | G10: 52.06 | H10: 72.43260307 | I10: 54.12888185 | J10: 80.22288645 | K10: 295.6343714
A11: Substation Establishment | F11: 6.28 | G11: 4.99 | H11: 10.29478215 | I11: 5.363141344 | J11: 8.824594761 | K11: 35.75251825
A12: Substation Demountable Buildings | F12: 0.72 | G12: 0.88 | H12: 2.10319759 | I12: 1.448648236 | J12: 2.354662141 | K12: 7.506507967
A13: Substation Fences | F13: 2.41 | G13: 3.29 | H13: 4.341909406 | I13: 2.358824504 | J13: 8.283061599 | K13: 20.68379551
A14: Subs Sec Electro Mechanical | F14: 0 | G14: 0 | H14: 0 | I14: 0 | J14: 0 | K14: 0
A15: Substations Secondary Systems - Electronic | F15: 10.2 | G15: 15.32 | H15: 32.34146087 | I15: 36.54126459 | J15: 49.17465934 | K15: 143.5773848
A16: Communications (buildings, towers and site infrastructure) | F16: 6.06 | G16: 11.54 | H16: 21.11003944 | I16: 0.1100357535 | J16: 0.4527471154 | K16: 39.27282231
A17: Communications (other assets) | F17: 0 | G17: 0 | H17: 0 | I17: 16.73240464 | J17: 12.55191505 | K17: 29.28431968
A18: Network Switching | F18: 2.15 | G18: 0.52 | H18: 0.02572051 | I18: 0.18695681 | J18: 1.48982243 | K18: 4.37249975
A19: Easements | F19: 0.09 | G19: 0.55 | H19: 1.154306869 | I19: 9.963874998 | J19: 12.87843108 | K19: 24.63661295
A20: Land | F20: 1.53 | G20: 1.21 | H20: 5.05673443 | I20: 4.137123452 | J20: 2.149560595 | K20: 14.08341848
A21: Commercial Buildings | F21: 0.59 | G21: 1.56 | H21: 0.5980361597 | I21: 0.4342033772 | J21: 1.19902127 | K21: 4.381260807
A22: Refurbishment Projects 2008-2013 | F22: 0 | G22: 0 | H22: 0 | I22: 6.642905257 | J22: 5.99377889 | K22: 12.63668415
A23: Computers, Software and Office Machines | F23: 4.62 | G23: 5.47 | H23: 11.11826414 | I23: 11.77306221 | J23: 16.92051915 | K23: 49.9018455
A24: Office furniture, movable plant, and misc | F24: 0.54 | G24: 1.31 | H24: 0.1202833203 | I24: 4.529315599 | J24: 4.081503524 | K24: 10.58110244
A25: Vechicles | F25: 0 | G25: 0 | H25: 0 | I25: 0 | J25: 0 | K25: 0
A28: TOTAL CAPEX | F28: 97.41 | G28: 117.57 | H28: 232.2379591 | I28: 180.5792615 | J28: 218.6539185 | K28: 846.45

Sheet Hist Capex - Network
A1: 3.3 HISTORIC CAPEX - NETWORK - by project
F3: Home | I3: Link to Historic Capex Instructions - Table 6.2 | L3: Link to Historic Capex Commentary - Table 5.2
A7: $M nominal
F8: Yearly expenditure by project (inclusive of FDC)
A10: Project ID | B10: Project Description | C10: Commissioning Date | D10: Category^ | F10: Any Part Year | G10: Year 1 | H10: Year 2 | I10: Year 3 | J10: Year 4* | K10: Year 5* | L10: TOTAL | N10: REASON FOR PROJECT | O10: Reg Test / Business Case (Y/N) | P10: Reg Test / Business Case Cost Estimate | Q10: Reason for Variance from Cost Estimate / Expected Commissioning Date
A12: 10161 | B12: CBD Reinforcement City West Kilburn Cable Option 1x300/360MV.A 275/66kV Transformer (Contingent) | C12: 2012 | D12: Augmentation | G12: 0 | H12: 13.92042417 | I12: 97.90447248 | J12: 32.5515568 | K12: 0.77517951 | L12: 145.151633 | N12: ETC compliance | O12: Y | P12: 216.5 | Q12: Efficiencies in cable contract.
A13: 85007 | B13: 132kV Playford Replacement - Relocation to Davenport | C13: 2011 | D13: Replacement | G13: 34.985 | H13: 12.22647933 | I13: 9.61289502 | J13: 0.36246773 | K13: 0 | L13: 57.18684208 | N13: Replacement | O13: Y | P13: 64.8
A14: 11101 | B14: Cultana 275/132kV Augmentation | C14: 2015 | D14: Augmentation | G14: 0 | H14: 0.45345313 | I14: 1.35990397 | J14: 14.38853611 | K14: 33.45098262 | L14: 49.65287583 | N14: Reliability | O14: Y | P14: 65.4
A15: 11108 | B15: Mount Barker 275/66kV Injection | C15: 2011 | D15: Augmentation | G15: 2.27 | H15: 9.4289898 | I15: 25.12007842 | J15: 0.8345849 | K15: 0.0515 | L15: 37.70515312 | N15: ETC compliance | O15: Y | P15: 37.6
A16: 11204 | B16: Templers 275kV substation and 275/132kV transformation - Stage 1 | C16: 2012 | D16: Augmentation | G16: 0.82 | H16: 2.91132821 | I16: 20.89205806 | J16: 3.97288466 | K16: 0.07330337 | L16: 28.6695743 | N16: ETC compliance | O16: Y | P16: 35.9 | Q16: Project savings achieved
A17: 10509 | B17: Whyalla Terminal Rebuild (Reduced Brownfield at Whyalla + Cultana diameter) and 2x120MV.A Transformer Capacity Increase | C17: 2013 | D17: Replacement | G17: 0 | H17: 0.4174967695 | I17: 1.79294053 | J17: 12.40513815 | K17: 13.78708475 | L17: 28.40266021 | N17: ETC compliance | O17: N
A18: 10370 | B18: Clare North 132/33kV Substation | C18: 2010 | D18: Connection | G18: 1.7 | H18: 14.05626111 | I18: 5.21631503 | J18: 0.18339232 | K18: 0.59805047 | L18: 21.75401893 | N18: Customer Connection | O18: Y | P18: 21.712302
A19: 10716 | B19: Strategic Land Purchase RY 2 Medium Priority | C19: 2013 | D19: Easements | G19: 0.00867275 | H19: 0.14688314 | I19: 0.59377308 | J19: 9.64254311 | K19: 9.93428066 | L19: 20.32615274 | N19: Strategic Land Purchase | O19: N
A20: 11351 | B20: Substation Security Fencing | C20: 2013 | D20: Security/Compliance | G20: 2.24 | H20: 3.03174619 | I20: 3.5290626 | J20: 2.10096439 | K20: 8.14579374 | L20: 19.04756692 | N20: Security | O20: Y | P20: 3.323139
A21: 11302 | B21: Para 275kV Sec Systems Replacement + some primary | C21: 2016 | D21: Replacement | G21: 0 | H21: 0.02967864 | I21: 0.73230374 | J21: 3.70655 | K21: 13.89376923 | L21: 18.36230161 | N21: Replacement | O21: N
A22: 11401 | B22: Kadina East 2x60MV.A Transformer Capacity Increase | C22: 2011 | D22: Connection | G22: 0.55 | H22: 1.38722971 | I22: 15.15290494 | J22: 0.92723268 | K22: 0 | L22: 18.01736733 | N22: ETC compliance | O22: Y | P22: 18.42
A23: 10615 | B23: Ardrossan West 132kV Substation Rebuild and 2x25MV.A Transformer Capacity Increase (Existing Site) | C23: 2014 | D23: Augmentation | G23: 0.177947352 | H23: 0.4851763704 | I23: 4.68960373 | J23: 6.345048307 | K23: 5.325392728 | L23: 17.02316849 | N23: Reliability | O23: Y | P23: 22.8
A24: 10503 | B24: Waterloo Substation Rebuild and 2x60MV.A Transformer Capacity Increase | C24: 2014 | D24: Connection | G24: 0.0180985308 | H24: 0 | I24: 0 | J24: 2.105771522 | K24: 13.60266849 | L24: 15.72653855 | N24: ETC compliance | O24: N
A25: 11102 | B25: Wudinna 2x25MV.A 132/66kV Transformer Reinforcement | C25: 2012 | D25: Connection | G25: 0.31829057 | H25: 0.47463148 | I25: 5.58598923 | J25: 8.115177 | K25: 0.26133841 | L25: 14.75542669 | N25: ETC compliance | O25: Y | P25: 13.8
A26: 11216 | B26: South East Dual Path Telecommunications | C26: 2013 | D26: Security/Compliance | G26: 0.11 | H26: 2.02666021 | I26: 5.82193295 | J26: 5.54324998 | K26: 1.00215016 | L26: 14.5039933 | N26: Security | O26: Y | P26: 14.2
A27: 10467.z | B27: Whyalla to Pt Lincoln 132kV Line Uprating | C27: 2009 | D27: Replacement | G27: 12.775 | H27: 0.28357986 | I27: 0 | J27: 0 | K27: 0 | L27: 13.05857986 | N27: Reliability | O27: Y | P27: 15.640382
A28: 11303 | B28: TIPS 275kV Section A Secondary Systems Replacement only | C28: 2013 | D28: Replacement | G28: 0 | H28: 0.2901785 | I28: 1.54917586 | J28: 4.4927442 | K28: 4.75968357 | L28: 11.09178213 | N28: Replacement | O28: Y | P28: 11.08
A29: 11209 | B29: Munno Para 225MV.A 275/66kV Augmentation | C29: 2015 | D29: Connection | G29: 0 | H29: 0 | I29: 0.45929758 | J29: 1.18330559 | K29: 8.91288763 | L29: 10.5554908 | N29: ETC compliance | O29: N
A30: 11109 | B30: TIPS 66kV Section Secondary Systems plus minor primary plant | C30: 2014 | D30: Replacement | G30: 0 | H30: 0.02569119 | I30: 0.26335879 | J30: 2.17235916 | K30: 7.80515566 | L30: 10.2665648 | N30: Replacement | O30: Y | P30: 11.26
A31: 11304 | B31: TIPS 275kV Section B Secondary Systems Replacement + some primary | C31: 2013 | D31: Replacement | G31: 0 | H31: 0.34027051 | I31: 2.30816363 | J31: 5.78350799 | K31: 1.19122776 | L31: 9.62316989 | N31: Replacement | O31: Y | P31: 9.83
A32: 11359 | B32: Transformer Refurbishment Projects | C32: 2013 | D32: Replacement | G32: 0.13 | H32: 1.18683907 | I32: 2.48419153 | J32: 0.58577402 | K32: 3.02737289 | L32: 7.41417751 | N32: Aligning asset replacement projects with augmentation projects | O32: Y | P32: 7.5
A33: 10161 | B33: CBD Reinforcement City West Kilburn Cable Option 1x300/360MV.A 275/66kV Transformer | C33: 2012 | D33: Augmentation | G33: 3.05 | H33: 2.832871246 | I33: 1.184020709 | J33: 0.3321587429 | K33: 0.007909995 | L33: 7.406960693 | N33: ETC compliance | O33: Y | P33: 0
A34: 10615 | B34: Ardrossan West 132kV Substation Rebuild and 2x25MV.A Transformer Capacity Increase (Existing Site) | C34: 2014 | D34: Connection | G34: 0.069201748 | H34: 0.1886796996 | I34: 0 | J34: 3.726456942 | K34: 3.127611602 | L34: 7.111949992 | N34: Reliability | O34: Y | P34: 8.44
A35: 10673 | B35: Port Lincoln 33kV Capacitor Banks (4 Banks) | C35: 2011 | D35: Augmentation | G35: 0.89 | H35: 4.88247896 | I35: 0.40641296 | J35: 0.09449863 | K35: 0 | L35: 6.27339055 | N35: ETC compliance | O35: Y | P35: 7.41487
A36: 10503 | B36: Waterloo Substation Rebuild and 2x60MV.A Transformer Capacity Increase | C36: 2014 | D36: Replacement | G36: 0.0465390792 | H36: 0 | I36: 0.0442568448 | J36: 0.8189111476 | K36: 5.289926636 | L36: 6.199633708 | N36: ETC compliance | O36: N
A37: 10336 | B37: SIM Stage 2 City West - 1x 300/360MV.A 275/66kV Transformer | D37: Connection | G37: 2.38 | H37: 2.206400585 | I37: 0.9221823933 | J37: 0 | K37: 0 | L37: 5.508582978 | N37: Reliability | O37: Y | P37: 24 | Q37: Project merged with ACR 10161
A38: 11203 | B38: Dorrien 3rd Transformer | C38: 2013 | D38: Connection | G38: 0 | H38: 0 | I38: 0.14532752 | J38: 3.67175085 | K38: 1.53104037 | L38: 5.34811874 | N38: ETC compliance | O38: Y | P38: 5.49
A39: 11360 | B39: Auxiliary Supplies Refurbishment Projects | C39: 2013 | D39: Replacement | G39: 0.14951784 | H39: 0.63943501 | I39: 0.42436303 | J39: 0.88572966 | K39: 2.966406 | L39: 5.06545154 | N39: Aligning asset replacement projects with augmentation projects | O39: Y | P39: 5.1
A40: 10161 | B40: CBD Reinforcement City West Kilburn Cable Option 1x300/360MV.A 275/66kV Transformer | C40: 2012 | D40: Connection | G40: 2.03 | H40: 1.888580831 | I40: 0.7893471396 | J40: 0.3321587429 | K40: 0.007909995 | L40: 5.047996708 | N40: ETC compliance | O40: Y | P40: 0
A41: 11350 | B41: Unit Asset Replacements | C41: 2013 | D41: Replacement | G41: 0.03193511 | H41: 0.35792564 | I41: 1.3735168 | J41: 2.88159131 | K41: 0.37190769 | L41: 5.01687655 | N41: Condition/Obsolescence | O41: Y | P41: 4.86
A42: 11528 | B42: South East Backbone Telecoms Stage 2 | C42: 2015 | D42: Augmentation | G42: 0 | H42: 0 | I42: 0 | J42: 0.55167651 | K42: 4.45644268 | L42: 5.00811919 | N42: Security / Compliance | O42: N
A43: 11363 | B43: Site Asset Replacements (Tenix Alliance) | C43: 2013 | D43: Replacement | G43: 0 | H43: 0.02689055 | I43: 2.12279799 | J43: 1.44611117 | K43: 1.14244871 | L43: 4.73824842 | N43: Condition/Obsolescence | O43: Y | P43: 4.72
A44: 10338 | B44: Tungkillo 275kV 100Mvar Capacitor Bank | C44: 2013 | D44: Augmentation | G44: 0 | H44: 0.05947381 | I44: 0.32754772 | J44: 1.85522106 | K44: 2.47161917 | L44: 4.71386176 | N44: Reliability | O44: Y | P44: 6
A45: 10509 | B45: Whyalla Terminal Rebuild (Reduced Brownfield at Whyalla + Cultana diameter) and 2x120MV.A Transformer Capacity Increase | C45: 2013 | D45: Connection | G45: 0 | H45: 0.0736759005 | I45: 0 | J45: 2.189142027 | K45: 2.433014956 | L45: 4.695832884 | N45: ETC compliance | O45: N
A46: 11362 | B46: Site Asset Replacements (ETSA Utilities) | C46: 2013 | D46: Replacement | G46: 0 | H46: 0.102565 | I46: 1.235718 | J46: 1.81318333 | K46: 1.53084733 | L46: 4.68231366 | N46: Condition/Obsolescence | O46: Y | P46: 4.77
A47: 10408 | B47: Penola West 2x25MV.A 132/33kV Substation | C47: 2010 | D47: Connection | G47: 4.46 | H47: 0.16826618 | I47: 0.06939372 | J47: -0.016995 | K47: 0 | L47: 4.6806649 | N47: Customer Connection | O47: Y | P47: 9.443
A48: 11246 | B48: Network Aerial Laser Survey | C48: 2012 | D48: Security/Compliance | G48: 0 | H48: 0 | I48: 0 | J48: 3.4723315 | K48: 0.9057437 | L48: 4.3780752 | O48: Y | P48: 3.9
A49: 11355 | B49: Davenport 275kV 50Mvar Reactor Stage 2 | C49: 2012 | D49: Replacement | G49: 0 | H49: 0 | I49: 1.79821601 | J49: 2.50377323 | K49: 0.01705684 | L49: 4.31904608 | N49: Reliability | O49: Y | P49: 5.2 | Q49: Project savings achieved
A50: 10549 | B50: Whyalla-Yadnarie Telecommunications Upgrade | C50: 2007 | D50: Augmentation | G50: 0.00517212 | H50: 0 | I50: 3.27171921 | J50: 0.93743504 | K50: 0 | L50: 4.21432637 | N50: Reliability | O50: Y | P50: 4.44
A51: 11239 | B51: SAEs for 2013-2018 Capital Projects | C51: 2012 | D51: Augmentation | G51: 0 | H51: 0 | I51: 2.77490531 | J51: 1.38749023 | K51: 0 | L51: 4.16239554 | N51: Scope and Estimates for the Revenue Reset | O51: Y | P51: 4.17
A52: 11208 | B52: CB to complete mesh at Parafield Gardens West | C52: 2013 | D52: Security/Compliance | G52: 0 | H52: 0.00517029 | I52: 0.16613055 | J52: 0.22561905 | K52: 3.55602732 | L52: 3.95294721 | N52: Reliability | O52: N
A53: 11316 | B53: Morgan-Whyalla 1-4 Substations Replacement | C53: 2017 | D53: Replacement | G53: 0 | H53: 0 | I53: 0 | J53: 1.065867235 | K53: 2.559483822 | L53: 3.625351057 | N53: Replacement | O53: N
A54: 11214 | B54: Clare North New SDH Radio Link | C54: 2011 | D54: Augmentation | G54: 0.23 | H54: 2.61817126 | I54: 0.49042402 | J54: 0.25100321 | K54: 0 | L54: 3.58959849 | N54: DNSP Connection Request | O54: Y | P54: 3.739
A55: 11307 | B55: Kincraig 132kV Capacitor Bank | C55: 2013 | D55: Augmentation | G55: 0 | H55: 0.00363891 | I55: 0.11183925 | J55: 1.88488941 | K55: 1.52671049 | L55: 3.52707806 | N55: Reliability | O55: Y | P55: 4.09
A56: 10386 | B56: Hummocks 132/33 kV Transformer Upgrade | C56: 2014 | D56: Connection | G56: 0 | H56: 0.1506291 | I56: 0.54037533 | J56: 0.34169091 | K56: 2.33695551 | L56: 3.36965085 | N56: ETC compliance | O56: N
A57: 11112 | B57: Para-PGW-TIPS SDH Radio Link Replacement | C57: 2012 | D57: Replacement | G57: 0.03486748 | H57: 0.29811736 | I57: 0.81409462 | J57: 2.21546439 | K57: 0 | L57: 3.36254385 | N57: Obsolescence | O57: Y | P57: 4.26 | Q57: Project savings achieved
A58: 10914 | B58: Whyalla - Mt Karia Radio Bearer | C58: 2009 | D58: Augmentation | G58: 1.11 | H58: 2.1200675 | I58: 0 | J58: 0 | K58: 0 | L58: 3.2300675 | N58: Reliability | O58: Y | P58: 3.823 | Q58: Project savings achieved
A59: 11380 | B59: Yadnarie Reactor Replacement | C59: 2013 | D59: Replacement | G59: 0 | H59: 0 | I59: 0 | J59: 0.19641495 | K59: 2.73021473 | L59: 2.92662968 | N59: Replacement | O59: N
A60: 11236 | B60: IEC 61850 Training & Development Facility | C60: 2014 | D60: Security/Compliance | G60: 0 | H60: 0 | I60: 0.03552665 | J60: 0.18532136 | K60: 2.66142896 | L60: 2.88227697 | N60: Strategic Objective - Empoly new technology | O60: N
A61: 10913 | B61: Munno Para Land and Easement Acquisition | C61: 2013 | D61: Easements | G61: 0.07777975 | H61: 0.02548365 | I61: 0.16008518 | J61: 2.38446007 | K61: 0.06108411 | L61: 2.70889276 | N61: Strategic Land Purchase | O61: N
A62: 11313 | B62: Mannum-Adelaide Pump Station 1-3 and Millbrook Substations Replacement | C62: 2018 | D62: Replacement | G62: 0 | H62: 0 | I62: 0 | J62: 0.5837621352 | K62: 2.048780571 | L62: 2.632542706 | N62: Replacement/Condition | O62: N
A63: 10638 | B63: Cherry Gardens - Morphett Vale East 275kV Line Uprate | C63: 2009 | D63: Augmentation | G63: 2.42 | H63: -0.01565832 | I63: 0.006022 | J63: 0 | K63: 0 | L63: 2.41036368 | N63: Reliability | O63: Y | P63: 3.8 | Q63: Decrease in project scope
A64: 10394 | B64: Davenport Voltage Control | C64: 2010 | D64: Replacement | G64: 0.81 | H64: 1.49037614 | I64: 0.06019721 | J64: 0.00061542 | K64: 0 | L64: 2.36118877 | N64: Reliability | O64: Y | P64: 5.2 | Q64: Project savings achieved
A65: 11201 | B65: Eyre Peninsula Reinforcement | C65: 2017 | D65: Augmentation | G65: 0 | H65: 0 | I65: 0 | J65: 1.209551841 | K65: 1.143144128 | L65: 2.352695969 | N65: ETC compliance | O65: N
A66: 11211 | B66: Kilburn 185MVA Transformer Capacity Increase 185 to 225MVA | C66: 2013 | D66: Connection | G66: 0 | H66: 0.00363891 | I66: 0 | J66: 0.56042519 | K66: 1.78019685 | L66: 2.34426095 | N66: ETC compliance | O66: N
A67: 11294 | B67: Inventory Purchases 2011_2012 | C67: 2012 | D67: Inventory/Spares | G67: 0 | H67: 0 | I67: 0 | J67: 2.29858138 | K67: 0 | L67: 2.29858138 | N67: Purchase of spares | O67: N
A68: 11194 | B68: Inventory Purchases 2010/11 | C68: 2011 | D68: Inventory/Spares | G68: 0 | H68: 0 | I68: 2.27175468 | J68: -8.8e-07 | K68: 0 | L68: 2.2717538 | N68: Purchase of spares | O68: Y | P68: 2.28
A69: 11394 | B69: Inventory Purchases 2012_2013 | C69: 2013 | D69: Inventory/Spares | G69: 0 | H69: 0 | I69: 0 | J69: 0 | K69: 2.25036423 | L69: 2.25036423 | N69: Purchase of spares | O69: N
A70: 11008 | B70: Building Electronic Security | C70: 2013 | D70: Security/Compliance | G70: 0.04021 | H70: 0.01049431 | I70: 0.09263637 | J70: 0.85237315 | K70: 1.21133299 | L70: 2.20704682 | N70: Security | O70: Y | P70: 2.47
A71: 10994 | B71: Inventory Purchases FY Reset 2 | C71: 2009 | D71: Inventory/Spares | G71: 2.16 | H71: -0.02519396 | I71: 0.05386631 | J71: 0 | K71: 0 | L71: 2.18867235 | N71: Reliability | O71: Y | P71: 2.111
A72: 11023 | B72: AREVA EMP - Upgrades and Support Packs 2010 | C72: 2011 | D72: Replacement | G72: 0.32 | H72: 0.86922593 | I72: 0.89642576 | J72: 0.03987322 | K72: 0 | L72: 2.12552491 | N72: Obsolescence | O72: Y | P72: 2.126
A73: 11094 | B73: Inventory Purchases 2009/10 | C73: 2010 | D73: Inventory/Spares | G73: 0 | H73: 2.10494249 | I73: -0.10413526 | J73: 0 | K73: 0 | L73: 2.00080723 | N73: Purchase of spares | O73: Y | P73: 2.97
A74: 11013 | B74: PABX upgrade (IP Convergence) | C74: 2012 | D74: Replacement | G74: 0.09081003 | H74: 0.0883613 | I74: 1.17264568 | J74: 0.6434992 | K74: 0 | L74: 1.99531621 | N74: New Requirements | O74: Y | P74: 2.02
A75: 10921 | B75: Spare 132/66/33kV 120MVA TF | C75: 2014 | D75: Inventory/Spares | G75: 0 | H75: 0.00517029 | I75: 0 | J75: 0.14218628 | K75: 1.84222949 | L75: 1.98958606 | N75: ETC spare restoration requirement | O75: N
A76: 11232 | B76: OPSWAN Implementation 2010-2012 | C76: 2012 | D76: Augmentation | G76: 0 | H76: 0 | I76: 0.78920722 | J76: 1.14993381 | K76: 0.01605445 | L76: 1.95519548 | N76: New Requirement | O76: Y | P76: 1.95
A77: 10528 | B77: SCC-Crafers SDH Radio Link | C77: 2011 | D77: Augmentation | G77: 0.35 | H77: 1.26916124 | I77: 0.29973968 | J77: 0 | K77: 0 | L77: 1.91890092 | N77: Reliability | O77: Y | P77: 2.126
A78: 11396 | B78: Happy Valley Transformer Noise Mitigation | C78: 2013 | D78: Security/Compliance | G78: 0 | H78: 0 | I78: 0 | J78: 0 | K78: 1.89816204 | L78: 1.89816204 | N78: Stakeholder Management | O78: N
A79: 11320 | B79: Weather Stations | C79: 2012 | D79: Augmentation | G79: 0.09810487 | H79: 0.31098846 | I79: 1.10334302 | J79: 0.35142705 | K79: 0.00913866 | L79: 1.87300206 | N79: Quality, reliability and security | O79: Y | P79: 1.85
A80: 11218 | B80: Network Configuration Management | C80: 2013 | D80: Replacement | G80: 0 | H80: 0 | I80: 0 | J80: 0.31568789 | K80: 1.47003573 | L80: 1.78572362 | N80: Strategic Objective - Empoly new technology | O80: N
A81: 11012 | B81: Integrated Telecommunications Management Systems | C81: 2012 | D81: Augmentation | G81: 0.2322794 | H81: 0.11843333 | I81: 0.54111464 | J81: 0.86829518 | K81: 0.005231 | L81: 1.76535355 | N81: Security | O81: Y | P81: 2
A82: 10389 | B82: Cherry Gardens Aged Asset Replacement | C82: 2009 | D82: Replacement | G82: 1.11 | H82: 0.62838117 | I82: 0.01377092 | J82: 0 | K82: 0 | L82: 1.75215209 | N82: Poor Asset Condition | O82: Y | P82: 33.94
A83: 10601 | B83: Canowie-Davenport Radio Network | C83: 2009 | D83: Augmentation | G83: 1.64 | H83: 0.10916589 | I83: 0 | J83: 0 | K83: 0 | L83: 1.74916589 | N83: Reliability | O83: Y | P83: 4.887 | Q83: Project savings achieved
A84: 11354 | B84: Substation Perimeter Electronic Security | C84: 2012 | D84: Security/Compliance | G84: 0.08 | H84: 0.92677442 | I84: 0.51831469 | J84: 0.09652299 | K84: 0 | L84: 1.6216121 | N84: Security, supersedes project 11009 | O84: Y | P84: 1.62
A85: 11006 | B85: Diesel Generator Upgrades | C85: 2010 | D85: Replacement | G85: 0.62 | H85: 0.95005882 | I85: 0.04889784 | J85: 0 | K85: 0 | L85: 1.61895666 | N85: Condition | O85: Y | P85: 1.646
A86: 11423 | B86: Telecommunications Network Optimisation | C86: 2014 | D86: Augmentation | G86: 0 | H86: 0 | I86: 0.38496919 | J86: 0.86934795 | K86: 0.28531035 | L86: 1.53962749 | N86: Reliability | O86: Y | P86: 1
A87: 11041 | B87: SDM and LDM Template & Design Clause Upd | C87: 2011 | D87: Security/Compliance | G87: 0 | H87: 1.2180916 | I87: 0.29851226 | J87: 0.00042618 | K87: 0 | L87: 1.51703004 | N87: New Requirement | O87: Y | P87: 1.532
A88: 10519 | B88: RTU Replacement Program | C88: 2012 | D88: Replacement | G88: 0.03148416 | H88: 0.94292303 | I88: 0.78643998 | J88: -0.26442146 | K88: 0 | L88: 1.49642571 | N88: Replace Obsolete Equipment | O88: Y | P88: 2.680739
A89: 11735 | B89: Transmission Line Design | C89: 2017 | D89: Security/Compliance | G89: 0 | H89: 0 | I89: 0 | J89: 0.08101563 | K89: 1.38652834 | L89: 1.46754397 | N89: Security / Compliance | O89: N
A90: 11390 | B90: Tailem Bend 132kV Reactive Power Support | C90: 2014 | D90: Augmentation | G90: 0 | H90: 0 | I90: 0 | J90: 0.1476195836 | K90: 1.302611742 | L90: 1.450231326 | N90: ETC compliance | O90: N
A91: 10694 | B91: Substations and Telecommunications Spare | C91: 2010 | D91: Inventory/Spares | G91: 1.35 | H91: 0.09692321 | I91: 0 | J91: 0 | K91: 0 | L91: 1.44692321 | N91: ETC spare restoration requirement | O91: Y | P91: 7.95
A92: 11383 | B92: Mt Barker Triple Circuit Easement Expansion | C92: 2014 | D92: Easements | G92: 0 | H92: 0 | I92: 0 | J92: 0 | K92: 1.38047251 | L92: 1.38047251 | N92: Strategic Land Purchase | O92: N
A93: 10453.z | B93: Davenport to Para 275kV Line Uprating | C93: 2009 | D93: Replacement | G93: 1.31 | H93: 0 | I93: 0 | J93: 0 | K93: 0 | L93: 1.31 | N93: Reliability | O93: Y | P93: 7.640224
A94: 11630 | B94: Eyre Peninsula Reinforcement-Land Acquisition | C94: 2016 | D94: Easements | G94: 0 | H94: 0 | I94: 0 | J94: 0.0600118 | K94: 1.23860052 | L94: 1.29861232 | N94: Strategic Land Purchase | O94: N
A95: 11114 | B95: Operational Data Management | C95: 2012 | D95: Replacement | G95: 0.18709735 | H95: 0.07471559 | I95: 0.72389174 | J95: 0.3090146 | K95: 0 | L95: 1.29471928 | N95: New Requirements | O95: Y | P95: 1.33
A96: 11247 | B96: Fire and Security Systems Upgrade to SDM Standard | C96: 2014 | D96: Security/Compliance | G96: 0 | H96: 0 | I96: 0 | J96: 0.0860507 | K96: 1.19902127 | L96: 1.28507197 | N96: Security / Compliance | O96: N
A97: 11124 | B97: Outage Management 2009-2011 | C97: 2012 | D97: Replacement | G97: 0.02018136 | H97: 0.18342919 | I97: 0.43058348 | J97: 0.5549282 | K97: 0.04934506 | L97: 1.23846729 | N97: New Requirements, previously part of project 11331 | O97: Y | P97: 1.18
A98: 11509 | B98: Bungama Second 275_132kV Transformer | C98: 2016 | D98: Augmentation | G98: 0 | H98: 0 | I98: 0 | J98: 0.3830514653 | K98: 0.7866221413 | L98: 1.169673607 | N98: Security / Compliance | O98: N
A99: 11510 | B99: Kadina East Reactive Power Support | C99: 2014 | D99: Augmentation | G99: 0 | H99: 0 | I99: 0 | J99: 0.1973270272 | K99: 0.9671226224 | L99: 1.16444965 | N99: ETC compliance | O99: N
A100: 11233 | B100: IT OCS Software 2010-2012 | C100: 2012 | D100: Replacement | G100: 0 | H100: 0.0012768 | I100: 0.39746058 | J100: 0.67806956 | K100: 0.00579873 | L100: 1.08260567 | N100: Replacement | O100: Y | P100: 0.77
A101: 11322 | B101: Barn Hill Radio Links Replace with SDH | C101: 2014 | D101: Replacement | G101: 0 | H101: 0.00551016 | I101: 0 | J101: 0.06877483305 | K101: 0.9949032528 | L101: 1.069188246 | N101: Obsolescence | O101: N
A102: 11032 | B102: OPSWAN Implementation 2008/10 | C102: 2010 | D102: Augmentation | G102: 0.59 | H102: 0.43962694 | I102: 0 | J102: 0 | K102: 0 | L102: 1.02962694 | N102: New Requirements, previously part of project 11332 | O102: Y | P102: 1.032
A103: 11126 | B103: Equipment Evaluation Facility | C103: 2014 | D103: Security/Compliance | G103: 0 | H103: 0 | I103: 0 | J103: 0.1885973062 | K103: 0.8334058739 | L103: 1.02200318 | N103: Security / Compliance | O103: N
A104: 11132 | B104: Fleurieu Peninsula Strategic Land and Ea | C104: 2015 | D104: Easements | G104: 0 | H104: 0.01501566 | I104: 0.32647192 | J104: 0.16844341 | K104: 0.49630507 | L104: 1.00623606 | N104: Strategic Land Purchase | O104: N
B106: Project <$1M | G106: 6.01938153 | H106: 15.34817085 | I106: -11.14438968 | J106: 4.020109845 | K106: 11.15684457 | L106: 25.40011711
E112: Subtotal | G112: 90.14757103 | H112: 108.9415223 | I112: 224.2443624 | J112: 171.6972448 | K112: 204.0471745 | L112: 799.077875
J120: *Note that values in these columns are estimates only

Sheet Hist Capex - Non-Network
A1: 3.4 HISTORIC CAPEX - Non-Network - by project
F3: Home | I3: Link to Historic Capex Instructions - Table 6.2 | L3: Link to Historic Capex Commentary - Table 5.2
A7: $M nominal
F8: Yearly expenditure by project (inclusive of FDC)
A10: Project ID | B10: Project Description | C10: Commissioning Date | D10: Category^ | F10: Any Part Year | G10: Year 1 | H10: Year 2 | I10: Year 3 | J10: Year 4 | K10: Year 5 | L10: TOTAL | N10: REASON FOR PROJECT | O10: Business Case (Y/N) | P10: Business Case Cost Estimate | Q10: Reason for Variance from Cost Estimate / Expected Commissioning Date
A12: 11221 | B12: Business Information and Performance | C12: 2013 | D12: Information Technology | G12: 0.14410277 | H12: 1.18841716 | I12: 1.07085281 | J12: 0.48849667 | K12: 0.10499432 | L12: 2.99686373 | N12: New Requirements | O12: Y | P12: 2.79
A13: 11219 | B13: RDBMS (Oracle/ SQL) | C13: 2012 | D13: Information Technology | G13: 0 | H13: 4.57e-06 | I13: 1.34944676 | J13: 1.07580458 | K13: 0 | L13: 2.42525591 | N13: New Requirements | O13: Y | P13: 1.37
A14: 11022 | B14: Enterprise Systems (SAP) - Upgrades and Support Packs | C14: 2009 | D14: Information Technology | G14: 1.98143529 | H14: 0.20127355 | I14: 0 | J14: 0 | K14: 0 | L14: 2.18270884 | N14: New Requirements | O14: Y | P14: 2.212
A15: 11226 | B15: Office Systems / SOE | C15: 2012 | D15: Information Technology | G15: 0.11795792 | H15: 0.60339607 | I15: 1.23728378 | J15: 0.13531149 | K15: 0 | L15: 2.09394926 | N15: New Requirements | O15: Y | P15: 2.47
A16: 11223 | B16: Enterprise Systems (SAP) - Process/Reporting Improvements | C16: 2011 | D16: Information Technology | G16: 0.09860406 | H16: 1.22663157 | I16: 0.65394818 | J16: -0.00358994 | K16: 0 | L16: 1.97559387 | N16: Obsolescence | O16: Y | P16: 1.81
A17: 10932 | B17: IT Storage Implementation | C17: 2010 | D17: Information Technology | G17: 1.72582137 | H17: 0.13230565 | I17: 0 | J17: 0 | K17: 0 | L17: 1.85812702 | N17: Obsolescence | O17: Y | P17: 1.916
A18: 11346 | B18: West Wing (Plus other Pirie Street Requirements) | C18: 2010 | D18: Facilities | G18: 0.07710237 | H18: 1.43123357 | I18: 0.2528946 | J18: 0.0174591 | K18: 0 | L18: 1.77868964 | N18: New Requirements | O18: N
A19: 11220 | B19: Applications Integration | C19: 2013 | D19: Information Technology | G19: 0 | H19: 0.00703944 | I19: 0.01089038 | J19: 0.18695681 | K19: 1.48982243 | L19: 1.69470906 | N19: Obsolescence | O19: N
A20: 11270 | B20: ICT Hardware 2010-2012 | C20: 2012 | D20: Information Technology | G20: 0 | H20: 0 | I20: 0.68447642 | J20: 0.80320371 | K20: 0 | L20: 1.48768013 | N20: General IT hardware upgrades | O20: Y | P20: 1.59
A21: 10928 | B21: Project Server - Upgrades and Support Packs 2009 | C21: 2012 | D21: Information Technology | G21: 0 | H21: 0.20055867 | I21: 0.64568415 | J21: 0.60921345 | K21: 0 | L21: 1.45545627 | N21: Obsolescence | O21: Y | P21: 0.85 | Q21: Rescheduled based on dependencies and outcomes of other IT projects
A22: 11385 | B22: SAP Functional Upgrade Stream 3 | C22: 2013 | D22: Information Technology | G22: 0 | H22: 0 | I22: 0 | J22: 0.24561327 | K22: 1.1019031 | L22: 1.34751637 | N22: Software Upgrades | O22: N
A23: 11070 | B23: ICT Hardware 2008/10 | C23: 2010 | D23: Information Technology | G23: 1.0682417 | H23: 0.22970421 | I23: 0 | J23: 0 | K23: 0 | L23: 1.29794591 | N23: Obsolescence | O23: Y | P23: 1.223
A24: 10917 | B24: Structured Substation Training Program and Facility | C24: 2008 | D24: Facilities | G24: 0.09111515 | H24: 0.96651037 | I24: 0.10037019 | J24: 0.11684965 | K24: 0.00378258 | L24: 1.27862794 | N24: New Requirements | O24: Y | P24: 1.51
A25: 11539 | B25: Records Management | C25: 2014 | D25: Information Technology | G25: 0 | H25: 0 | I25: 0 | J25: 0.3028296703 | K25: 0.9575 | L25: 1.26032967 | N25: Business Efficiency Improvements | O25: N
A26: 11250 | B26: Short Term Accommodation Fit Out 2011-2012 | C26: 2013 | D26: Facilities | G26: 0 | H26: 0 | I26: 0 | J26: 0.50192706 | K26: 0.7366 | L26: 1.23852706 | N26: New Requirements | O26: N
A27: 11338 | B27: Estimating System Functional Upgrade | C27: 2013 | D27: Information Technology | G27: 0 | H27: 0 | I27: 0 | J27: 0.26034012 | K27: 0.82590863 | L27: 1.08624875 | N27: Software Upgrades | O27: N
A28: 10801 | B28: Geospatial Systems | C28: 2013 | D28: Information Technology | G28: 0 | H28: 0.06597142 | I28: 0 | J28: 0.24557915 | K28: 0.71366014 | L28: 1.02521071 | N28: New Requirements | O28: N
A29: 11071 | B29: ICT Software 2008/10 | C29: 2010 | D29: Information Technology | G29: 0.38895726 | H29: 0.71364319 | I29: -0.07805 | J29: 0 | K29: 0 | L29: 1.02455045 | N29: Obsolescence | O29: Y | P29: 1.338 | Q29: Scope transferred to other projects (annual projects)
A30: 11386 | B30: Business Process Improvement - Stage 2 | C30: 2014 | D30: Information Technology | G30: 0 | H30: 0 | I30: 0 | J30: 0.48503978 | K30: 0.52686347 | L30: 1.01190325 | N30: Business Efficiency Improvements | O30: Y | P30: 0.87
B32: Projects <$1M | G32: 1.56676017 | H32: 1.65349823 | I32: 2.06744624 | J32: 3.410982138 | K32: 8.145709417 | L32: 16.84439619
E35: Subtotal | G35: 7.26009806 | H35: 8.62018767 | I35: 7.99524351 | J35: 8.882016708 | K35: 14.60674409 | L35: 47.36429003
D37: ^refers to Categories in table 3.1 (e.g Information Technology, Motor Vehicles etc)

Sheet Forecast Capex By Category
A1: AER Template Information
A3: 4.1 FORECAST CAPEX by project category
A5: $ million, real (as of year 6)
A7: Project Category | F7: 2013/14 | G7: 2014/15 | H7: 2015/16 | I7: 2016/17 | J7: 2017/18 | K7: TOTAL
A10: LOAD DRIVEN | C10: Augmentation | F10: 41.87956151 | G10: 35.14200308 | H10: 20.76002985 | I10: 14.20811544 | J10: 5.89819278 | K10: 117.8879027
C12: Connection | F12: 51.83766947 | G12: 21.20230801 | H12: 34.21554649 | I12: 20.39830882 | J12: 5.642654442 | K12: 133.2964872
C14: Easements/Land | F14: 11.92686432 | G14: 15.2724906 | H14: 10.25671561 | I14: 12.22038901 | J14: 16.10701455 | K14: 65.78347409
A17: NON-LOAD DRIVEN | C17: Replacement | F17: 84.82611235 | G17: 81.46167777 | H17: 81.3220921 | I17: 98.57458915 | J17: 51.83829338 | K17: 398.0227648
C19: Refurbishment | F19: 1.16704144 | G19: 6.300766961 | H19: 29.76670929 | I19: 14.80772104 | J19: 2.08449087 | K19: 54.1267296
C21: Security/Compliance | F21: 9.952488088 | G21: 10.82053384 | H21: 16.7896772 | I21: 11.62370272 | J21: 8.141440052 | K21: 57.32784189
C23: Other | F23: 0 | G23: 0 | H23: 0 | I23: 0 | J23: 0 | K23: 0
C25: Inventory/Spares | F25: 4.698405967 | G25: 3.818002802 | H25: 4.790371165 | I25: 3.040480599 | J25: 2.086239626 | K25: 18.43350016
A27: NON NETWORK
A28: BUSINESS IT | C28: Information Technology | F28: 8.889564514 | G28: 10.73766233 | H28: 11.38961165 | I28: 7.230474424 | J28: 5.462513996 | K28: 43.70982692
A30: SUPPORT THE BUSINESS | C30: Facilities | F30: 0.7108259511 | G30: 1.448738122 | H30: 2.128976103 | I30: 0.6243301988 | J30: 0.6480060232 | K30: 5.560876398
A34: TOTAL FORECAST CAPEX | F34: 215.8885336 | G34: 186.2041835 | H34: 211.4197294 | I34: 182.7281114 | J34: 97.90884572 | K34: 894.1494037

Sheet Forecast Capex By Asset Class
A3: 4.2 FORECAST CAPEX by asset class
A7: $ million, real (as of year 6) | E7: 2013/14 | F7: 2014/15 | G7: 2015/16 | H7: 2016/17 | I7: 2017/18 | J7: TOTAL
A8: Asset class
A10: Commercial Buildings | E10: 0.6433879025 | F10: 1.699001693 | G10: 2.56667168 | H10: 0.175878128 | I10: 0.3160547392 | J10: 5.400994143
A11: Communications - Civil | E11: 6.781098608 | F11: 4.990088559 | G11: 2.144420315 | H11: 1.828417247 | I11: 0.5688298471 | J11: 16.31285458
A12: Communications - Systems | E12: 23.68562162 | F12: 23.56963518 | G12: 15.94840637 | H12: 9.333968877 | I12: 2.759060467 | J12: 75.29669251
A13: Computers, software, and office machines | E13: 16.89485362 | F13: 21.14568412 | G13: 25.0736618 | H13: 16.58912312 | I13: 9.46364551 | J13: 89.16696817
A14: Easement | E14: 5.838830647 | F14: 10.54831659 | G14: 5.22295173 | H14: 3.397437185 | I14: 3.451405051 | J14: 28.4589412
A15: Land | E15: 8.162146347 | F15: 7.037325813 | G15: 8.505371885 | H15: 12.62859793 | I15: 13.84156384 | J15: 50.17500582
A16: Network Switching Centres | E16: 0 | F16: 0 | G16: 0 | H16: 0 | I16: 0 | J16: 0
A17: Office furniture, movable plant, and misc | E17: 1.017867273 | F17: 0.4608262843 | G17: 0.5850635227 | H17: 0.4484520708 | I17: 0.331951284 | J17: 2.844160435
A18: Refurbishment | E18: 0 | F18: 0 | G18: 0 | H18: 0 | I18: 0 | J18: 0
A19: Substation Primary Plant | E19: 82.04740625 | F19: 55.2197439 | G19: 62.55105188 | H19: 52.87055462 | I19: 22.52469348 | J19: 275.2134501
A20: Substation Demountable Buildings | E20: 4.096812888 | F20: 3.465268469 | G20: 2.727265119 | H20: 2.781276863 | I20: 1.098118456 | J20: 14.16874179
A21: Substation Establishment | E21: 15.62269045 | F21: 15.57376415 | G21: 19.84399292 | H21: 22.60660443 | I21: 11.80572012 | J21: 85.45277207
A22: Substation Fences | E22: 0.7748412876 | F22: 0.9806492042 | G22: 1.036682878 | H22: 1.036666731 | I22: 0.6584322531 | J22: 4.487272353
A23: Substation Secondary Systems - Electromechanical | E23: 0 | F23: 0 | G23: 0 | H23: 0 | I23: 0 | J23: 0
A24: Substation Secondary Systems - Electronic | E24: 33.63160251 | F24: 26.29117998 | G24: 24.59015748 | H24: 30.98659239 | I24: 23.51347197 | J24: 139.0130043
A25: Transmission lines - Overhead | E25: 14.53306605 | F25: 8.120571977 | G25: 17.66448359 | H25: 11.71177941 | I25: 4.723279191 | J25: 56.75318022
A26: Transmission lines - Underground | E26: 1.398455996 | F26: 2.901149958 | G26: 2.956809919 | H26: 3.829096317 | I26: 0.7681286427 | J26: 11.85364083
A27: Working Capital | E27: 0 | F27: 0 | G27: 0 | H27: 0 | I27: 0 | J27: 0
A28: Accelerated Depreciation | E28: 0 | F28: 0 | G28: 0 | H28: 0 | I28: 0 | J28: 0
A29: Refurbishment Projects 2008-2013 | E29: 0 | F29: 0 | G29: 0 | H29: 0 | I29: 0 | J29: 0
A30: Equity Raising Cost - 2003 Opening RAB and 2003-08 capex | E30: 0 | F30: 0 | G30: 0 | H30: 0 | I30: 0 | J30: 0
A31: Equity Raising Cost 2013-2018 | E31: 0 | F31: 0 | G31: 0 | H31: 0 | I31: 0 | J31: 0
A32: Transmission Line Refit | E32: 0.7598521807 | F32: 4.200977651 | G32: 20.00273836 | H32: 12.50366607 | I32: 2.08449087 | J32: 39.55172513
A35: TOTAL CAPEX | E35: 215.8885336 | F35: 186.2041835 | G35: 211.4197294 | H35: 182.7281114 | I35: 97.90884572 | J35: 894.1494037

Sheet Forecast Capex - Network
A1: 4.3 FORECAST CAPEX - NETWORK - by project
F3: Home | I3: Link to Forecast Capex Instructions - Table 6.3 | L3: Link to Forecast Capex Commentary - Table 5.3
A7: $12/13 million, real
F8: Yearly expenditure by project
F10: 2013 | G10: 2014 | H10: 2015 | I10: 2016 | J10: 2017
A11: Project ID | B11: Project Description | C11: Commissioning Date | D11: Category^ | F11: 2013/14 | G11: 2014/15 | H11: 2015/16 | I11: 2016/17 | J11: 2017/18 | K11: TOTAL | M11: REASON FOR PROJECT | N11: Reg Test / Business Case (Y/N) | O11: Reg Test / Business Case Cost Estimate | P11: Reason for Variance from Cost Estimate / Expected Commissioning Date
A13: 10619 | B13: Kincraig Substation Replacement and Transformer Upgrade | C13: 2017 | D13: Replacement | F13: 0.5287561412 | G13: 1.506643727 | H13: 10.20976309 | I13: 25.58238902 | J13: 3.468081833 | K13: 41.29563381 | M13: Refer Appendix P | N13: N
A14: 11890 | B14: Unit Asset replacement | C14: 2017 | D14: Replacement | F14: 8.676637495 | G14: 8.741596051 | H14: 8.892984954 | I14: 8.957113176 | J14: 0.02493470524 | K14: 35.29326638 | M14: Refer Appendix P | N14: N
A15: 11441 | B15: Para To Davenport Line Hazard Mitigation | C15: 2016 | D15: Refurbishment | F15: 0.950164242 | G15: 4.89979702 | H15: 22.78394096 | I15: 5.376444982 | J15: 0 | K15: 34.0103472 | M15: Refer Appendix P | N15: N
A16: 11209 | B16: Munno Para New 275_66kV Substation | C16: 2014 | D16: Connection | F16: 26.24435073 | G16: 7.366618533 | H16: 0 | I16: 0 | J16: 0 | K16: 33.61096926 | M16: Refer Appendix P | N16: Y | O16: 44.85
A17: 11302 | B17: Para 275Kv Secondary Systems & Minor Primary Plant | C17: 2015 | D17: Replacement | F17: 15.11713415 | G17: 13.83943193 | H17: 3.333062724 | I17: 0.009172659684 | J17: 0 | K17: 32.29880146 | M17: Refer Appendix P | N17: Y | O17: 49.3
A18: 11826 | B18: Dalrymple North | C18: 2016 | D18: Connection | F18: 1.303483719 | G18: 9.066194585 | H18: 11.06057406 | I18: 3.247383788 | J18: 0 | K18: 24.67763615 | M18: Refer Appendix P | N18: N
A19: 11210 | B19: East Terrace Second Transformer | C19: 2017 | D19: Connection | F19: 0.6380370521 | G19: 1.711323625 | H19: 11.47400688 | I19: 6.952821032 | J19: 2.469437055 | K19: 23.24562565 | M19: Refer Appendix P | N19: N
A20: 11316 | B20: Morgan Whyalla Pump Station No 1 Option A | C20: 2017 | D20: Replacement | F20: 2.696257737 | G20: 3.430424804 | H20: 9.883496754 | I20: 7.219843941 | J20: 0 | K20: 23.23002324 | M20: Refer Appendix P | N20: N
A21: 11101 | B21: Cultana 275_132kV Augmentation | C21: 2014 | D21: Augmentation | F21: 18.38524878 | G21: 3.109695432 | H21: 0 | I21: 0 | J21: 0 | K21: 21.49494421 | M21: Refer Appendix P | N21: Y | O21: 70.6
A22: 11305 | B22: Keith Substation Rebuild | C22: 2019 | D22: Replacement | F22: 0 | G22: 0.3004921522 | H22: 0.5898784718 | I22: 2.310765958 | J22: 15.42456045 | K22: 18.62569703 | M22: Refer Appendix P | N22: N
A23: 10618 | B23: Baroota Substation Upgrade | C23: 2017 | D23: Connection | F23: 0.2729844649 | G23: 1.033308626 | H23: 6.812781517 | I23: 6.974350096 | J23: 2.382434896 | K23: 17.4758596 | M23: Refer Appendix P | N23: N
A24: 11313 | B24: Mannum Pump Station No 1 | C24: 2017 | D24: Replacement | F24: 1.312369503 | G24: 2.292724488 | H24: 4.529966293 | I24: 6.696824102 | J24: 2.572670433 | K24: 17.40455482 | M24: Refer Appendix P | N24: N
A25: 10703 | B25: Para SVC Secondary System Replacement | C25: 2017 | D25: Replacement | F25: 0 | G25: 0.02259289651 | H25: 0.4054789831 | I25: 6.965035195 | J25: 9.18409345 | K25: 16.57720053 | M25: Refer Appendix P | N25: N
A26: 11847 | B26: NGM CT,VT and Meter Replacements | C26: 2017 | D26: Replacement | F26: 0 | G26: 0.09439794559 | H26: 1.395690506 | I26: 4.53159299 | J26: 10.50294703 | K26: 16.52462847 | M26: Refer Appendix P | N26: N
A27: 11317 | B27: Morgan Pump Station No 2 | C27: 2017 | D27: Replacement | F27: 1.879190463 | G27: 2.390877359 | H27: 6.888426351 | I27: 5.031960296 | J27: 0 | K27: 16.19045447 | M27: Refer Appendix P | N27: N
A28: 11312 | B28: Torrens Island Transformer Upgrade | C28: 2015 | D28: Augmentation | F28: 2.135794821 | G28: 11.19575944 | H28: 2.787910859 | I28: 0 | J28: 0 | K28: 16.11946512 | M28: Refer Appendix P | N28: N
A29: 11314 | B29: Mannum Pump Station No 2 | C29: 2017 | D29: Replacement | F29: 1.188716567 | G29: 2.076701399 | H29: 4.103147756 | I29: 6.065841776 | J29: 2.330270521 | K29: 15.76467802 | M29: Refer Appendix P | N29: N
A30: 11005 | B30: Kanmantoo Substation Upgrade | C30: 2015 | D30: Replacement | F30: 1.21184988 | G30: 10.40700573 | H30: 2.707804367 | I30: 0 | J30: 0 | K30: 14.32665997 | M30: Refer Appendix P | N30: N
A31: 10505 | B31: Millbrook Pump Station | C31: 2017 | D31: Replacement | F31: 1.00538348 | G31: 1.756416406 | H31: 3.470328492 | I31: 5.130320621 | J31: 1.970878132 | K31: 13.33332713 | M31: Refer Appendix P | N31: N
A32: 11319 | B32: Morgan Whyalla Pump Station No 4 | C32: 2017 | D32: Replacement | F32: 1.516099243 | G32: 1.928919621 | H32: 5.557466465 | I32: 4.059700892 | J32: 0 | K32: 13.06218622 | M32: Refer Appendix P | N32: N
A33: 10503 | B33: Waterloo Substation Replacement | C33: 2013 | D33: Connection | F33: 12.8201193 | G33: 0 | H33: 0 | I33: 0 | J33: 0 | K33: 12.8201193 | M33: Refer Appendix P | N33: N
A34: 11318 | B34: Morgan Whyalla Pump Station No 3 | C34: 2017 | D34: Replacement | F34: 1.464054165 | G34: 1.862703129 | H34: 5.366688203 | I34: 3.920338345 | J34: 0 | K34: 12.61378384 | M34: Refer Appendix P | N34: N
A35: 11315 | B35: Mannum Pump Station No 3 | C35: 2017 | D35: Replacement | F35: 0.8980938754 | G35: 1.568980242 | H35: 3.099992018 | I35: 4.58283791 | J35: 1.760555662 | K35: 11.91045971 | M35: Refer Appendix P | N35: N
A36: 11630 | B36: Eyre Peninsula Reinforcement - Land Acquisition | C36: 2016 | D36: Easements/Land | F36: 0.8008878049 | G36: 2.882292482 | H36: 3.306744282 | I36: 4.890929197 | J36: 0 | K36: 11.88085377 | M36: Strategic Land Purchase | N36: N
A37: 11733 | B37: Asset Condition Online Monitoring Equipment Replacement | C37: 2017 | D37: Replacement | F37: 2.388934745 | G37: 2.366239865 | H37: 2.371524974 | I37: 2.348322854 | J37: 2.34115605 | K37: 11.81617849 | M37: Refer Appendix P | N37: N
A38: 11543 | B38: Magill Telecoms Bearer | C38: 2015 | D38: Augmentation | F38: 3.5587427 | G38: 6.47487071 | H38: 1.727899487 | I38: 0 | J38: 0 | K38: 11.7615129 | M38: Refer Appendix P | N38: N
A39: 11738 | B39: Mallala to Para 275kV Double Circuit Land & Easements | C39: 2014 | D39: Easement/Land | F39: 5.388270717 | G39: 6.204128329 | H39: 0 | I39: 0 | J39: 0 | K39: 11.59239905 | M39: Strategic Land Purchase | N39: N
A40: 11505 | B40: Mt. Gunson Substation Replacement | C40: 2014 | D40: Replacement | F40: 6.283224116 | G40: 5.097909052 | H40: 0 | I40: 0 | J40: 0 | K40: 11.38113317 | M40: Refer Appendix P | N40: N
A41: 11504 | B41: Neuroodla Asset Replacement | C41: 2014 | D41: Replacement | F41: 6.167033321 | G41: 5.00363737 | H41: 0 | I41: 0 | J41: 0 | K41: 11.17067069 | M41: Refer Appendix P | N41: N
A42: 11625 | B42: Mount Barker South 275-66kV Transformer | C42: 2016 | D42: Connection | F42: 1.412256523 | G42: 2.004956009 | H42: 4.86818403 | I42: 2.794203047 | J42: 0 | K42: 11.07959961 | M42: Refer Appendix P | N42: N
A43: 11739 | B43: Templers to Para 275kV Double Circuit Land & Easements | C43: 2016 | D43: Easement/Land | F43: 0.896565312 | G43: 2.303538133 | H43: 4.821179286 | I43: 1.820418739 | J43: 0 | K43: 9.84170147 | M43: Strategic Land Purchase | N43: N
A44: 11828 | B44: Substation Perimeter Video Monitoring & Security | C44: 2017 | D44: Security/Compliance | F44: 1.519101512 | G44: 1.504670048 | H44: 1.839061951 | I44: 2.148861717 | J44: 2.142303645 | K44: 9.153998873 | M44: Security | N44: N
A45: 11816 | B45: One IP Substation Network | C45: 2017 | D45: Augmentation | F45: 0 | G45: 0 | H45: 3.057479714 | I45: 4.657850845 | J45: 1.414368286 | K45: 9.129698845 | M45: Reliability | N45: N
A46: 10509 | B46: Whyalla Terminal Substation Replacement | C46: 2014 | D46: Replacement | F46: 8.977291585 | G46: 0.05777779179 | H46: 0 | I46: 0 | J46: 0 | K46: 9.035069377 | M46: Condition | N46: Y | O46: 43.9
A47: 10517 | B47: South East CB Upgrade | C47: 2016 | D47: Security/Compliance | F47: 0.5979009275 | G47: 1.936233088 | H47: 5.418528216 | I47: 0.984253679 | J47: 0 | K47: 8.936915911 | M47: Reliability | N47: N
A48: 11509 | B48: Bungama 2nd Transformer | C48: 2015 | D48: Augmentation | F48: 1.443798782 | G48: 3.849073553 | H48: 2.777655794 | I48: 0 | J48: 0 | K48: 8.07052813 | M48: Reliability | N48: N
A49: 10386 | B49: Hummocks 132/33 kV Transformer Upgrade | C49: 2014 | D49: Connection | F49: 7.421526829 | G49: 0.009710553242 | H49: 0 | I49: 0 | J49: 0 | K49: 7.431237383 | M49: Reliability | N49: N
A50: 11553 | B50: South East Substation to Heywood Telecommunications Bearer | C50: 2014 | D50: Replacement | F50: 4.511239728 | G50: 2.624012895 | H50: 0 | I50: 0 | J50: 0 | K50: 7.135252622 | M50: Condition/Obsolescence | N50: N
A51: 11735 | B51: Transmission Line Design | C51: 2016 | D51: Security/Compliance | F51: 0.9198449118 | G51: 2.192964218 | H51: 3.132069063 | I51: 0.7489111545 | J51: 0 | K51: 6.993789347 | M51: New Requirements | N51: N
A52: 11829 | B52: Regional Control Scheme | C52: 2017 | D52: Security/Compliance | F52: 0 | G52: 0 | H52: 1.631017945 | I52: 3.370329245 | J52: 1.473580079 | K52: 6.47492727 | M52: Reliability | N52: N
A53: 11729 | B53: Snuggery to Blanche to Mt Gambier to South East Second 132kV Line Easement | C53: 2018 | D53: Easement/Land | F53: 0 | G53: 0 | H53: 0 | I53: 0 | J53: 6.374596811 | K53: 6.374596811 | M53: Strategic Land Purchase | N53: N
A54: 11528 | B54: South East Backbone Telecoms Stage 2 | C54: 2014 | D54: Augmentation | F54: 4.783698026 | G54: 1.583288091 | H54: 0 | I54: 0 | J54: 0 | K54: 6.366986116 | M54: Reliability | N54: N
A55: 11445 | B55: Tailem Bend to Keith No 2 Line Refurbishment | C55: 2017 | D55: Refurbishment | F55: 0 | G55: 0.09511254217 | H55: 0.2984983562 | I55: 4.12398625 | J55: 1.369186599 | K55: 5.886783747 | M55: Condition | N55: N
A56: 11736 | B56: Para-Tungkillo 275kV Line Easement | C56: 2019 | D56: Easement/Land | F56: 0 | G56: 0 | H56: 0.6991581964 | I56: 0.9670250495 | J56: 3.617450667 | K56: 5.283633913 | M56: Strategic Land Purchase | N56: N
A57: 11709 | B57: Yadnarie - Port Lincoln Backbone Telecommunications Links | C57: 2014 | D57: Replacement | F57: 3.793363278 | G57: 1.399245879 | H57: 0 | I57: 0 | J57: 0 | K57: 5.192609157 | M57: Condition/Obsolescence | N57: N
A58: 11389 | B58: Spare 300MVA 275/66kV Transformer | C58: 2016 | D58: Inventory/Spares | F58: 0 | G58: 1.504301579 | H58: 2.615368124 | I58: 0.9421069364 | J58: 0 | K58: 5.061776639 | M58: ETC spare requirement | N58: N
A59: 11446 | B59: Brinkworth to Mintaro Line Refurbishment | C59: 2017 | D59: Refurbishment | F59: 0.04662432788 | G59: 0.2125507204 | H59: 2.542925401 | I59: 2.023889173 | J59: 0.1948525778 | K59: 5.0208422 | M59: Condition | N59: N
A60: 10503 | B60: Waterloo Substation Replacement | C60: 2013 | D60: Replacement | F60: 4.985601951 | G60: 0 | H60: 0 | I60: 0 | J60: 0 | K60: 4.985601951 | M60: Condition | N60: N
A61: 11103 | B61: Blanche 15MVar Capacitor Bank and CB to Complete Mesh | C61: 2017 | D61: Augmentation | F61: 0 | G61: 0.3022252215 | H61: 0.9279157991 | I61: 2.420514997 | J61: 1.258519302 | K61: 4.90917532 | M61: Reliability | N61: N
A62: 11734 | B62: Network Arial Laser Survey | C62: 2017 | D62: Security/Compliance | F62: 0.9775286392 | G62: 0.9682421172 | H62: 0.9704047319 | I62: 0.9609106524 | J62: 0.9579780664 | K62: 4.835064207 | M62: New Requirements | N62: N
A63: 11730 | B63: Hummocks 132kV Capacitor Bank | C63: 2017 | D63: Augmentation | F63: 0 | G63: 0.2594943015 | H63: 0.8754488639 | I63: 2.391203224 | J63: 1.301689007 | K63: 4.827835397 | M63: Reliability | N63: N
A64: 11383 | B64: Mt Barker Triple Circuit Easement Expansion | C64: 2014 | D64: Easement/Land | F64: 4.36598274 | G64: 0.158082954 | H64: 0 | I64: 0 | J64: 0 | K64: 4.524065694 | M64: Strategic Land Purchase | N64: N
A65: 11132 | B65: Fleurieu Peninsula Strategic Land and Easement Acquisition | C65: 2015 | D65: Easements/Land | F65: 0.4310926829 | G65: 3.526994319 | H65: 0.4646935692 | I65: 0 | J65: 0 | K65: 4.422780572 | M65: Strategic Land Purchase | N65: N
A66: 11564 | B66: Magill/East Terrace Cable Joint Monitoring | C66: 2017 | D66: Security/Compliance | F66: 0 | G66: 1.026082342 | H66: 1.376515629 | I66: 1.771585482 | J66: 0.1500042279 | K66: 4.324187681 | M66: Condition | N66: N
A67: 11822 | B67: Riverland Telecommunications Bearer | C67: 2015 | D67: Replacement | F67: 1.414067839 | G67: 2.43985482 | H67: 0.2192741761 | I67: 0 | J67: 0 | K67: 4.073196835 | M67: Condition/Obsolescence | N67: N
A68: 11645 | B68: Reactive Plant Control Systems | C68: 2017 | D68: Augmentation | F68: 0.104465192 | G68: 0.3068689412 | H68: 0.7227141317 | I68: 1.922491225 | J68: 0.8838007247 | K68: 3.940340214 | M68: Reliability | N68: N
A69: 11854 | B69: Tel Asset Replacement - Metro Region | C69: 2015 | D69: Replacement | F69: 1.182596462 | G69: 1.859044448 | H69: 0.5927420162 | I69: 0 | J69: 0 | K69: 3.634382927 | M69: Condition/Obsolescence | N69: N
A70: 11825 | B70: Radial Supply Reliability Improvement | C70: 2017 | D70: Security/Compliance | F70: 0 | G70: 0.08295687777 | H70: 0.4141187737 | I70: 1.1769866 | J70: 1.925793244 | K70: 3.599855495 | M70: Compliance | N70: N
A71: 11447 | B71: Magill to Happy Valley Line Refurbishment | C71: 2016 | D71: Refurbishment | F71: 0.1138216013 | G71: 0.8824411961 | H71: 2.169262838 | I71: 0.4080455942 | J71: 0 | K71: 3.573571229 | M71: Condition | N71: N
A72: 11510 | B72: Kadina East 132KV Capacitor Bank | C72: 2014 | D72: Augmentation | F72: 3.529474399 | G72: 0 | H72: 0 | I72: 0 | J72: 0 | K72: 3.529474399 | M72: Reliability | N72: N
A73: 11655 | B73: Penola West 15MVar Capacitor Bank | C73: 2015 | D73: Augmentation | F73: 0.4416128285 | G73: 1.757664442 | H73: 1.241299982 | I73: 0 | J73: 0 | K73: 3.440577253 | M73: Reliability | N73: N
A74: 11856 | B74: Tel Asset Replacement - Mid North Region | C74: 2016 | D74: Replacement | F74: 0.5756901552 | G74: 1.37321517 | H74: 0.9994466946 | I74: 0.2420801601 | J74: 0 | K74: 3.19043218 | M74: Condition/Obsolescence | N74: N
A75: 11425 | B75: Monash Capacitor Bank | C75: 2017 | D75: Augmentation | F75: 0.3299005338 | G75: 0.3784148174 | H75: 0.8897690842 | I75: 1.105312689 | J75: 0.4584664935 | K75: 3.161863618 | M75: Reliability | N75: N
A76: 11448 | B76: Cultana to Stony Point Line Refurbishment | C76: 2017 | D76: Refurbishment | F76: 0 | G76: 0 | H76: 0.162663271 | I76: 2.462345186 | J76: 0.5204516941 | K76: 3.145460151 | M76: Condition | N76: N
A77: 11646 | B77: Upper North Voltage Control Scheme | C77: 2014 | D77: Security/Compliance | F77: 1.576313138 | G77: 1.506123847 | H77: 0 | I77: 0 | J77: 0 | K77: 3.082436984 | M77: Security | N77: N
A78: 11727 | B78: Fourth Northern Suburbs Connection Point Land Acquistion | C78: 2018 | D78: Easement/Land | F78: 0 | G78: 0 | H78: 0.3267745105 | I78: 0.9193939135 | J78: 1.758562895 | K78: 3.004731319 | M78: Strategic Land Purchase | N78: N
A79: 11633 | B79: Kadina East - Hummocks West Circuit - Land Acquisition | C79: 2017 | D79: Easement/Land | F79: 0 | G79: 0 | H79: 0 | I79: 1.222312861 | J79: 1.72106365 | K79: 2.943376511 | M79: Strategic Land Purchase | N79: N
A80: 11390 | B80: Tailem Bend 132kV Reactive Power Support | C80: 2013 | D80: Augmentation | F80: 2.764561021 | G80: 0 | H80: 0 | I80: 0 | J80: 0 | K80: 2.764561021 | M80: Reliability | N80: N
A81: 11444 | B81: Penola West to South East Line Refurbishment | C81: 2016 | D81: Refurbishment | F81: 0.0564312687 | G81: 0.2108654826 | H81: 1.809418465 | I81: 0.4130098598 | J81: 0 | K81: 2.489725076 | M81: Condition | N81: N
A82: 11860 | B82: Tel Asset Replacement - South East Region | C82: 2017 | D82: Replacement | F82: 0 | G82: 0.4435469602 | H82: 1.08913445 | I82: 0.7302547048 | J82: 0.1426729603 | K82: 2.405609075 | M82: Condition/Obsolescence | N82: N
A83: 10921 | B83: Spare 120 MVA & 200 MVA Transformers | C83: 2013 | D83: Inventory/Spares | F83: 2.401897793 | G83: 0 | H83: 0 | I83: 0 | J83: 0 | K83: 2.401897793 | M83: ETC spare requirement | N83: N
A84: 11694 | B84: Inventory Replenishment 2015-2016 | C84: 2016 | D84: Inventory/Spares | F84: 0 | G84: 0 | H84: 2.175003041 | I84: 0.1740546003 | J84: 0 | K84: 2.349057642 | M84: Reliability | N84: N
A85: 11594 | B85: Inventory Replenishment 2014-2015 | C85: 2014 | D85: Inventory/Spares | F85: 0 | G85: 2.313701223 | H85: 0 | I85: 0 | J85: 0 | K85: 2.313701223 | M85: Reliability | N85: N
A86: 11494 | B86: Inventory Replenishment 2013-2014 | C86: 2013 | D86: Inventory/Spares | F86: 2.296508174 | G86: 0 | H86: 0 | I86: 0 | J86: 0 | K86: 2.296508174 | M86: Reliability | N86: N
A87: 11330 | B87: Energy Management System Upgrade 2013-2018 | C87: 2016 | D87: Replacement | F87: 0.4635869932 | G87: 0.7895464565 | H87: 0.8006367466 | I87: 0.04126922922 | J87: 0 | K87: 2.095039426 | M87: Condition/Obsolescence | N87: N
A88: 11794 | B88: Inventory Replenishment 2016-2017 | C88: 2017 | D88: Inventory/Spares | F88: 0 | G88: 0 | H88: 0 | I88: 1.924319062 | J88: 0.1629365323 | K88: 2.087255595 | M88: Reliability | N88: N
A89: 11712 | B89: Engineering Systems Enhancements 2015-2017 | C89: 2015 | D89: Augmentation | F89: 0.250976197 | G89: 0.9268743992 | H89: 0.8645270479 | I89: 0 | J89: 0 | K89: 2.042377644 | M89: New Requirements | N89: N
A90: 11862 | B90: VOIP Network Refresh | C90: 2017 | D90: Replacement | F90: 0 | G90: 0.2061931705 | H90: 0.7344368335 | I90: 0.8147138768 | J90: 0.2755468769 | K90: 2.030890758 | M90: Condition/Obsolescence | N90: N
A91: 11824 | B91: Weather Stations For Dynamic Line Rating | C91: 2015 | D91: Augmentation | F91: 0.2177695899 | G91: 1.336305295 | H91: 0.4274858738 | I91: 0 | J91: 0 | K91: 1.981560759 | M91: Compliance | N91: N
A92: 11322 | B92: Barn Hill telecoms Bearer Replacement | C92: 2014 | D92: Replacement | F92: 1.928340965 | G92: 0 | H92: 0 | I92: 0 | J92: 0 | K92: 1.928340965 | M92: Condition/Obsolescence | N92: N
A93: 11894 | B93: Inventory Replenishment 2017-2018 | C93: 2018 | D93: Inventory/Spares | F93: 0 | G93: 0 | H93: 0 | I93: 0 | J93: 1.923303094 | K93: 1.923303094 | M93: Reliability | N93: N
A94: 11858 | B94: Tel Asset Replacement - Eyre Region | C94: 2016 | D94: Replacement | F94: 0.1153896015 | G94: 0.5993769917 | H94: 0.8660501402 | I94: 0.3323215236 | J94: 0 | K94: 1.913138257 | M94: Condition/Obsolescence | N94: N
A95: 11812 | B95: Substation Automation and Alarm | C95: 2016 | D95: Augmentation | F95: 0 | G95: 0.4480817913 | H95: 0.6169969385 | I95: 0.7651587203 | J95: 0 | K95: 1.83023745 | M95: Security | N95: N
A96: 11632 | B96: OPSWAN Implementation 2014-2016 | C96: 2015 | D96: Augmentation | F96: 0.1058083541 | G96: 0.7357262075 | H96: 0.9708821132 | I96: 0 | J96: 0 | K96: 1.812416675 | M96: Reliability | N96: N
A97: 11615 | B97: Standards Major Review | C97: 2015 | D97: Security/Compliance | F97: 0 | G97: 0.711089855 | H97: 1.0227591 | I97: 0 | J97: 0 | K97: 1.733848955 | M97: New Requirements | N97: N
A98: 11857 | B98: Tel Asset Replacement - Upper North Region | C98: 2016 | D98: Replacement | F98: 0.1639713835 | G98: 0.5738499397 | H98: 0.6429963254 | I98: 0.2152584586 | J98: 0 | K98: 1.596076107 | M98: Condition/Obsolescence | N98: N
A99: 10509 | B99: Whyalla Terminal Substation Replacement | C99: 2014 | D99: Connection | F99: 1.584227927 | G99: 0.0101960809 | H99: 0 | I99: 0 | J99: 0 | K99: 1.594424008 | M99: Reliability | N99: N
A100: 11560 | B100: Magill/East Terrace Cable Pit Construction | C100: 2017 | D100: Replacement | F100: 0 | G100: 0.1064006067 | H100: 0.3549096791 | I100: 1.002647244 | J100: 0.0897725463 | K100: 1.553730076 | M100: Condition/Obsolescence | N100: N
A101: 11861 | B101: Telecommunications Network Optimisation Stage 2 | C101: 2017 | D101: Augmentation | F101: 0 | G101: 0.3310537909 | H101: 0.729619599 | I101: 0.3715422996 | J101: 0.03010343282 | K101: 1.462319122 | M101: Reliability | N101: N
A102: 11575 | B102: OPSWAN Replacement 2013-2015 | C102: 2015 | D102: Replacement | F102: 0.5263642066 | G102: 0.8725473492 | H102: 0.05256534686 | I102: 0 | J102: 0 | K102: 1.451476903 | M102: Condition/Obsolescence | N102: N
A103: 11873 | B103: IT OCS software 2016-2018 | C103: 2018 | D103: Replacement | F103: 0 | G103: 0 | H103: 0.08274668064 | I103: 0.4916227071 | J103: 0.8397656164 | K103: 1.414135004 | M103: Condition/Obsolescence | N103: N
A104: 11562 | B104: Transmission Line Inspection Data Analysis Tool | C104: 2015 | D104: Augmentation | F104: 0.2044393015 | G104: 0.4828329693 | H104: 0.7120048541 | I104: 0 | J104: 0 | K104: 1.399277125 | M104: New Requirements | N104: N
A105: 11384 | B105: Security & Video System Consolidation & Development | C105: 2013 | D105: Security/Compliance | F105: 1.358661946 | G105: 0 | H105: 0 | I105: 0 | J105: 0 | K105: 1.358661946 | M105: Security | N105: N
A106: 11912 | B106: TIPS to Kilburn to Northfield 275kV Loop | C106: 2013 | D106: Augmentation | F106: 1.357542393 | G106: 0 | H106: 0 | I106: 0 | J106: 0 | K106: 1.357542393 | M106: Reliability | N106: Y | O106: 0.06
A107: 11673 | B107: IT OCS Software 2014-2016 | C107: 2016 | D107: Augmentation | F107: 0.06775644318 | G107: 0.4015763327 | H107: 0.6888050325 | I107: 0.167162099 | J107: 0 | K107: 1.325299907 | M107: Reliability | N107: N
A108: 11809 | B108: Common Information-Connectivity Model | C108: 2014 | D108: Augmentation | F108: 0.4565528276 | G108: 0.7720424243 | H108: 0 | I108: 0 | J108: 0 | K108: 1.228595252 | M108: Reliability | N108: N
A109: 11810 | B109: OSI PI Technology Upgrade | C109: 2015 | D109: Replacement | F109: 0.4333318421 | G109: 0.7336688238 | H109: 0.06134300526 | I109: 0 | J109: 0 | K109: 1.228343671 | M109: Condition/Obsolescence | N109: N
A110: 11638 | B110: Operational Logging and Fault Investigation Systems | C110: 2015 | D110: Replacement | F110: 0.1727102088 | G110: 0.4543531053 | H110: 0.5985331434 | I110: 0 | J110: 0 | K110: 1.225596458 | M110: Condition/Obsolescence | N110: N
A111: 11843 | B111: Yatala Vale North 275/66kV Substation | C111: 2022 | D111: Connection | F111: 0 | G111: 0 | H111: 0 | I111: 0.4295508544 | J111: 0.7907824911 | K111: 1.220333346 | M111: Reliability | N111: N
A112: 11775 | B112: OPSWAN Replacement 2015-2017 | C112: 2016 | D112: Replacement | F112: 0 | G112: 0.0690953216 | H112: 0.4415805034 | I112: 0.7079576465 | J112: 0 | K112: 1.218633472 | M112: Condition/Obsolescence | N112: N
A113: 11602 | B113: Tailem Bend Substation Upgrade | C113: 2019 | D113: Security/Compliance | F113: 0 | G113: 0 | H113: 0 | I113: 0.1136386573 | J113: 1.078000665 | K113: 1.191639322 | M113: Reliability | N113: N
A114: 11413 | B114: Control System Virtualisation | C114: 2014 | D114: Replacement | F114: 0.4731972503 | G114: 0.7165026291 | H114: 0 | I114: 0 | J114: 0 | K114: 1.189699879 | M114: Condition/Obsolescence | N114: N
A115: 11432 | B115: OPSWAN Implementation 2012-2014 | C115: 2013 | D115: Augmentation | F115: 1.162795321 | G115: 0 | H115: 0 | I115: 0 | J115: 0 | K115: 1.162795321 | M115: Reliability | N115: N
A116: 11721 | B116: Morphett Vale East 275kV Supply Double | C116: 2017 | D116: Easement/Land | F116: 0 | G116: 0 | H116: 0.1736152305 | I116: 0.8210683003 | J116: 0.1526851877 | K116: 1.147368719 | M116: Strategic Land Purchase | N116: N
A117: 11855 | B117: Tel Asset Replacement - Eastern Hills Region | C117: 2016 | D117: Replacement | F117: 0.2847877591 | G117: 0.5920299917 | H117: 0.265830811 | I117: 0.003556543552 | J117: 0 | K117: 1.146205105 | M117: Condition/Obsolescence | N117: N
A118: 11672 | B118: ICT Security 2014-2016 | C118: 2015 | D118: Security/Compliance | F118: 0 | G118: 0.4115740702 | H118: 0.7103036905 | I118: 0 | J118: 0 | K118: 1.121877761 | M118: Security | N118: N
A119: 10424 | B119: Riverland 275kV Reinforcement Land and Easements Acquisition | C119: 2019 | D119: Easement/Land | F119: 0 | G119: 0 | H119: 0 | I119: 0.072895709 | J119: 0.9797909569 | K119: 1.052686666 | M119: Strategic Land Purchase | N119: N
A120: 11126 | B120: Equipment Evaluation Facility | C120: 2013 | D120: Security/Compliance | F120: 0.9504292246 | G120: 0 | H120: 0 | I120: 0 | J120: 0 | K120: 0.9504292246 | M120: New Requirements | N120: N
A121: 11109 | B121: TIPS 66kV Section Secondary Systems Upgrade | C121: 2013 | D121: Replacement | F121: 0.906902439 | G121: 0 | H121: 0 | I121: 0 | J121: 0 | K121: 0.906902439 | M121: Condition/Obsolescence | N121: Y | O121: 11.2
A122: 11893 | B122: Mallala to Templers West 275kV Transmission Line Land Acquisition | C122: 2019 | D122: Easement/Land | F122: 0 | G122: 0 | H122: 0 | I122: 0.2035155567 | J122: 0.6460981301 | K122: 0.8496136868 | M122: Strategic Land Purchase | N122: N
A123: 11811 | B123: Outage Management Upgrade | C123: 2018 | D123: Augmentation | F123: 0 | G123: 0 | H123: 0.0091773 | I123: 0.3023663318 | J123: 0.5088507333 | K123: 0.8203943651 | M123: New Requirements | N123: N
A124: 12112 | B124: Outage Management Functional Upgrade | C124: 2016 | D124: Augmentation | F124: 0.03845333333 | G124: 0.2482523167 | H124: 0.4243069479 | I124: 0.1045130089 | J124: 0 | K124: 0.8155256068 | M124: New Requirements | N124: N
A125: 11865 | B125: Network Configuration Management Upgrade | C125: 2017 | D125: Replacement | F125: 0.05304100775 | G125: 0.2107258037 | H125: 0.3418129256 | I125: 0.2093264209 | J125: 0 | K125: 0.8149061579 | M125: Condition/Obsolescence | N125: N
A126: 11396 | B126: Happy Valley Transformer Noise Mitigation | C126: 2013 | D126: Security/Compliance | F126: 0.7818908246 | G126: 0 | H126: 0 | I126: 0 | J126: 0 | K126: 0.7818908246 | M126: Compliance | N126: N
A127: 11642 | B127: Torrens Island Switchyard (TIS) C Land and Easement Acquisition | C127: 2017 | D127: Easement/Land | F127: 0 | G127: 0 | H127: 0.09945253141 | I127: 0.4306343033 | J127: 0.1993747046 | K127: 0.7294615393 | M127: Strategic Land Purchase | N127: N
A128: 11723 | B128: Tepko Substation Land Acquisition | C128: 2017 | D128: Easement/Land | F128: 0 | G128: 0 | H128: 0.09945253141 | I128: 0.4306343033 | J128: 0.1993747046 | K128: 0.7294615393 | M128: Strategic Land Purchase | N128: N
A129: 11656 | B129: Transmission Line Vegetation Management System | C129: 2015 | D129: Augmentation | F129: 0.1784145675 | G129: 0.2419026096 | H129: 0.3081304285 | I129: 0 | J129: 0 | K129: 0.7284476055 | M129: New Requirements | N129: N
A130: 11853 | B130: Telecommunications SDM Major Review | C130: 2016 | D130: Security/Compliance | F130: 0.06480156114 | G130: 0.21796075 | H130: 0.2729124019 | I130: 0.1071254814 | J130: 0 | K130: 0.6628001945 | M130: New Requirements | N130: N
A131: 11872 | B131: ICT Security 2016-2018 | C131: 2017 | D131: Security/Compliance | F131: 0 | G131: 0 | H131: 0.00198569487 | I131: 0.2411000469 | J131: 0.4137801246 | K131: 0.6568658664 | M131: Security | N131: N
A132: 11473 | B132: IT OCS Software 2012-2014 | C132: 2014 | D132: Replacement | F132: 0.4898914611 | G132: 0.1490743826 | H132: 0 | I132: 0 | J132: 0 | K132: 0.6389658437 | M132: Condition/Obsolescence | N132: N
A133: 11859 | B133: Tel Asset Replacement - Riverland Region | C133: 2017 | D133: Replacement | F133: 0 | G133: 0.1469631167 | H133: 0.3113618304 | I133: 0.1388245442 | J133: 0.001867750697 | K133: 0.599017242 | M133: Condition/Obsolescence | N133: N
A134: 11472 | B134: ICT Security 2012-2014 | C134: 2014 | D134: Security/Compliance | F134: 0.5327627061 | G134: 0.0322195293 | H134: 0 | I134: 0 | J134: 0 | K134: 0.5649822354 | M134: Security | N134: N
A135: 11526 | B135: Telecommunications Network Management Systems Upgrade | C135: 2014 | D135: Replacement | F135: 0.2920244903 | G135: 0.2718679923 | H135: 0 | I135: 0 | J135: 0 | K135: 0.5638924827 | M135: Condition/Obsolescence | N135: N
A136: 11461 | B136: Cultana to Stony Point Easement | C136: 2016 | D136: Easement/Land | F136: 0.04406506522 | G136: 0.1974543855 | H136: 0.231519601 | I136: 0.04438994128 | J136: 0 | K136: 0.517428993 | M136: Strategic Land Purchase | N136: N
A137: 11647 | B137: Eyre Peninsula Voltage Control Scheme | C137: 2014 | D137: Security/Compliance | F137: 0.2411551361 | G137: 0.2304170996 | H137: 0 | I137: 0 | J137: 0 | K137: 0.4715722356 | M137: Security | N137: N
A138: 11975 | B138: OPSWAN Replacement 2017-2019 | C138: 2018 | D138: Replacement | F138: 0 | G138: 0 | H138: 0 | I138: 0.06293756049 | J138: 0.399792853 | K138: 0.4627304135 | M138: Condition/Obsolescence | N138: N
A139: 11236 | B139: Training & Development Facility | C139: 2013 | D139: Security/Compliance | F139: 0.432097561 | G139: 0 | H139: 0 | I139: 0 | J139: 0 | K139: 0.432097561 | M139: New Requirements | N139: N
A140: 10615 | B140: Ardrossan West 132kV Sub Rebuild | C140: 2013 | D140: Augmentation | F140: 0.3617560976 | G140: 0 | H140: 0 | I140: 0 | J140: 0 | K140: 0.3617560976 | M140: Condition | N140: N
A141: 11620 | B141: Dynamic Constraint Systems | C141: 2014 | D141: Replacement | F141: 0.2866414634 | G141: 0.06653006675 | H141: 0 | I141: 0 | J141: 0 | K141: 0.3531715302 | M141: Condition/Obsolescence | N141: N
A142: 11508 | B142: Mount Gambier East | C142: 2022 | D142: Replacement | F142: 0 | G142: 0 | H142: 0 | I142: 0 | J142: 0.3125156207 | K142: 0.3125156207 | M142: Condition | N142: N
A143: 11561 | B143: Magill/East Terrace Cable Instrument Replacement | C143: 2017 | D143: Replacement | F143: 0 | G143: 0.01855989688 | H143: 0.06099038994 | I143: 0.1693952893 | J143: 0.01488127782 | K143: 0.2638268539 | M143: Condition/Obsolescence | N143: N
A144: 11549 | B144: Switching System Writer | C144: 2013 | D144: Replacement | F144: 0.2563454032 | G144: 0 | H144: 0 | I144: 0 | J144: 0 | K144: 0.2563454032 | M144: Condition/Obsolescence | N144: N
A145: 11726 | B145: Lincoln Gap Substation Land Acquisition | C145: 2017 | D145: Easement/Land | F145: 0 | G145: 0 | H145: 0 | I145: 0.1038964709 | J145: 0.1462902381 | K145: 0.2501867091 | M145: Strategic Land Purchase | N145: N
A146: 11437 | B146: BUCC Refurishment | C146: 2013 | D146: Replacement | F146: 0.206 | G146: 0 | H146: 0 | I146: 0 | J146: 0 | K146: 0.206 | M146: Condition/Obsolescence | N146: N
A147: 11627 | B147: Snuggery Substation Replacement Land Acquisition | C147: 2017 | D147: Easement/Land | F147: 0 | G147: 0 | H147: 0 | I147: 0.06514092132 | J147: 0.1301537849 | K147: 0.1952947063 | M147: Strategic Land Purchase | N147: N
A148: 11728 | B148: Jamestown Connection Point Land Acquisition | C148: 2017 | D148: Easement/Land | F148: 0 | G148: 0 | H148: 0 | I148: 0.0803670706 | J148: 0.113159935 | K148: 0.1935270056 | M148: Strategic Land Purchase | N148: N
A149: 11551 | B149: Control Room Asset Replacement | C149: 2017 | D149: Replacement | F149: 0 | G149: 0 | H149: 0 | I149: 0.0003635005082 | J149: 0.1813296089 | K149: 0.1816931094 | M149: Condition/Obsolescence | N149: N
A150: 11718 | B150: Angas Creek Substation Augmentation Land Acquisition | C150: 2017 | D150: Easement/Land | F150: 0 | G150: 0 | H150: 0.02145054599 | I150: 0.09288190856 | J150: 0.04300238726 | K150: 0.1573348418 | M150: Strategic Land Purchase | N150: N
A151: 10615 | B151: Ardrossan West 132kV Sub Rebuild | C151: 2013 | D151: Connection | F151: 0.1406829268 | G151: 0 | H151: 0 | I151: 0 | J151: 0 | K151: 0.1406829268 | M151: ETC reliability | N151: N
A152: 11724 | B152: Wilmington Substation Land Acquisition | C152: 2017 | D152: Easement/Land | F152: 0 | G152: 0 | H152: 0.01267532263 | I152: 0.05488476415 | J152: 0.02541050156 | K152: 0.09297058834 | M152: Strategic Land Purchase | N152: N
A153: 11732 | B153: Outage Management Functional Upgrade | C153: 2020 | D153: Augmentation | F153: 0 | G153: 0 | H153: 0 | I153: 0 | J153: 0.0423948 | K153: 0.0423948 | M153: Reliability | N153: N
E159: Subtotal | F159: =SUM(F13:F158) -> 206.2881432 | G159: 174.0177831 | H159: 197.9011417 | I159: 174.8733068 | J159: 91.7983257 | K159: 844.8787004

Sheet Forecast Capex - Non-Network
A1: 4.4 FORECAST CAPEX - Non-Network - by project
G3: Home | J3: Link to Forecast Capex Instructions - Table 6.3
A7: $12/13 million, real
F8: Yearly expenditure by project
F10: 2013 | G10: 2014 | H10: 2015 | I10: 2016 | J10: 2017
A11: Project ID | B11: Project Description | C11: Estimated Commissioning Date | D11: Category^ | F11: 2013/14 | G11: 2014/15 | H11: 2015/16 | I11: 2016/17 | J11: 2017/18 | K11: TOTAL | M11: REASON FOR PROJECT | N11: Business Case (Y/N)
A13: 11516 | B13: SAP Functional Enhancements 2013-2015 | C13: 2015 | D13: Information Technology | F13: 1.301533364 | G13: 2.474893186 | H13: 0.4135116382 | I13: 0 | J13: 0 | K13: =SUM(F13:J13) -> 4.189938188 | M13: New requirements | N13: N
A14: 11517 | B14: SAP Upgrade Technology | C14: 2015 | D14: Information Technology | F14: 0 | G14: 0.6375104108 | H14: 3.161195941 | I14: 0 | J14: 0 | K14: 3.798706352 | M14: Obsolesence | N14: N
A15: 11883 | B15: ICT Data Centre Expansion | C15: 2017 | D15: Information Technology | F15: 0 | G15: 0 | H15: 1.136329102 | I15: 2.234624988 | J15: 0.1802437934 | K15: 3.551197884 | M15: New requirements | N15: N
A16: 11808 | B16: Office Systems Refresh | C16: 2016 | D16: Information Technology | F16: 0.010585 | G16: 0.7653643025 | H16: 1.10969892 | I16: 1.064394366 | J16: 0 | K16: 2.950042588 | M16: Obsolesence | N16: N
A17: 11671 | B17: ICT Software 2014-2016 | C17: 2016 | D17: Information Technology | F17: 0.136733433 | G17: 0.8128501061 | H17: 1.412999551 | I17: 0.2185013463 | J17: 0 | K17: 2.581084436 | M17: Obsolesence | N17: N
A18: 11524 | B18: IT Storage and Virtualisation Refurbishment | C18: 2015 | D18: Information Technology | F18: 0.744061625 | G18: 1.211965623 | H18: 0.3300349635 | I18: 0 | J18: 0 | K18: 2.286062211 | M18: Obsolesence | N18: N
A19: 12003 | B19: Geospacial Systems Functional Enhancements | C19: 2015 | D19: Information Technology | F19: 0.3272768085 | G19: 1.005423078 | H19: 0.9169166398 | I19: 0 | J19: 0 | K19: 2.249616527 | M19: New requirements | N19: N
A20: 11657 | B20: Meduim Term Accomodation | C20: 2015 | D20: Facilities | F20: 0 | G20: 0.9049530048 | H20: 1.287858811 | I20: 0 | J20: 0 | K20: 2.192811816 | M20: New requirements | N20: N
A21: 11538 | B21: Project & Portfolio Management Systems 2014 | C21: 2017 | D21: Information Technology | F21: 0 | G21: 0 | H21: 0.4161500079 | I21: 0.9907786003 | J21: 0.6190986667 | K21: 2.026027275 | M21: New requirements | N21: N
A22: 11533 | B22: Business Intelligence Technology Upgrade 2014-2015 | C22: 2016 | D22: Information Technology | F22: 0 | G22: 0.3630690131 | H22: 0.9942075 | I22: 0.6268578712 | J22: 0 | K22: 1.984134384 | M22: Obsolesence | N22: N
A23: 11871 | B23: ICT Software 2016-2018 | C23: 2018 | D23: Information Technology | F23: 0 | G23: 0 | H23: 0.1123147304 | I23: 0.6693238664 | J23: 1.157368053 | K23: 1.93900665 | M23: Obsolesence | N23: N
A24: 11803 | B24: SAP Functional Enhancements 2017-2018 | C24: 2018 | D24: Information Technology | F24: 0 | G24: 0 | H24: 0 | I24: 0.6166122273 | J24: 1.182489316 | K24: 1.799101543 | M24: New requirements | N24: N
A25: 11471 | B25: ICT Software 2012-2014 | C25: 2014 | D25: Information Technology | F25: 1.333899048 | G25: 0.4178294487 | H25: 0 | I25: 0 | J25: 0 | K25: 1.751728496 | M25: Obsolesence | N25: N
A26: 11670 | B26: ICT Hardware 2014-2016 | C26: 2016 | D26: Information Technology | F26: 0.08390103659 | G26: 0.5133858738 | H26: 0.8670310134 | I26: 0.06586123976 | J26: 0 | K26: 1.530179164 | M26: Obsolesence | N26: N
A27: 11870 | B27: ICT Hardware 2016-2018 | C27: 2018 | D27: Information Technology | F27: 0 | G27: 0 | H27: 0.07743013082 | I27: 0.4744866048 | J27: 0.797893201 | K27: 1.349809937 | M27: Obsolesence | N27: N
A28: 11610 | B28: One Network Refresh 2013-2016 | C28: 2015 | D28: Information Technology | F28: 0.4101737092 | G28: 0.7043406338 | H28: 0.01161294212 | I28: 0 | J28: 0 | K28: 1.126127285 | M28: Obsolesence | N28: N
A29: 11715 | B29: Project & Portfolio Management Systems Functional Enhancements 2015-2017 | C29: 2015 | D29: Information Technology | F29: 0.3259309013 | G29: 0.6399185474 | H29: 0.05743288841 | I29: 0 | J29: 0 | K29: 1.023282337 | M29: New requirements | N29: N
A30: 11470 | B30: ICT Hardware 2012-2014 | C30: 2014 | D30: Information Technology | F30: 0.7576287844 | G30: 0.168496931 | H30: 0 | I30: 0 | J30: 0 | K30: 0.9261257154 | M30: Obsolesence | N30: N
A31: 11706 | B31: Archiving Solutions 2013-2015 | C31: 2014 | D31: Information Technology | F31: 0.5869614448 | G31: 0.3184432987 | H31: 0 | I31: 0 | J31: 0 | K31: 0.9054047435 | M31: New requirements | N31: N
A32: 11539 | B32: Records Management 2013-2015 | C32: 2013 | D32: Information Technology | F32: 0.7618604396 | G32: 0 | H32: 0 | I32: 0 | J32: 0 | K32: 0.7618604396 | M32: Obsolesence | N32: N
A33: 11703 | B33: Drawing Management Systems Technology Upgrade 2015-2017 | C33: 2017 | D33: Information Technology | F33: 0 | G33: 0 | H33: 0 | I33: 0.03959559107 | J33: 0.66710525 | K33: 0.7067008411 | M33: Obsolesence | N33: N
A34: 11513 | B34: Business Intelligence Functional Enhancements 2013-2015 | C34: 2014 | D34: Information Technology | F34: 0.4799075971 | G34: 0.0809576154 | H34: 0 | I34: 0 | J34: 0 | K34: 0.5608652125 | M34: Obsolesence | N34: N
A35: 11523 | B35: ICT Systems Management 2014-2015 | C35: 2015 | D35: Information Technology | F35: 0 | G35: 0.1361543678 | H35: 0.3727456821 | I35: 0 | J35: 0 | K35: 0.5089000498 | M35: New requirements | N35: N
A36: 11521 | B36: Database Management Systems Consolidation 2013-2015 | C36: 2014 | D36: Information Technology | F36: 0.4357307788 | G36: 0.03157299942 | H36: 0 | I36: 0 | J36: 0 | K36: 0.4673037782 | M36: New requirements | N36: N
A37: 11515 | B37: Data Quality | C37: 2018 | D37: Information Technology | F37: 0 | G37: 0 | H37: 0 | I37: 0.1360585398 | J37: 0.3274862015 | K37: 0.4635447413 | M37: New requirements | N37: N
A38: 11386 | B38: Business Process Improvement - Stage 2 | C38: 2013 | D38: Information Technology | F38: 0.4526736353 | G38: 0 | H38: 0 | I38: 0 | J38: 0 | K38: 0.4526736353 | M38: New requirements | N38: N
A39: 11442 | B39: Fleet Replacement Vehicles 2013-2014 | C39: 2013 | D39: Facilities | F39: 0.3502 | G39: 0 | H39: 0 | I39: 0 | J39: 0 | K39: 0.3502 | M39: Annual replacement | N39: N
A40: 11781 | B40: Furniture and General Building Upgrades 2016 - 2017 | C40: 2016 | D40: Facilities | F40: 0 | G40: 0 | H40: 0 | I40: 0.29564708 | J40: 0 | K40: 0.29564708 | M40: Annual replacement | N40: N
A41: 11681 | B41: Furniture and General Building Upgrades 2015 -2016 | C41: 2015 | D41: Facilities | F41: 0 | G41: 0.02155979213 | H41: 0.2384745912 | I41: 0 | J41: 0 | K41: 0.2600343833 | M41: Annual replacement | N41: N
A42: 11802 | B42: Business Intelligence Functional Enhancements 2017-2018 | C42: 2017 | D42: Information Technology | F42: 0 | G42: 0 | H42: 0 | I42: 0.0791393004 | J42: 0.1785012422 | K42: 0.2576405426 | M42: Obsolesence | N42: N
A43: 11435 | B43: Outage Optimisation Improvements | C43: 2013 | D43: Information Technology | F43: 0.2359070848 | G43: 0 | H43: 0 | I43: 0 | J43: 0 | K43: 0.2359070848 | M43: New requirements | N43: N
A44: 11851 | B44: Transmission Billing | C44: 2018 | D44: Information Technology | F44: 0 | G44: 0 | H44: 0 | I44: 0.01423988229 | J44: 0.2156041358 | K44: 0.2298440181 | M44: Condition/Obsolescence | N44: N
A45: 11618 | B45: Carpet Keswick 2015 -2016 | C45: 2015 | D45: Facilities | F45: 0 | G45: 0 | H45: 0.214137 | I45: 0 | J45: 0 | K45: 0.214137 | M45: Annual replacement | N45: N
A46: 11881 | B46: Furniture and General Building Upgrades 2017 - 2018 | C46: 2017 | D46: Facilities | F46: 0 | G46: 0 | H46: 0 | I46: 0 | J46: 0.2038988 | K46: 0.2038988 | M46: Annual replacement | N46: N
A47: 11581 | B47: Furniture and General Building Upgrades 2014 - 2015 | C47: 2014 | D47: Facilities | F47: 0 | G47: 0.19996214 | H47: 0 | I47: 0 | J47: 0 | K47: =SUM(F47:J47) -> 0.19996214 | M47: Annual replacement | N47: N
A48: 11481 | B48: Furniture and General Building Upgrades 2013 - 2014 | C48: 2014 | D48: Facilities | F48: 0.1941046196 | G48: 0.001580224321 | H48: 0 | I48: 0 | J48: 0 | K48: 0.1956848439 | M48: Annual replacement | N48: N
A49: 11705 | B49: Drawing Management Systems Augmentation 2015-2017 | C49: 2014 | D49: Information Technology | F49: 0 | G49: 0.19384085 | H49: 0 | I49: 0 | J49: 0 | K49: 0.19384085 | M49: New requirements | N49: N
A50: 11559 | B50: Fleet Replacement Vehicles 2014-2015 | C50: 2014 | D50: Facilities | F50: 0 | G50: 0.17343655 | H50: 0 | I50: 0 | J50: 0 | K50: 0.17343655 | M50: Annual replacement | N50: N
A51: 11899 | B51: Fleet Vehicles Purchase 2017-2018 | C51: 2017 | D51: Facilities | F51: 0 | G51: 0 | H51: 0 | I51: 0 | J51: 0.1372784 | K51: 0.1372784 | M51: Annual replacement | N51: N
A52: 11882 | B52: General Utility Upgrade 2017 - 2018 | C52: 2017 | D52: Facilities | F52: 0 | G52: 0 | H52: 0 | I52: 0 | J52: 0.1251656 | K52: 0.1251656 | M52: Annual replacement | N52: N
A53: 11731 | B53: Fleet Vehicles Purchase 2016-2017 | C53: 2016 | D53: Facilities | F53: 0 | G53: 0 | H53: 0 | I53: 0.12352378 | J53: 0 | K53: 0.12352378 | M53: Annual replacement | N53: N
A54: 11482 | B54: General Utility Upgrade 2013 - 2014 | C54: 2014 | D54: Facilities | F54: 0.1154411685 | G54: 0.0009398176223 | H54: 0 | I54: 0 | J54: 0 | K54: 0.1163809861 | M54: Annual replacement | N54: N
A55: 11880 | B55: Fire Protection 300 Pirie St - Sprinkler System | C55: 2017 | D55: Facilities | F55: 0 | G55: 0 | H55: 0 | I55: 0 | J55: 0.111034 | K55: 0.111034 | M55: Obsolesence | N55: N
A56: 11554 | B56: UPS Battery Bank No.2 | C56: 2014 | D56: Facilities | F56: 0 | G56: 0.107122575 | H56: 0 | I56: 0 | J56: 0 | K56: 0.107122575 | M56: Obsolesence | N56: N
A57: 11717 | B57: UPS Battery Bank | C57: 2016 | D57: Facilities | F57: 0 | G57: 0 | H57: 0 | I57: 0.10631145 | J57: 0 | K57: 0.10631145 | M57: Obsolesence | N57: N
A58: 11652 | B58: Fleet Replacement Vehicles 2015-2016 | C58: 2015 | D58: Facilities | F58: 0 | G58: 0 | H58: 0.10197 | I58: 0 | J58: 0 | K58: 0.10197 | M58: Annual replacement | N58: N
A59: 11650 | B59: Electrical 300 Pirie St. & Keswick 2015-2016 | C59: 2015 | D59: Facilities | F59: 0 | G59: 0 | H59: 0.0866745 | I59: 0 | J59: 0 | K59: 0.0866745 | M59: Annual replacement | N59: N
A60: 12002 | B60: Corporate Network Refresh 2018-2020 | C60: 2020 | D60: Information Technology | F60: 0 | G60: 0 | H60: 0 | I60: 0 | J60: 0.07683518291 | K60: 0.07683518291 | M60: Obsolesence | N60: N
A61: 11649 | B61: Mechanical 300 Pirie St. 2015-2016 | C61: 2015 | D61: Facilities | F61: 0 | G61: 0 | H61: 0.0662805 | I61: 0 | J61: 0 | K61: 0.0662805 | M61: Annual replacement | N61: N
A62: 11884 | B62: Fire Protection Rymill - Sprinkler System | C62: 2017 | D62: Facilities | F62: 0 | G62: 0 | H62: 0 | I62: 0.05267834485 | J62: 0.01309342325 | K62: 0.06577176809 | M62: Annual replacement | N62: N
A63: 11896 | B63: Mechanical 300 & 276 Pirie St. 2017-2018 | C63: 2017 | D63: Facilities | F63: 0 | G63: 0 | H63: 0 | I63: 0 | J63: 0.0575358 | K63: 0.0575358 | M63: Annual replacement | N63: N
A64: 11439 | B64: Emergency Supplies 300 Pirie St | C64: 2014 | D64: Facilities | F64: 0.05108016304 | G64: 0.0004158485054 | H64: 0 | I64: 0 | J64: 0 | K64: 0.05149601155 | M64: Annual replacement | N64: N
A65: 11648 | B65: UPS & Battery Bank BUCC 2015-2016 | C65: 2015 | D65: Facilities | F65: 0 | G65: 0 | H65: 0.050985 | I65: 0 | J65: 0 | K65: 0.050985 | M65: Annual replacement | N65: N
A66: 12070 | B66: ICT Hardware 2018-2020 | C66: 2019 | D66: Information Technology | F66: 0 | G66: 0 | H66: 0 | I66: 0 | J66: 0.04791616284 | K66: 0.04791616284 | M66: Obsolesence | N66: N
A67: 11782 | B67: Building Generator 300 Pirie St | C67: 2016 | D67: Facilities | F67: 0 | G67: 0 | H67: 0 | I67: 0.046169544 | J67: 0 | K67: 0.046169544 | M67: Annual replacement | N67: N
A68: 11651 | B68: Carpet 300 & 276 Pirie St. 2015-2016 | C68: 2015 | D68: Facilities | F68: 0 | G68: 0 | H68: 0.0458865 | I68: 0 | J68: 0 | K68: 0.0458865 | M68: Annual replacement | N68: N
A69: 11619 | B69: Fire Protection 300 Pirie 2015 - 2016 | C69: 2015 | D69: Facilities | F69: 0 | G69: 0 | H69: 0.0367092 | I69: 0 | J69: 0 | K69: 0.0367092 | M69: Annual replacement | N69: N
A70: 11532 | B70: Fire Protection Rymill 2014 - 2015 | C70: 2014 | D70: Facilities | F70: 0 | G70: 0.023464945 | H70: 0 | I70: 0 | J70: 0 | K70: 0.023464945 | M70: Annual replacement | N70: N
A71: 11558 | B71: Electrical 300 Pirie St. 2014-2015 | C71: 2014 | D71: Facilities | F71: 0 | G71: 0.015303225 | H71: 0 | I71: 0 | J71: 0 | K71: 0.015303225 | M71: Annual replacement | N71: N
A72: 11807 | B72: ICT Systems Management 2017-2019 | C72: 2019 | D72: Information Technology | F72: 0 | G72: 0 | H72: 0 | I72: 0 | J72: 0.01197279075 | K72: 0.01197279075 | M72: Obsolesence | N72: N
A73: 11434 | B73: Asset Condition Monitoring Systems | C73: 2014 | D73: Information Technology | F73: 0.5047998238 | G73: 0.2616460467 | H73: 0 | I73: 0 | J73: 0 | K73: 0.7664458705 | M73: New Requirements | N73: N
E117: Subtotal | F117: =SUM(F13:F115) -> 9.600390465 | G117: 12.18640045 | H117: 13.51858775 | I117: 7.854804623 | J117: 6.110520019 | K117: =SUM(K13:K115) -> 49.27070331
